Workbook

Sheet Introduction
E4: Completed on: | G4: 2023-09-16
C10: Summary data template for EITI disclosures
C11: Version 2.0 as of 1 July 2019
C13: Filling in this summary data template with EITI Report data will make your EITI Report data accessible in a machine-readable format. (requirement 7.2.d)
C14: “Make the EITI Report available in an open data format (xlsx or csv) online and publicise its availability.” - EITI Requirement 7.1.c
C16: How publishing EITI Report data works:
C17: 1. Use one excel workbook per fiscal year covered. If you are reporting on both oil & gas and mining, both can fit into one workbook.
C18: 2. Fill in the entire workbook - parts 1-5.
C19: 3. This Data sheet should be submitted alongside the EITI Report. Send it to the International Secretariat: data@eiti.org
C20: 4. The data will be used to populate the global EITI data repository, available on the international EITI website: https://eiti.org/data. You will receive the file back which will be fit for publication via the channels of your choice.
C22: This template should be completed in full and submitted to the EITI International Secretariat for each fiscal year covered under EITI Reporting.
C25: This workbook has five parts. Insert the data starting with part 1 and work your way through to part 5
C27: Part 1 (About): Insert country and data characteristics.
C28: Part 2 (Disclosure checklist): Fill in contextual and aggregate financial data for EITI Requirements 2, 3, 4, 5, and 6.
C29: Part 3 (Reporting entities): Enter reporting entities (Government agencies, companies and projects) and related information.
C30: Part 4 (Government revenues): Enter data on government revenues per revenue stream, according to GFS classification.
C31: Part 5 (Company data): Enter company- and project-level data per revenue stream.
C33: The International Secretariat can provide advice and support on request. Please contact data@eiti.org
C35: Cells in orange must be completed before submission | E35: Cells in light blue are for supplying sources and/or comments | G35: White cells require no action
C37: Cells in grey are for your information: You will receive immediate feedback on many of the data entries and some cells will fill in automatically.
C40: Terminology: Disclosure | E40: Terminology: Simple options
C41: Yes, systematically disclosed: If data is regularly and publicly disclosed by government agencies or companies, and the data is reliable, please select Yes, systematically disclosed | E41: Yes: All the aspects of the question are answered/covered.
C42: Yes, through EITI reporting: If the EITI Report covers certain data gaps in government or corporate disclosures, please select "Yes, in EITI Report". | E42: Partially:Aspects of the question have been answered/covered.
C43: Not available: The data is applicable in the country, but no data or information is available. | E43: No: No information is covered.
C44: Not applicable: If a requirement is not relevant, please select "Not applicable". Refer to any evidence documented as part of the EITI Report, or through minutes of a multi-stakeholder meeting. | E44: Not applicable: The question is not relevant for the case, When it is required, please refer to evidence of non-applicability.
C46: For the latest version of Summary data templates, see https://eiti.org/summary-data-template
C47: Give us your feedback or report a conflict in the data! Write to us at data@eiti.org
C49: EITI International Secretariat
C50: Phone: +47 222 00 800  E-mail: secretariat@eiti.org  Twitter: @EITIorg  www.eiti.org
B51: Country or area | C51: Address: Rådhusgata 26, 0151 Oslo, Norway  P.O. Box: Postboks 340 Sentrum, 0101 Oslo, Norway

Sheet Part 1 - About
C2: Part 1 (About) covers country and data characteristics.
C3: How to complete this sheet:
C4: 1. Starting from the top, select your responses in the grey column. Guidance is provided in yellow boxes once the cell is selected.
C5: 2. Once certain questions are answered, further guidance and questions may appear. Please respond to each of these, until completed.
C6: 3. Include any additional information or comments as needed in the Source/Comments" column.
C7: If you have any questions, please contact data@eiti.org
C9: Cells in orange must be completed | E9: Cells in light blue are for voluntary input | G9: White cells require no action
C11: Part 1 - About
C12: Description | E12: Enter data in this column | G12: Source / Comments
C13: Country or area
B14: Country or area | C14: Country or area name | E14: United Kingdom
B15: Country or area | C15: ISO Alpha-3 Code | E15: =IFERROR(VLOOKUP($E$14,Table1_Country_codes_and_currencies[],3,FALSE),"") -> GBR
B16: Country or area | C16: National currency name | E16: =IFERROR(VLOOKUP($E$14,Table1_Country_codes_and_currencies[],7,FALSE),"") -> Pound sterling
B17: Country or area | C17: National currency ISO-4217 | E17: =IFERROR(VLOOKUP($E$14,Table1_Country_codes_and_currencies[],5,FALSE),"") -> GBP
C18: Fiscal year covered by this data file
B19: Fiscal year covered by this data file | C19: Start Date | E19: 2022-01-01
B20: Fiscal year covered by this data file | C20: End Date | E20: 2022-12-31
C21: Data source
B22: Data source | C22: Has an EITI Report been prepared by an Independent Administrator? | E22: Partially | G22: The UK EITI report is divided to several chapters: - Approach and methodology ; - UK EITI Payments Report 2020 (including payments) ; - Sector Introduction (Overview of the extractive sectors in the UK) ; - Sector Data ; - Oil & Gas in the UK ; - Mining & Quarrying in the UK ; - Energy Transition ; and - Revenue allocations. Only the first chapter is prepared by the Independant Administrator. The IA also reconciles the payments data disclosed in the UK EITI Payments Report. The other chapters are prepared by the MSG.
B23: Data source | C23: What is the name of the company? | E23: BDO UK LLP
B24: Data source | C24: Date that the EITI Report was made public | E24: 2023-07-18
B25: Data source | C25: URL, EITI Report | E25: https://www.ukeiti.org/news-item/uk-eiti-payments-report-2022-published | G25: Select "UK EITI Reports" filter
B26: Data source | C26: Does the government systematically disclose EITI data at a single location? | E26: Yes
B27: Data source | C27: Publication date of the EITI data | E27: 2023-07-18
B28: Data source | C28: Website link (URL) to EITI data | E28: https://www.ukeiti.org/
B29: Data source | C29: Are there other files of relevance? | E29: Yes
B30: Data source | C30: Date that other file was made public | G30: The UK EITI MSG systematically publishes the information related to its activity through the same website (Minutes of MSG Meetings, MSG ToR, Annual Progress Reports, Communication Strategy, Mainstreaming Feasibility Study, Annual Workplans...).
B31: Data source | C31: URL | E31: https://www.ukeiti.org/publications-reports
C32: EITI Requirement 7.2: Data accessibility and open data
C33: Does the government have an open data policy? | E33: Yes, systematically disclosed
B34: Data coverage / scope | C34: Open data portal / files | E34: NSTA's Open Data: https://www.nstauthority.co.uk/data-centre/nsta-open-data/ UK EITI open data policy: https://www.ukeiti.org/publications-reports | G34: Open Data policy: https://www.ukeiti.org/index.php/publication/uk-eiti-open-data-policy-0
B35: Data coverage / scope | C35: Data coverage / scope
B36: Data coverage / scope | C36: Sector coverage
B37: Data coverage / scope | C37: Oil | E37: Yes
B38: Data coverage / scope | C38: Gas | E38: Yes
B39: Data coverage / scope | C39: Mining (incl. Quarrying) | E39: Yes
B40: Data coverage / scope | C40: Other, non-upstream sectors | E40: Not applicable
B41: Data coverage / scope | C41: If yes, please specify name (insert new rows if multiple) | E41: Not applicable
B42: Data coverage / scope | C42: Number of reporting government entities (incl SOEs if recipient) | E42: 4
B43: Data coverage / scope | C43: Number of reporting companies (incl SOEs if payer) | E43: 47
B44: Data coverage / scope | C44: Reporting currency (ISO-4217 currency codes) | E44: GBP
B45: Data coverage / scope | C45: Exchange rate used: 1 USD = | E45: 0.812 | G45: All payments were made in GBP. The average annual exchange rate GBP/USD for 2022 is for reference only.
B46: Data coverage / scope | C46: Exchange rate source (URL,…) | E46: https://www.bankofengland.co.uk/ | G46: Based on the Monthly average Spot exchange rate, US$ into Sterling published by the Bank of England (series XUMAUSS).
B47: Data coverage / scope | C47: EITI Requirement 4.7: Disaggregation
B48: Data coverage / scope | C48: … by revenue stream | E48: Yes
C49: … by government agency | E49: Yes
C50: … by company | E50: Yes
C51: … by project | E51: Yes | G51: The following payments levied by license/project level, were disaggregated: - Payments collected by TCE ; - Payments collected by CES ; - Petroleum License Fees collected by NSTA ; and - Petroleum Revenue Tax collected by HMRC.
C52: Data overview / requirement | E52: =SUM(E53:E56) -> 1
C53: Systematically disclosed | E53: =COUNTIF('Part 2 - Disclosure checklist'!$D:$D,Lists!$K$4)/SUM(COUNTIF('Part 2 - Disclosure checklist'!$D:$D,"*EITI Reporting or systematically disclosed?*"),COUNTIF('Part 2 - Disclosure checklist'!$D:$D,Lists!$K$4),COUNTIF('Part 2 - Disclosure checklist'!$D:$D,Lists!$K$5),COUNTIF('Part 2 - Disclosure checklist'!$D:$D,Lists!$K$6),COUNTIF('Part 2 - Disclosure checklist'!$D:$D,Lists!$K$7)) -> 0.5263157895 | G53: Calculated using the Disclosure checklist
C54: Through EITI Reporting | E54: =COUNTIF('Part 2 - Disclosure checklist'!$D:$D,Lists!$K$5)/SUM(COUNTIF('Part 2 - Disclosure checklist'!$D:$D,"*EITI Reporting or systematically disclosed?*"),COUNTIF('Part 2 - Disclosure checklist'!$D:$D,Lists!$K$4),COUNTIF('Part 2 - Disclosure checklist'!$D:$D,Lists!$K$5),COUNTIF('Part 2 - Disclosure checklist'!$D:$D,Lists!$K$6),COUNTIF('Part 2 - Disclosure checklist'!$D:$D,Lists!$K$7)) -> 0.08771929825 | G54: Calculated using the Disclosure checklist
B55: Contact details: data submission | C55: Not applicable | E55: =COUNTIF('Part 2 - Disclosure checklist'!$D:$D,Lists!$K$6)/SUM(COUNTIF('Part 2 - Disclosure checklist'!$D:$D,"*EITI Reporting or systematically disclosed?*"),COUNTIF('Part 2 - Disclosure checklist'!$D:$D,Lists!$K$4),COUNTIF('Part 2 - Disclosure checklist'!$D:$D,Lists!$K$5),COUNTIF('Part 2 - Disclosure checklist'!$D:$D,Lists!$K$6),COUNTIF('Part 2 - Disclosure checklist'!$D:$D,Lists!$K$7)) -> 0.2456140351 | G55: Calculated using the Disclosure checklist
B56: Contact details: data submission | C56: Not available | E56: =COUNTIF('Part 2 - Disclosure checklist'!$D:$D,Lists!$K$7)/SUM(COUNTIF('Part 2 - Disclosure checklist'!$D:$D,"*EITI Reporting or systematically disclosed?*"),COUNTIF('Part 2 - Disclosure checklist'!$D:$D,Lists!$K$4),COUNTIF('Part 2 - Disclosure checklist'!$D:$D,Lists!$K$5),COUNTIF('Part 2 - Disclosure checklist'!$D:$D,Lists!$K$6),COUNTIF('Part 2 - Disclosure checklist'!$D:$D,Lists!$K$7)) -> 0.1403508772 | G56: Calculated using the Disclosure checklist
B57: Contact details: data submission | C57: Name and contact information of the person submitting this file
B58: Contact details: data submission | C58: Name | E58: Helmi Ben Rhouma
C59: Organisation | E59: BDO UK LLP
C60: Email address | E60: Helmi.benrhouma@bdo.co.uk
C63: For the latest version of Summary data templates, see https://eiti.org/summary-data-template
C64: Give us your feedback or report a conflict in the data! Write to us at data@eiti.org
C66: EITI International Secretariat
C67: Phone: +47 222 00 800  E-mail: secretariat@eiti.org  Twitter: @EITIorg  www.eiti.org
B68: Country or area | C68: Address: Rådhusgata 26, 0151 Oslo, Norway  P.O. Box: Postboks 340 Sentrum, 0101 Oslo, Norway

Sheet Part 2 - Disclosure checklist
B2: Part 2 (Disclosure checklist) covers contextual and aggregate financial data for EITI Requirements 2, 3, 4, 5, and 6.
B3: How to complete this sheet:
B4: For each row, please complete the following steps
B5: 1.Starting from the top, begin by responding to questions in the first column (Inclusion). Guidance will be provided in yellow boxes once the cell is highlighted. Click the cells of each EITI Requirement for the precise language of the EITI Standard.
B6: 2.More guidance will appear as you fill the cells. Please fill out as directed, completing every column for each row before beginning the next.
B7: For example, when choosing "Yes, in the EITI Report" "please include the section in the EITI Report" appears in the Source / units box.
B8: 3. Include any additional information or comments as needed in the Comments / Notes" column.
B9: If you have any questions, please contact data@eiti.org
B11: Cells in orange must be completed | D11: Cells in light blue are for voluntary input | F11: White cells require no action
B13: Part 2 - Disclosure checklist
B14: Please fill in answers to all the questions posed below.
B16: Requirement | D16: Inclusion | F16: Source / units | H16: Comments / Notes
B17: EITI Requirement 2.1: Legal framework and fiscal regime | H17: UK EITI commissioned the Business Frameworks Analysis team in the (DESNZ) to conduct a feasibility study into the UK’s readiness to mainstream EITI implementation via routine online disclosures. The final version of the study was approved by the MSG in January 2019 and is available, along with the final mapping tool.
B18: Does the government publish information about | H18: The publicly available sources presented below are extracted from the Mainstreaming Mapping Tool. For more information please visit the below URL: https://www.ukeiti.org/publications-reports and select "Mainstreaming Feasibility Study" filter
B19: Laws and regulations? | D19: Yes, systematically disclosed | F19: Guidance: Minerals (MHCLG) : https://www.gov.uk/guidance/minerals; Investing on the UKCS: Fiscal (Oil & Gas Authority): https://www.nstauthority.co.uk/about-us/investing-on-the-ukcs/; Minerals Planning Policy (Welsh Government) : https://gov.wales/topics/planning/policy/minerals/?lang=en; Minerals UK: Planning : http://www.bgs.ac.uk/mineralsuk/planning/home.html; National Planning Framework 3 (Scottish Government) : https://beta.gov.scot/publications/national-planning-framework-3/; National Planning Policy Framework (MHCLG) : https://www.gov.uk/government/uploads/system/uploads/attachment_data/file/6077/2116950.pdf; Onshore oil and gas exploration and Northern Ireland: Regulation and Best Practice (NI Government): https://www.economy-ni.gov.uk/publications/onshore-oil-and-gas-exploration-northern-ireland-regulation-and-best-practice; Petroleum (Production) Act (Northern Ireland) 1964: http://www.legislation.gov.uk/apni/1964/28/contents; | H19: 2) Through EITI Reporting: - For Oil & Gas sector: https://www.ukeiti.org/oil-gas - For Mining and Quarrying sector: https://www.ukeiti.org/mining-quarrying
B20: Overview of government agencies' roles? | D20: Yes, systematically disclosed | F20: Guidance: Minerals (MHCLG) : https://www.gov.uk/guidance/minerals; Investing on the UKCS: Fiscal (Oil & Gas Authority): https://www.nstauthority.co.uk/about-us/investing-on-the-ukcs/; Minerals Planning Policy (Welsh Government) : https://gov.wales/topics/planning/policy/minerals/?lang=en; Minerals UK: Planning : http://www.bgs.ac.uk/mineralsuk/planning/home.html; National Planning Framework 3 (Scottish Government) : https://beta.gov.scot/publications/national-planning-framework-3/; National Planning Policy Framework (MHCLG) : https://www.gov.uk/government/uploads/system/uploads/attachment_data/file/6077/2116950.pdf; Onshore oil and gas exploration and Northern Ireland: Regulation and Best Practice (NI Government): https://www.economy-ni.gov.uk/publications/onshore-oil-and-gas-exploration-northern-ireland-regulation-and-best-practice; Petroleum (Production) Act (Northern Ireland) 1964: http://www.legislation.gov.uk/apni/1964/28/contents; | H20: 2) Through EITI Reporting: - For Oil & Gas sector: https://www.ukeiti.org/oil-gas - For Mining and Quarrying sector: https://www.ukeiti.org/mining-quarrying
B21: Mineral and petroleum rights' regime? | D21: Yes, systematically disclosed | F21: Guidance: Minerals (MHCLG) : https://www.gov.uk/guidance/minerals; Investing on the UKCS: Fiscal (Oil & Gas Authority): https://www.nstauthority.co.uk/about-us/investing-on-the-ukcs/; Minerals Planning Policy (Welsh Government) : https://gov.wales/topics/planning/policy/minerals/?lang=en; Minerals UK: Planning : http://www.bgs.ac.uk/mineralsuk/planning/home.html; National Planning Framework 3 (Scottish Government) : https://beta.gov.scot/publications/national-planning-framework-3/; National Planning Policy Framework (MHCLG) : https://www.gov.uk/government/uploads/system/uploads/attachment_data/file/6077/2116950.pdf; Onshore oil and gas exploration and Northern Ireland: Regulation and Best Practice (NI Government): https://www.economy-ni.gov.uk/publications/onshore-oil-and-gas-exploration-northern-ireland-regulation-and-best-practice; Petroleum (Production) Act (Northern Ireland) 1964: http://www.legislation.gov.uk/apni/1964/28/contents; | H21: 2) Through EITI Reporting: - For Oil & Gas sector: https://www.ukeiti.org/oil-gas - For Mining and Quarrying sector: https://www.ukeiti.org/mining-quarrying
B22: Fiscal regime? | D22: Yes, systematically disclosed | F22: Business Income Manual (HMRC) : https://www.gov.uk/government/collections/business-income-manual-bim; Company Taxation Manual (HMRC) : https://www.gov.uk/government/collections/company-taxation-manual; Exploration & Production Taxation Overview (Oil & Gas Authority): https://www.nstauthority.co.uk/exploration-production/taxation/overview; Oil Taxation Manual (HMRC): https://www.gov.uk/hmrc-internal-manuals/oil-taxation-manual; | H22: 2) Through EITI Reporting: - For Oil & Gas sector: https://www.ukeiti.org/oil-gas - For Mining and Quarrying sector: https://www.ukeiti.org/mining-quarrying
B24: EITI Requirement 2.2: Contract and license allocations | H24: The UK EITI Secretariat have been working closely with government agencies and devolved administrations to ensure that information under requirement 2.3 is publicly disclosed for all government agencies in scope of EITI and hopes to achieve full compliance with this requirement in early 2021.
B25: Does the government publish information about
B26: the award process(es)? | D26: Yes, systematically disclosed | F26: UK extractive licence and contract structure: https://www.ukeiti.org/index.php/publication/uk-extractive-licence-and-contract-structure; Coal mining licence applications (Coal Authority): https://www.gov.uk/government/collections/coal-mining-licence-applications; Crown Estate, The: http://www.thecrownestate.co.uk/; Get a permit to deal with coal or coal mines (Coal Authority): https://www.gov.uk/get-a-permit-to-deal-with-a-coal-mine-on-your-property; Licensing & Consents (Oil & Gas Authority): https://www.nstauthority.co.uk/licensing-consents/; Licensing and regulation (British Marine Aggregate Producers Association): http://www.bmapa.org/regulation_and_management/licensing_and_regulation.php; Minerals Licensing (NI government): http://www.economy-ni.gov.uk/articles/minerals-licensing; Petroleum Licensing (NI government): http://www.economy-ni.gov.uk/articles/petroleum-licensing; | H26: 2) Through EITI Reporting: - For Oil & Gas sector: https://www.ukeiti.org/oil-gas - For Mining and Quarrying sector: https://www.ukeiti.org/mining-quarrying
B27: and the technical and financial criteria used? | D27: Yes, systematically disclosed | F27: UK extractive licence and contract structure: https://www.ukeiti.org/index.php/publication/uk-extractive-licence-and-contract-structure; Coal mining licence applications (Coal Authority): https://www.gov.uk/government/collections/coal-mining-licence-applications; Crown Estate, The: http://www.thecrownestate.co.uk/; Get a permit to deal with coal or coal mines (Coal Authority): https://www.gov.uk/get-a-permit-to-deal-with-a-coal-mine-on-your-property; Licensing & Consents (Oil & Gas Authority): https://www.nstauthority.co.uk/licensing-consents/; Licensing and regulation (British Marine Aggregate Producers Association): http://www.bmapa.org/regulation_and_management/licensing_and_regulation.php; Minerals Licensing (NI government): http://www.economy-ni.gov.uk/articles/minerals-licensing; Petroleum Licensing (NI government): http://www.economy-ni.gov.uk/articles/petroleum-licensing; | H27: The study noted that the technical and financial criteria were not published by mining and quarrying regulators.
B28: the transfer process(es)? | D28: Yes, systematically disclosed | F28: UK extractive licence and contract structure: https://www.ukeiti.org/index.php/publication/uk-extractive-licence-and-contract-structure;
B29: and the technical and financial criteria used? | D29: Yes, systematically disclosed | F29: UK extractive licence and contract structure: https://www.ukeiti.org/index.php/publication/uk-extractive-licence-and-contract-structure;
B30: bidding rounds/process(es)? | D30: Yes, systematically disclosed | F30: UK extractive licence and contract structure: https://www.ukeiti.org/index.php/publication/uk-extractive-licence-and-contract-structure; Licensing & Consents (Oil & Gas Authority): https://www.nstauthority.co.uk/licensing-consents/; Minerals Licensing (NI government): http://www.economy-ni.gov.uk/articles/minerals-licensing; Petroleum Licensing (NI government): http://www.economy-ni.gov.uk/articles/petroleum-licensing;
B31: No. of license awards and transfers for the covered year | D31: Not available
B33: EITI Requirement 2.3: Register of licenses
B34: License register for mining sector | D34: Yes, systematically disclosed | F34: UK extractive licence and contract structure: https://www.ukeiti.org/index.php/publication/uk-extractive-licence-and-contract-structure; Coal Authority: https://www.gov.uk/government/organisations/the-coal-authority; Coal Authority metadata: https://www.gov.uk/government/collections/coal-mining-data; Marine Licensing Applications received and determined (Welsh Government): https://naturalresources.wales/permits-and-permissions/marine-licensing/applications-received-and-determined/?lang=en; Marine Licensing Information (Scottish Government): http://www.gov.scot/Topics/marine/Licensing/marine/register; Northern Ireland Environment Agency: https://www.daera-ni.gov.uk/northern-ireland-environment-agency; Production Licences (British Marine Aggregate Producers Association): https://www.bmapa.org/resources_and_operations/production_licences.php; Public register (Marine Management Organisation): https://marinelicensing.marinemanagement.org.uk/mmo/fox/live/MMO_PUBLIC_REGISTER; | H34: Sources updated frequently, often once awards are granted (in near real-time in the case of oil & gas awards)
B35: License register for petroleum sector | D35: Yes, systematically disclosed | F35: UK extractive licence and contract structure: https://www.ukeiti.org/index.php/publication/uk-extractive-licence-and-contract-structure; Interactive maps and tools (Oil & Gas Authority): https://www.nstauthority.co.uk/data-centre/interactive-maps-and-tools/; Licence Data (Oil & Gas Authority): https://www.nstauthority.co.uk/data-centre/data-downloads-and-publications/licence-data; Petroleum licence map (NI Government): https://www.daera-ni.gov.uk/northern-ireland-environment-agency; Petroleum licensing (NI Government): http://www.economy-ni.gov.uk/articles/petroleum-licensing; | H35: Sources updated frequently, often once awards are granted (in near real-time in the case of oil & gas awards)
B36: License register for other sector(s) - add rows if several | D36: Not applicable | F36: No other sector
B38: EITI Requirement 2.4: Contract disclosure
B39: Government policy on contract disclosure | D39: Yes, systematically disclosed | F39: https://www.ukeiti.org/contract-and-licence-transparency
B40: Are contracts or full license texts disclosed? | D40: Not available
B41: Contract register for mining sector | D41: Not available
B42: Contract register for petroleum sector | D42: Not available
B44: EITI Requirement 2.5: Beneficial ownership
B45: Government policy on beneficial ownership | D45: Yes, systematically disclosed | F45: PSC requirements for companies and limited liability partnerships (Companies House/DESNZ)
B46: Is beneficial ownership data disclosed? | D46: Yes, systematically disclosed | F46: https://beta.companieshouse.gov.uk/ | H46: Companies House hosts and maintains the People with Significant Control (PSC) Register, which records company beneficial ownership information for ALL UK companies
B47: Beneficial ownership registry | D47: Companies House (PSC Register) | F47: https://beta.companieshouse.gov.uk/ | H47: Search for the company you are interested in and use the 'people' tab to access information about 'People With Significant Control' (PSC)
B49: EITI Requirement 2.6: State participation
B50: Does the government report how it participates in the extractive sector? | D50: Not applicable | F50: https://eiti.org/united-kingdom#validation | H50: All of the UK’s EITI Reports confirm that there is no state participation in the extractive industries and that Requirement 2.6 is not applicable in the UK context. The NSTA does not hold equity in the extractive industries and is not entitled to participate in or retain revenues from the extractive industries it regulates.
B51: References to state-owned enterprises portals or company website(s), for example as stated in the Report (Add rows if several SOEs) | D51: Not applicable
B52: References to state-owned enterprises or company Audited Financial Statement (Add rows if several SOEs) | D52: Not applicable
B54: EITI Requirement 3.1: Exploration
B55: Overview of the extractive industries, including any significant exploration activities | D55: Yes, systematically disclosed | F55: Business Outlook 2022 (Offshore Energies UK): https://oeuk.org.uk/wp-content/uploads/woocommerce_uploads/2022/03/Business-Outlook-2022-OEUK-axxiz6.pdf; Exploration (North Sea Transition Authority): https://www.nstauthority.co.uk/exploration-production/exploration/; Exploration: Current Activities (Minerals UK): http://www.bgs.ac.uk/mineralsuk/exploration/current.html; Mineral Products Association: https://mineralproducts.org/; Oil & Gas Authority Annual Report and Accounts 2021-22: https://www.nstauthority.co.uk/media/8255/nsta-ara_final_accessible_2022.pdf; United Kingdom Minerals Yearbook 2021 (British Geological Survey): https://www.bgs.ac.uk/news/uk-minerals-yearbook-2021/ | H55: 1) Generally, industry (and sector) overviews are prepared annually. Exploration data is updated at varying times on different sources, but at no less that an annual frequency. 2) Through EITI Reporting: - For Oil & Gas sector: https://www.ukeiti.org/oil-gas - For Mining and Quarrying sector: https://www.ukeiti.org/mining-quarrying
B57: EITI Requirement 3.2: Production by commodity
B58: (Harmonised System Codes)
B59: Disclosure of production volumes | D59: Yes, systematically disclosed | F59: Digest of UK Energy Statistics (DESNZ): https://www.gov.uk/government/collections/digest-of-uk-energy-statistics-dukes | H59: 1) Sources updated with varying frequency: DESNZ data on aggregate coal and oil & gas production updated montly; DUKES is updated annually; some NSTA data produced in step with DESNZ monthly data but with a lag; gov.uk Energy Trends data updated at least quarterly; Scottish production data updated annually; other reports and summaries prepared on an annual basis. 2) Through EITI Reporting: - For Oil & Gas sector: https://www.ukeiti.org/oil-gas - For Mining and Quarrying sector: https://www.ukeiti.org/mining-quarrying
B60: Disclosure of production values | D60: Yes, systematically disclosed | F60: Digest of UK Energy Statistics (DESNZ): https://www.gov.uk/government/collections/digest-of-uk-energy-statistics-dukes | H60: 3) For Mining and Quarrying sector: Comprehensive and timely disaggregated data on production and trade volumes and values are lacking for extractives except fossil fuels. The Office for National Statistics (ONS) publishes poor quality data on the volume of production and trade of metal ores and non-metallic minerals in its material flows account for the UK while they also report on the value of imports and exports. These data are not included in the EITI 2022 report to avoid giving a misleading impression of the scale of the sector.
B61: Crude oil (2709), volume | D61: 34934930 | F61: Tonnes | H61: DESNZ - Energy Trends 3.10
B62: =LEFT(B61,SEARCH(",",B61))&" value" -> Crude oil (2709), value | D62: 2.409081615e+10 | F62: GBP | H62: Source: NSTA - Income from and Expenditure on UK Upstream Oil and Gas Exploration, Development, Operating and Decommissioning Activities.
B63: Natural gas (2711), volume | D63: 33884670000 | F63: Sm3 | H63: Source: DESNZ - Energy Trends 4.2
B64: =LEFT(B63,SEARCH(",",B63))&" value" -> Natural gas (2711), value | D64: 2.648498658e+10 | F64: GBP | H64: Source: NSTA - Income from and Expenditure on UK Upstream Oil and Gas Exploration, Development, Operating and Decommissioning Activities
B65: Coal (2701), volume | D65: 650920 | F65: Tonnes | H65: Source: DESNZ - Energy Trends 2.5
B66: =LEFT(B65,SEARCH(",",B65))&" value" -> Coal (2701), value | D66: 155000000 | F66: GBP | H66: Source: DESNZ - DUKES 1.2
B68: EITI Requirement 3.3: Exports
B69: Disclosure of export volumes | D69: Yes, systematically disclosed | F69: Digest of UK Energy Statistics (DESNZ): https://www.gov.uk/government/collections/digest-of-uk-energy-statistics-dukes | H69: 1) Sources updated with varying frequency: (DESNZ data on aggregate coal and oil & gas production updated montly; DUKES is updated annually; some NSTA data produced in step with DESNZ monthly data but with a lag; gov.uk energy trend data updated quarterly; Scottish production data updated annually; other reports and summaries prepared on an annual basis. 2) Through EITI Reporting: - For Oil & Gas sector: https://www.ukeiti.org/oil-gas - For Mining and Quarrying sector: https://www.ukeiti.org/mining-quarrying
B70: Disclosure of export values | D70: Yes, systematically disclosed | F70: Digest of UK Energy Statistics (DESNZ): https://www.gov.uk/government/collections/digest-of-uk-energy-statistics-dukes | H70: 3) For Mining and Quarrying sector: Comprehensive and timely disaggregated data on production and trade volumes and values are lacking for extractives except fossil fuels. The Office for National Statistics (ONS) publishes poor quality data on the volume of production and trade of metal ores and non-metallic minerals in its material flows account for the UK while they also report on the value of imports and exports. These data are not included in the EITI 2022 report to avoid giving a misleading impression of the scale of the sector.
B71: Crude oil (2709), volume | D71: 28603890 | F71: Tonnes | H71: Source: DESNZ - Energy Trends 3.10
B72: =LEFT(B71,SEARCH(",",B71))&" value" -> Crude oil (2709), value | D72: 2.302676734e+10 | F72: GBP | H72: Source: DESNZ - DUKES G.2
B73: Natural gas (2711), volume | D73: 2.345423e+10 | F73: Sm3 | H73: Source: DESNZ - Energy Trends 4.2
B74: =LEFT(B73,SEARCH(",",B73))&" value" -> Natural gas (2711), value | D74: 1.838537292e+10 | F74: GBP | H74: Source: DESNZ - DUKES G.2
B75: Coal (2701), volume | D75: 590510 | F75: Tonnes | H75: Source: DESNZ - Energy Trends 2.5
B76: =LEFT(B75,SEARCH(",",B75))&" value" -> Coal (2701), value | D76: 171947500.3 | F76: GBP | H76: Source: DESNZ - DUKES G.2
B78: EITI Requirement 4.1: Comprehensiveness | H78: Disclosure of details of applicable tax frameworks for both sectors (EXCLUDING TCE and CES REVENUE STREAMS) is available in public online sources. Coverage of other revenue streams (licence fees, rents, etc.) is also available. Data published at most sources annually (HMT Whole Government Accounts, NSTA Annual Report and Accounts); Some sources are updated monthly (HMRC accounts (cash basis) and ONS data (accruals basis)).
B79: Does the government fully disclose extractive sector revenues by revenue stream? | D79: Yes, through EITI reporting | F79: https://www.ukeiti.org/publications-reports
B80: Are MSG decisions on materiality thresholds publicly available? | D80: Yes, through EITI reporting | F80: https://www.ukeiti.org/publications-reports | H80: 1) Through the MSG minutes published on the UK EITI website. 2) Through EITI reporting : "2022 Approach and Methodogy"
B81: Reconciliation coverage | D81: =SUM('Part 5 - Company data'!J354/'Part 4 - Government revenues'!J33) -> 0.9875290136 | F81: Calculated using total of government revenues (part 4), and total per-company data (part 5)
B83: EITI Requirement 4.2: In-kind revenues
B84: Does the government disclose data on in-kind revenues and sales of state share of production? | D84: Not applicable | F84: See "2022 Approach and Methodogy chapter" https://www.ukeiti.org/sites/default/files/payment-data/Approach%20and%20methodology%20for%202022%20Payments%20Report%20-%20Final.pdf
B85: If yes, what was the volume received?
B86: If yes, what was the total revenue transferred to the state from the proceeds of oil, gas and minerals sold? | D86: Not applicable | F86: See "2022 Approach and Methodogy chapter" https://www.ukeiti.org/sites/default/files/payment-data/Approach%20and%20methodology%20for%202022%20Payments%20Report%20-%20Final.pdf
B88: EITI Requirement 4.3: Barter agreements
B89: Does the government disclose information on barter and infrastructure agreements? | D89: Not applicable | F89: See "2022 Approach and Methodogy chapter" https://www.ukeiti.org/sites/default/files/payment-data/Approach%20and%20methodology%20for%202022%20Payments%20Report%20-%20Final.pdf
B90: If yes, what was the total revenues received from barter and infrastructure agreements?
B92: EITI Requirement 4.4: Transportation revenues
B93: Does the government disclose information on transportation revenues? | D93: Not applicable | F93: See "2022 Approach and Methodogy chapter" https://www.ukeiti.org/sites/default/files/payment-data/Approach%20and%20methodology%20for%202022%20Payments%20Report%20-%20Final.pdf
B94: If yes, what was the total revenues received from transportation of commodities?
B96: EITI Requirement 4.5: SOE transactions
B97: Does the government disclose information on SOE transactions? | D97: Not applicable | F97: See "2022 Approach and Methodogy chapter" https://www.ukeiti.org/sites/default/files/payment-data/Approach%20and%20methodology%20for%202022%20Payments%20Report%20-%20Final.pdf
B98: If yes, what was the total revenues received by SOEs?
B100: EITI Requirement 4.6: Direct subnational payments
B101: ="Does the government disclose information on"&RIGHT(B100,LEN(B100)-SEARCH(":",B100,1))&"?" -> Does the government disclose information on Direct subnational payments? | D101: Not applicable | F101: See "2022 Approach and Methodogy chapter" https://www.ukeiti.org/sites/default/files/payment-data/Approach%20and%20methodology%20for%202022%20Payments%20Report%20-%20Final.pdf
B102: If yes, what was the total sub-national revenues received?
B104: EITI Requirement 4.8: Data timeliness
B105: Data timeliness (no. of years from fiscal year end to publication) | D105: =IFERROR(IF(_xlfn.DAYS('Part 1 - About'!$E$24,'Part 1 - About'!$E$20)/365>0,_xlfn.DAYS('Part 1 - About'!$E$24,'Part 1 - About'!$E$20)/365,_xlfn.DAYS('Part 1 - About'!$E$27,'Part 1 - About'!$E$20)/365),"Automatically completed using the 1. About sheet") -> 0.5452054795
B107: EITI Requirement 4.9: Data quality
B108: Does government routinely disclose financial data from requirement 4.1 (full disclosure of revenue streams for both government and companies) of the the EITI Standard? | D108: Yes, through EITI reporting | F108: https://www.ukeiti.org/publications-reports
B109: Is the data subject to credible, independent audits, applying international standards? | D109: Yes, systematically disclosed | F109: https://www.nao.org.uk/ | H109: Government statistics audited by National Audit Office (NAO) and scrutinised by the Public Accounts Committee. NAO report on HMT WGA published in annually in May for the preceeding financial year.
B110: Are government agencies subject to credible, independent audits? | D110: Yes, systematically disclosed | F110: https://www.nao.org.uk/
B111: Government audits database | D111: Yes, systematically disclosed | F111: https://www.nao.org.uk/
B112: Are companies subject to credible, independent audits? | D112: Yes, systematically disclosed | F112: https://beta.companieshouse.gov.uk/ | H112: Companies are required to publish their audited financial statements in the Companies House.
B113: Company audits database | D113: Yes, systematically disclosed | F113: https://beta.companieshouse.gov.uk/ | H113: Search for the company you are interested in and use the 'Filling histroy' tab to access information about 'Accounts'
B115: EITI Requirement 5.1: Distribution of extractive industry revenues
B116: Does the government clarify whether all extractive sector revenues are recorded in the national budget (i.e. enter the government's consolidated / single-treasury account)? | D116: Yes, systematically disclosed | F116: https://obr.uk/docs/dlm_uploads/June-PSF-commentary-Accessible-PDF.pdf | H116: 1) Coverage of the distribution of extractives revenue is provided only through UK national budget statements and OBR economic and fiscal outlook releases. The UK government statistics used in the formulation of these are timely and of high quality. 2) Through EITI reporting : https://www.ukeiti.org/revenue-allocations
B117: Does the government disclose what value of revenues are not recorded in the budget? | D117: ='Part 3 - Reporting entities'!E16+'Part 3 - Reporting entities'!E17 -> 30609674.4 | F117: GBP | H117: Revenues collected by TCE and CES.
B119: EITI Requirement 5.2: Subnational transfers
B120: Does the government disclose information on Subnational transfers? | D120: Yes, systematically disclosed | F120: Oil & Gas Authority Annual Report and Accounts: https://assets.publishing.service.gov.uk/government/uploads/system/uploads/attachment_data/file/1170945/oil-and-gas-authority-annual-report-and-accounts-2022-23-accessible.pdf; Public Income and Expenditure Accounts (NI Government): https://www.finance-ni.gov.uk/publications/public-income-and-expenditure-accounts; | H120: Only one sub-national transfer applies in the UK - the transfer of the Northern Ireland share of continental shelf income. The amount of the transfer and the method of calculation are available in public online disclosures.
B121: If yes, how much should the government have transferred according to the revenue sharing formula? | D121: =1559*1000 -> 1559000 | F121: GBP | H121: As per the NSTA annual report for the year ended 31 March 2023 (please see note 3 to the trust statement "Expenditure and disbursements")
B122: If yes, what amount of transfers could the government account for? | D122: =2046*1000 -> 2046000 | F122: GBP | H122: The balance not yet transferred by NSTA for the year ended 31 March 2023 is £ 1,559k (please see note 6 to the trust statement "Payables")
B124: EITI Requirement 5.3: Revenue management and expenditures
B125: Does the government disclose whether any extractive sector revenues are earmarked (i.e. pinned to specific uses, programmes, geographical zones)? | D125: Not applicable | F125: With very few exceptions, central government receipts are not hypothecated to specific items or types of expenditure. The principal central government extractive revenues currently earmarked for specific UK programmes or geographic regions involve the allocation of a population-based share of income from seaward petroleum licences to the Northern Ireland Government, as required by section 2 of the Miscellaneous Financial Provisions Act 1968.
B126: Does the government disclose a description of the country’s budget and audit processes? | D126: Yes, systematically disclosed | F126: https://obr.uk/docs/dlm_uploads/June-PSF-commentary-Accessible-PDF.pdf | H126: 2) Through EITI reporting : https://www.ukeiti.org/revenue-allocations
B127: Does the government disclose publicly available information about budgets and expenditures? - add rows if several | D127: Yes, systematically disclosed | F127: https://obr.uk/docs/dlm_uploads/June-PSF-commentary-Accessible-PDF.pdf | H127: 2) Through EITI reporting : https://www.ukeiti.org/revenue-allocations
B129: EITI Requirement 6.1: Social expenditures
B130: Does the government disclose information on Social expenditures? | D130: Not available
B131: If yes, what was the total mandatory social expenditures received? | D131: Not available
B132: If yes, what was the total voluntary social expenditures received?
B133: Do companies disclose information on Social expenditures? | D133: Yes, through EITI reporting | F133: Please see the Section 106 (Town and Country Planning Act 1990) Payments of the UK EITI Payments Report 2021.
B134: If yes, what was the total mandatory social expenditures paid? | D134: 112470 | F134: GBP
B135: If yes, what was the total voluntary social expenditures paid?
B136: Does the government disclose information on environmental payments? | D136: Yes, systematically disclosed | F136: https://www.ons.gov.uk/economy/environmentalaccounts/datasets/ukenvironmentalaccountsenvironmentaltaxes/current | H136: 2) Through EITI Reporting: https://www.ukeiti.org/sector-data
B137: If yes, what was the total mandatory environmental payments? | D137: =375*1000000 -> 375000000 | F137: GBP | H137: Aggregates Levy paid during 2022. Source: Environmental taxes in the United Kingdom (ONS, 4 May 2023) https://www.ons.gov.uk/economy/environmentalaccounts/datasets/ukenvironmentalaccountsenvironmentaltaxes
B138: If yes, what was the total voluntary environmental payments?
B140: EITI Requirement 6.2: Quasi-fiscal expenditures
B141: Does the government or SOEs disclose information on Quasi-fiscal expenditures? | D141: Not applicable | F141: https://eiti.org/united-kingdom#validation | H141: All of the UK’s EITI Reports confirm that there is no quasi-fiscal expenditures in the extractive industries and that Requirement 6.2 is not applicable in the UK context.
B142: If yes, what was the total quasi-fiscal expenditures performed by SOEs?
B144: EITI Requirement 6.3: Economic contribution
B145: Does the government disclose information on economic contribution? | D145: Yes, systematically disclosed | F145: Business services (ONS): https://www.ons.gov.uk/businessindustryandtrade/business/businessservices; Digest of UK Energy Statistics (DESNZ): https://www.gov.uk/government/collections/digest-of-uk-energy-statistics-dukes; Economic and fiscal outlook – March 2020 (OBR): http://www.obr.uk/efo/; GDP output approach – low-level aggregates (ONS): https://www.ons.gov.uk/economy/grossdomesticproductgdp/datasets/ukgdpolowlevelaggregates; Regional gross value added (income approach) (ONS): https://www.ons.gov.uk/economy/grossvalueaddedgva/datasets/regionalgrossvalueaddedincomeapproach; Labour market in the regions of the UK: September 2020/ https://www.ons.gov.uk/employmentandlabourmarket/peopleinwork/employmentandemployeetypes/bulletins/regionallabourmarket/october2021; UKCS companies gross operating surplus (ONS): https://www.ons.gov.uk/economy/nationalaccounts/uksectoraccounts/timeseries/lrwx/prof; United Kingdom mineral statistics (Minerals UK): http://www.bgs.ac.uk/mineralsUK/statistics/ukStatistics.html; Publications & Resources (Offshore Energies UK): https://oeuk.org.uk/product/clean-and-secure-energy-plan-offshore-energies-uk-oeuk-may-2022/; | H145: Through EITI Reporting: https://www.ukeiti.org/sector-data
B146: Gross Domestic Product - SNA 2008 C. Mining and quarrying, including oil and gas | D146: 26458000000 | F146: GBP | H146: Source: ONS - GDP output approach, low level aggregates, UK
B147: Gross Domestic Product ASM and informal sector | D147: 0 | F147: GBP
B148: Gross Domestic Product - all sectors | D148: 2491238000000 | F148: GBP | H148: Source: ONS - Real-time database for GDP Current Price (YBHA) https://www.ons.gov.uk/economy/grossdomesticproductgdp/timeseries/abmi/qna
B149: Government revenue - extractive industries | D149: ='Part 4 - Government revenues'!J35+D137 -> 7255563023 | F149: GBP | H149: Note: This includes the total of payment flows (taxes) included in the reconciliation scope as reported by the Government Agencies in "Part 4 - Government Revenues" and the environmental taxes paid by the mining and quarrying companies (including oil & gas) which were not included in the reconciliation scope.
B150: Government revenue - all sectors | D150: 765229000000 | F150: GBP | H150: Total HMRC Receipts by month (HMRC tax receipts and National Insurance contributions for the UK)
B151: Exports - extractive industries | D151: 36009000000 | F151: GBP | H151: Source: ONS - Trade in goods: CPA (08) exports and imports
B152: Exports - all sectors | D152: 815199000000 | F152: GBP | H152: Source: ONS - UK trade time series
B153: Employment - extractive sector - male | D153: 41500 | F153: person | H153: Source: ONS - Workforce Jobs data
B154: Employment - extractive sector - female | D154: 9000 | F154: person | H154: Source: ONS - Workforce Jobs data
B155: Employment - extractive sector | D155: 50000 | F155: person | H155: Source: ONS - Workforce Jobs data
B156: Employment - all sectors | D156: 36155250 | F156: person | H156: Source: ONS - Workforce Jobs data
B157: Investment - extractive sector | D157: Not available | H157: Information not available
B158: Investment - all sectors | D158: Not available | H158: Information not available
B160: EITI Requirement 6.4: Environmental impact
B161: Does the government publish information about
B162: the relevant legal and administrative rules for environmental management? | D162: Yes, through EITI reporting | F162: https://www.ukeiti.org/energy-transition
B163: databases containing environmental impact assessments, certification schemes or similar documentation of environmental management? | D163: Not applicable
B164: other relevant information on environmental monitoring procedures and administration? | D164: Not applicable
B167: For the latest version of Summary data templates, see https://eiti.org/summary-data-template
B168: Give us your feedback or report a conflict in the data! Write to us at data@eiti.org
B170: EITI International Secretariat
B171: Phone: +47 222 00 800  E-mail: secretariat@eiti.org  Twitter: @EITIorg  www.eiti.org
B172: Address: Rådhusgata 26, 0151 Oslo, Norway  P.O. Box: Postboks 340 Sentrum, 0101 Oslo, Norway

Sheet Part 3 - Reporting entities
B2: Part 3 (Reporting entities) covers lists reporting entities (Government agencies, companies and projects) and related information.
B3: How to complete this sheet:
B4: 1.Please begin with the first box (Reporting government entities list), with the name of each government reporting agency
B5: 2.Fill the Company ID row. Guidance will be provided in yellow boxes once the cell is highlighted.
B6: 3.Fill the Reporting Companies' list, beginning with first column "Full Company name". Please fill out as directed, completing every column for each row before beginning the next.
B7: 4.Fill the Reporting projects' list, beginning with first column "Full project name"
B8: If you have any questions, please contact data@eiti.org
B10: Part 3 - Reporting entities
B11: Please provide a list of all reporting entities, alongside relevant information
B13: Reporting government entities list
B14: Full name of agency | C14: Agency type | D14: ID number (if applicable) | E14: Total reported
B15: His Majesty’s Revenue and Customs (HMRC) | C15: Central goverment | D15: Not applicable | E15: =SUMIF(Government_revenues_table[Government entity],Government_agencies[[#This Row],[Full name of agency]],Government_revenues_table[Revenue value]) -> 6769987368
B16: The Crown Estate (TCE) | C16: State government | D16: Not applicable | E16: =SUMIF(Government_revenues_table[Government entity],Government_agencies[[#This Row],[Full name of agency]],Government_revenues_table[Revenue value]) -> 28692997.4
B17: Crown Estate Scotland (CES) | C17: State government | D17: Not applicable | E17: =SUMIF(Government_revenues_table[Government entity],Government_agencies[[#This Row],[Full name of agency]],Government_revenues_table[Revenue value]) -> 1916677
B18: North Sea Transition Authority (NSTA) | C18: State government | D18: Not applicable | E18: =SUMIF(Government_revenues_table[Government entity],Government_agencies[[#This Row],[Full name of agency]],Government_revenues_table[Revenue value]) -> 79965980.24
B20: Reporting companies' list
B21: Company ID references
B22: Company number | C22: Companies House | D22: https://beta.companieshouse.gov.uk/
B24: Full company name | C24: Company type | D24: Company ID number | E24: Sector | F24: Commodities (comma-seperated) | G24: Stock exchange listing or company website | H24: Audited financial statement (or balance sheet, cash flows, profit/loss statement if unavailable) | I24: Payments to Governments Report
B25: Aggregate Industries UK Ltd | C25: Publicly listed or wholly owned subsidiaries of publicly listed companies | D25: 245717 | E25: Mining | F25: Cement, Aggregates | G25: https://www.six-group.com/en/products-services/the-swiss-stock-exchange.html | H25: https://find-and-update.company-information.service.gov.uk/company/00245717/filing-history | I25: =SUMIF(Table10[Full company name],Companies[[#This Row],[Full company name]],Table10[Revenue value]) -> 3713973
B26: Anasuria Hibiscus UK Ltd | C26: Publicly listed or wholly owned subsidiaries of publicly listed companies | D26: 9696268 | E26: Oil & Gas | F26: Oil, Gas | G26: https://www.bursamalaysia.com/bm/trade/trading_resources/listing_directory/company-profile?stock_code=5199 | H26: https://find-and-update.company-information.service.gov.uk/company/09696268/filing-history | I26: =SUMIF(Table10[Full company name],Companies[[#This Row],[Full company name]],Table10[Revenue value]) -> 8563334
B27: Apache Corporation | C27: Publicly listed or wholly owned subsidiaries of publicly listed companies | D27: 7720972 4614761 FC005975 | E27: Oil & Gas | F27: Oil, Gas | G27: https://www.nasdaq.com/market-activity/stocks/apa | H27: https://find-and-update.company-information.service.gov.uk/company/07720972/filing-history https://find-and-update.company-information.service.gov.uk/company/04614761/filing-history https://find-and-update.company-information.service.gov.uk/company/FC005975/filing-history | I27: =SUMIF(Table10[Full company name],Companies[[#This Row],[Full company name]],Table10[Revenue value]) -> 265200000
B28: Boskalis Westminster Holdings Ltd | C28: Publicly listed or wholly owned subsidiaries of publicly listed companies | D28: 338917 2380267 | E28: Mining | F28: Marine Aggregates | G28: https://live.euronext.com/en/product/equities/NL0000852580-XAMS/company-information | H28: https://find-and-update.company-information.service.gov.uk/company/00338917/filing-history https://find-and-update.company-information.service.gov.uk/company/02380267/filing-history | I28: =SUMIF(Table10[Full company name],Companies[[#This Row],[Full company name]],Table10[Revenue value]) -> 4348166.33
B29: BP Plc | C29: Publicly listed or wholly owned subsidiaries of publicly listed companies | D29: 102498 | E29: Oil & Gas | F29: Oil, Gas | G29: https://www.londonstockexchange.com/stock/BP./bp-plc/company-page | H29: https://find-and-update.company-information.service.gov.uk/company/00102498/filing-history | I29: =SUMIF(Table10[Full company name],Companies[[#This Row],[Full company name]],Table10[Revenue value]) -> 1072639079
B30: Breedon Group plc | C30: Publicly listed or wholly owned subsidiaries of publicly listed companies | D30: Jersey 98465 | E30: Mining | F30: Construction Materials | G30: https://www.londonstockexchange.com/stock/BREE/breedon-group-plc/company-page | H30: https://www.jerseyfsc.org/registry/registry-entities/entity/282770 | I30: =SUMIF(Table10[Full company name],Companies[[#This Row],[Full company name]],Table10[Revenue value]) -> 20153026.93
B31: Cemex UK Materials Ltd | C31: Publicly listed or wholly owned subsidiaries of publicly listed companies | D31: 658390 | E31: Mining | F31: Construction Materials | G31: https://www.bmv.com.mx/en/issuers/statistics/CEMEX-5203 https://www.nasdaq.com/market-activity/stocks/cx | H31: https://find-and-update.company-information.service.gov.uk/company/00658390/filing-history | I31: =SUMIF(Table10[Full company name],Companies[[#This Row],[Full company name]],Table10[Revenue value]) -> 7818294
B32: Centrica plc | C32: Publicly listed or wholly owned subsidiaries of publicly listed companies | D32: 3033654 | E32: Oil & Gas | F32: Oil, Gas | G32: https://www.londonstockexchange.com/stock/CNA/centrica-plc/company-page | H32: https://find-and-update.company-information.service.gov.uk/company/03033654/filing-history | I32: =SUMIF(Table10[Full company name],Companies[[#This Row],[Full company name]],Table10[Revenue value]) -> 78788778
B33: Chevron | C33: Publicly listed or wholly owned subsidiaries of publicly listed companies | D33: 1006065 | E33: Oil & Gas | F33: Oil, Gas | G33: https://www.nasdaq.com/market-activity/stocks/cvx | H33: https://find-and-update.company-information.service.gov.uk/company/01006065/filing-history | I33: =SUMIF(Table10[Full company name],Companies[[#This Row],[Full company name]],Table10[Revenue value]) -> 153169894
B34: Cleveland Potash Ltd | C34: Publicly listed or wholly owned subsidiaries of publicly listed companies | D34: 915392 | E34: Mining | F34: Potash, Salt | G34: https://www.nyse.com/quote/XNYS:ICL | H34: https://find-and-update.company-information.service.gov.uk/company/00915392/filing-history | I34: =SUMIF(Table10[Full company name],Companies[[#This Row],[Full company name]],Table10[Revenue value]) -> 2182769
B35: CNOOC Petroleum Europe Ltd | C35: Publicly listed or wholly owned subsidiaries of publicly listed companies | D35: 1051137 | E35: Oil & Gas | F35: Oil, Gas | G35: https://www.tsx.com/news/new-company-listings?id=223 | H35: https://find-and-update.company-information.service.gov.uk/company/01051137/filing-history | I35: =SUMIF(Table10[Full company name],Companies[[#This Row],[Full company name]],Table10[Revenue value]) -> 406477679
B36: CNR International UK Investments Ltd | C36: Publicly listed or wholly owned subsidiaries of publicly listed companies | D36: 813187 | E36: Oil & Gas | F36: Oil, Gas | G36: https://money.tmx.com/en/quote/CNQ | H36: https://find-and-update.company-information.service.gov.uk/company/00813187/filing-history | I36: =SUMIF(Table10[Full company name],Companies[[#This Row],[Full company name]],Table10[Revenue value]) -> -24961652
B37: DEME Building Materials Ltd | C37: Publicly listed or wholly owned subsidiaries of publicly listed companies | D37: 4590759 | E37: Mining | F37: Sand, Gravel | G37: https://live.euronext.com/nl/product/equities/be0003883031-xbru/cfe/cfeb | H37: https://find-and-update.company-information.service.gov.uk/company/04590759/filing-history | I37: =SUMIF(Table10[Full company name],Companies[[#This Row],[Full company name]],Table10[Revenue value]) -> 3069009.55
B38: ENI UK Ltd | C38: Publicly listed or wholly owned subsidiaries of publicly listed companies | D38: 862823 | E38: Oil & Gas | F38: Oil, Gas | G38: https://www.borsaitaliana.it/borsa/azioni/scheda/IT0003132476.html?lang=en | H38: https://find-and-update.company-information.service.gov.uk/company/00862823/filing-history | I38: =SUMIF(Table10[Full company name],Companies[[#This Row],[Full company name]],Table10[Revenue value]) -> 459931921
B39: EnQuest Plc | C39: Publicly listed or wholly owned subsidiaries of publicly listed companies | D39: 7140891 | E39: Oil & Gas | F39: Oil, Gas | G39: https://www.londonstockexchange.com/stock/ENQ/enquest-plc/company-page | H39: https://find-and-update.company-information.service.gov.uk/company/07140891/filing-history | I39: =SUMIF(Table10[Full company name],Companies[[#This Row],[Full company name]],Table10[Revenue value]) -> 31011077
B40: ExxonMobil International Ltd | C40: Publicly listed or wholly owned subsidiaries of publicly listed companies | D40: 05458042 00207426 | E40: Oil & Gas | F40: Oil, Gas | G40: https://www.nyse.com/quote/XNYS:XOM/QUOTE | H40: https://find-and-update.company-information.service.gov.uk/company/05458042/filing-history | I40: =SUMIF(Table10[Full company name],Companies[[#This Row],[Full company name]],Table10[Revenue value]) -> 48468051
B41: Hanson Ltd | C41: Publicly listed or wholly owned subsidiaries of publicly listed companies | D41: 4626078 | E41: Mining | F41: Cement, Aggregates | G41: https://www.boerse-frankfurt.de/equity/heidelbergcement-ag | H41: https://find-and-update.company-information.service.gov.uk/company/04626078/filing-history | I41: =SUMIF(Table10[Full company name],Companies[[#This Row],[Full company name]],Table10[Revenue value]) -> 3483934
B42: Harbour Energy Plc | C42: Publicly listed or wholly owned subsidiaries of publicly listed companies | D42: SC234781 | E42: Oil & Gas | F42: Oil, Gas | G42: https://www.londonstockexchange.com/stock/HBR/harbour-energy-plc/company-page | H42: https://find-and-update.company-information.service.gov.uk/company/SC234781/filing-history | I42: =SUMIF(Table10[Full company name],Companies[[#This Row],[Full company name]],Table10[Revenue value]) -> 439148473
B43: HESS Ltd | C43: Publicly listed or wholly owned subsidiaries of publicly listed companies | D43: 807346 | E43: Oil & Gas | F43: Oil, Gas | G43: https://www.nasdaq.com/market-activity/stocks/hes | H43: https://find-and-update.company-information.service.gov.uk/company/00807346/filing-history | I43: =SUMIF(Table10[Full company name],Companies[[#This Row],[Full company name]],Table10[Revenue value]) -> 209423
B44: Hurricane Energy Plc | C44: Publicly listed or wholly owned subsidiaries of publicly listed companies | D44: 5245689 | E44: Oil & Gas | F44: Oil, Gas | G44: https://www.londonstockexchange.com/stock/HUR/hurricane-energy-plc/company-page | H44: https://find-and-update.company-information.service.gov.uk/company/05245689/filing-history | I44: =SUMIF(Table10[Full company name],Companies[[#This Row],[Full company name]],Table10[Revenue value]) -> 2100000
B45: Ithaca Energy UK | C45: Publicly listed or wholly owned subsidiaries of publicly listed companies | D45: SC272009 | E45: Oil & Gas | F45: Oil, Gas | G45: https://www.tase.co.il/en/market_data/company/001095/about | H45: https://find-and-update.company-information.service.gov.uk/company/SC272009/filing-history | I45: =SUMIF(Table10[Full company name],Companies[[#This Row],[Full company name]],Table10[Revenue value]) -> 73468289
B46: JX Nippon Exploration and Production (U.K.) Ltd | C46: Publicly listed or wholly owned subsidiaries of publicly listed companies | D46: 3288689 | E46: Oil & Gas | F46: Oil, Gas | G46: https://www2.jpx.co.jp/tseHpFront/StockSearch.do?callJorEFlg=1&method=&topSearchStr=ENEOS+Holdings | H46: https://find-and-update.company-information.service.gov.uk/company/03288689/filing-history | I46: =SUMIF(Table10[Full company name],Companies[[#This Row],[Full company name]],Table10[Revenue value]) -> -686041
B47: Repsol Sinopec Resources UK Ltd | C47: Publicly listed or wholly owned subsidiaries of publicly listed companies | D47: 825828 | E47: Oil & Gas | F47: Oil, Gas | G47: https://www.bolsamadrid.es/ing/aspx/Empresas/FichaValor.aspx?ISIN=ES0173516115 | H47: https://find-and-update.company-information.service.gov.uk/company/00825828/filing-history | I47: =SUMIF(Table10[Full company name],Companies[[#This Row],[Full company name]],Table10[Revenue value]) -> -147746674
B48: Royal Dutch Shell Plc | C48: Publicly listed or wholly owned subsidiaries of publicly listed companies | D48: 4366849 | E48: Oil & Gas | F48: Oil, Gas | G48: https://www.londonstockexchange.com/live-markets/market-data-dashboard/price-explorer | H48: https://find-and-update.company-information.service.gov.uk/company/04366849/filing-history | I48: =SUMIF(Table10[Full company name],Companies[[#This Row],[Full company name]],Table10[Revenue value]) -> -8238724
B49: Saint-Gobain Ltd | C49: Publicly listed or wholly owned subsidiaries of publicly listed companies | D49: 3291592 | E49: Mining | F49: Construction Materials | G49: https://live.euronext.com/en/product/equities/FR0000125007-XPAR/saint-gobain/sgo/quotes | H49: https://find-and-update.company-information.service.gov.uk/company/03291592/filing-history | I49: =SUMIF(Table10[Full company name],Companies[[#This Row],[Full company name]],Table10[Revenue value]) -> -4589938.51
B50: Serica Energy Plc | C50: Publicly listed or wholly owned subsidiaries of publicly listed companies | D50: 4073712 | E50: Oil & Gas | F50: Oil & Gas | G50: London Stock Exchange (LSE) | H50: https://find-and-update.company-information.service.gov.uk/company/04073712/filing-history | I50: =SUMIF(Table10[Full company name],Companies[[#This Row],[Full company name]],Table10[Revenue value]) -> 143500000
B51: Suncor Energy UK Ltd | C51: Publicly listed or wholly owned subsidiaries of publicly listed companies | D51: 972618 | E51: Oil & Gas | F51: Oil, Gas | G51: https://www.nasdaq.com/market-activity/stocks/su https://money.tmx.com/en/quote/SU | H51: https://find-and-update.company-information.service.gov.uk/company/00972618/filing-history | I51: =SUMIF(Table10[Full company name],Companies[[#This Row],[Full company name]],Table10[Revenue value]) -> 197236942
B52: TAQA | C52: Publicly listed or wholly owned subsidiaries of publicly listed companies | D52: 5975475 | E52: Oil & Gas | F52: Oil & Gas | G52: Abu Dhabi Securities Exchange (ADX) | H52: https://find-and-update.company-information.service.gov.uk/company/05975475/filing-history | I52: =SUMIF(Table10[Full company name],Companies[[#This Row],[Full company name]],Table10[Revenue value]) -> 195055517
B53: Tarmac Holdings Ltd | C53: Publicly listed or wholly owned subsidiaries of publicly listed companies | D53: 7533961 | E53: Mining | F53: Construction Materials | G53: London Stock Exchange (LSE) | H53: https://find-and-update.company-information.service.gov.uk/company/07533961/filing-history | I53: =SUMIF(Table10[Full company name],Companies[[#This Row],[Full company name]],Table10[Revenue value]) -> 3903739
B54: TotalEnergies Holdings UK Ltd | C54: Publicly listed or wholly owned subsidiaries of publicly listed companies | D54: 1722136 | E54: Oil & Gas | F54: Oil, Gas | G54: Euronext Paris | H54: https://find-and-update.company-information.service.gov.uk/company/01722136/filing-history | I54: =SUMIF(Table10[Full company name],Companies[[#This Row],[Full company name]],Table10[Revenue value]) -> 2489479296
B55: Tullow Oil Plc | C55: Publicly listed or wholly owned subsidiaries of publicly listed companies | D55: 3919249 | E55: Oil & Gas | F55: Oil, Gas | G55: London Stock Exchange (LSE) | H55: https://find-and-update.company-information.service.gov.uk/company/03919249/filing-history | I55: =SUMIF(Table10[Full company name],Companies[[#This Row],[Full company name]],Table10[Revenue value]) -> -15141807
B56: Albion Stone | C56: Private | D56: 1767530 | E56: Mining | F56: Quarrying of ornamental and building stone, limestone, gypsum, chalk and slate | G56: Privately held company | H56: https://find-and-update.company-information.service.gov.uk/company/01767530/filing-history | I56: =SUMIF(Table10[Full company name],Companies[[#This Row],[Full company name]],Table10[Revenue value]) -> 284978
B57: Britannia Aggregates Ltd | C57: Private | D57: 2304376 | E57: Mining | F57: Extraction of aggregates | G57: Privately held company | H57: https://find-and-update.company-information.service.gov.uk/company/02304376/filing-history | I57: =SUMIF(Table10[Full company name],Companies[[#This Row],[Full company name]],Table10[Revenue value]) -> 862323
B58: Dana Petroleum Ltd | C58: Private | D58: 3456891 | E58: Oil & Gas | F58: Oil, Gas | G58: Privately held company | H58: https://find-and-update.company-information.service.gov.uk/company/03456891/filing-history | I58: =SUMIF(Table10[Full company name],Companies[[#This Row],[Full company name]],Table10[Revenue value]) -> 73121214
B59: INEOS Industries | C59: Private | D59: SC200459 10660338 09121775 | E59: Oil & Gas | F59: Oil, Gas | G59: Privately held company | H59: https://find-and-update.company-information.service.gov.uk/company/SC200459/filing-history | I59: =SUMIF(Table10[Full company name],Companies[[#This Row],[Full company name]],Table10[Revenue value]) -> -727149
B60: Iranian Oil Company (U.K.) Ltd | C60: Private | D60: 1019769 | E60: Oil & Gas | F60: Oil, Gas | G60: Privately held company | H60: https://find-and-update.company-information.service.gov.uk/company/01019769/filing-history | I60: =SUMIF(Table10[Full company name],Companies[[#This Row],[Full company name]],Table10[Revenue value]) -> 236690820
B61: Irish Salt Mining & Exploration Co. Ltd | C61: Private | D61: NI006389 | E61: Mining | F61: Salt Rock | G61: Privately held company | H61: https://find-and-update.company-information.service.gov.uk/company/NI006389/filing-history | I61: =SUMIF(Table10[Full company name],Companies[[#This Row],[Full company name]],Table10[Revenue value]) -> 1429863.91
B62: NEO ENERGY | C62: Private | D62: 12086835 SC291165 | E62: Oil & Gas | F62: Oil, Gas | G62: Privately held company | H62: https://find-and-update.company-information.service.gov.uk/company/12086835/filing-history | I62: =SUMIF(Table10[Full company name],Companies[[#This Row],[Full company name]],Table10[Revenue value]) -> 66254777.2
B63: Neptune Energy Group Ltd | C63: Private | D63: 10647707 | E63: Oil & Gas | F63: Oil, Gas | G63: Privately held company | H63: https://find-and-update.company-information.service.gov.uk/company/10647707/filing-history | I63: =SUMIF(Table10[Full company name],Companies[[#This Row],[Full company name]],Table10[Revenue value]) -> -3687655
B64: NSMP Operations Ltd | C64: Private | D64: 9711370 | E64: Oil & Gas | F64: Oil, Gas | G64: Privately held company | H64: https://find-and-update.company-information.service.gov.uk/company/09711370/filing-history | I64: =SUMIF(Table10[Full company name],Companies[[#This Row],[Full company name]],Table10[Revenue value]) -> 207012
B65: ONE-Dyas UK Ltd | C65: Private | D65: 3531783 | E65: Oil & Gas | F65: Oil, Gas | G65: Privately held company | H65: https://find-and-update.company-information.service.gov.uk/company/03531783/filing-history | I65: =SUMIF(Table10[Full company name],Companies[[#This Row],[Full company name]],Table10[Revenue value]) -> 46629963
B66: Perenco UK Ltd | C66: Private | D66: 4653066 | E66: Oil & Gas | F66: Oil, Gas | G66: Privately held company | H66: https://find-and-update.company-information.service.gov.uk/company/04653066/filing-history | I66: =SUMIF(Table10[Full company name],Companies[[#This Row],[Full company name]],Table10[Revenue value]) -> 364547257
B67: RockRose Energy Ltd | C67: Private | D67: 9665181 | E67: Oil & Gas | F67: Oil, Gas | G67: Privately held company | H67: https://find-and-update.company-information.service.gov.uk/company/09665181/filing-history | I67: =SUMIF(Table10[Full company name],Companies[[#This Row],[Full company name]],Table10[Revenue value]) -> 74274000
B68: SAGE North Sea Ltd | C68: Private | D68: BR019059 | E68: Oil & Gas | F68: Oil, Gas | G68: Privately held company | H68: https://find-and-update.company-information.service.gov.uk/company/FC033971/filing-history | I68: =SUMIF(Table10[Full company name],Companies[[#This Row],[Full company name]],Table10[Revenue value]) -> 207000
B69: Van Oord UK Ltd | C69: Private | D69: 1805156 | E69: Mining | F69: Marine Aggregate Dredging | G69: Privately held company | H69: https://find-and-update.company-information.service.gov.uk/company/01805156/filing-history | I69: =SUMIF(Table10[Full company name],Companies[[#This Row],[Full company name]],Table10[Revenue value]) -> 3253457.49
B70: Volker Dredging Ltd | C70: Private | D70: 1179300 | E70: Mining | F70: Marine Aggregate Dredging | G70: Privately held company | H70: https://find-and-update.company-information.service.gov.uk/company/01179300/filing-history | I70: =SUMIF(Table10[Full company name],Companies[[#This Row],[Full company name]],Table10[Revenue value]) -> 2651925
B71: Wintershall Noordzee B.V. | C71: Private | D71: BR009394 | E71: Oil & Gas | F71: Oil & Gas | G71: Privately held company | H71: https://find-and-update.company-information.service.gov.uk/company/BR009394/filing-history | I71: =SUMIF(Table10[Full company name],Companies[[#This Row],[Full company name]],Table10[Revenue value]) -> 17000000
B73: Reporting projects' list
B74: Full project name | C74: Legal agreement reference number(s): contract, licence, lease, concession, … | D74: Affiliated companies, start with Operator | E74: Commodities (one commodity/row) | F74: Status | G74: Production (volume) | H74: Unit | I74: Production (value) | J74: Currency
B75: 106 | C75: Licence | D75: Hanson Limited | E75: Not available | F75: Not applicable | G75: Not applicable | H75: Not applicable | I75: Not applicable | J75: Not applicable
B76: 240 | C76: Licence | D76: Hanson Limited | E76: Not available | F76: Not applicable | G76: Not applicable | H76: Not applicable | I76: Not applicable | J76: Not applicable
B77: 435 | C77: Licence | D77: Hanson Limited | E77: Not available | F77: Not applicable | G77: Not applicable | H77: Not applicable | I77: Not applicable | J77: Not applicable
B78: 460 | C78: Licence | D78: Hanson Limited | E78: Not available | F78: Not applicable | G78: Not applicable | H78: Not applicable | I78: Not applicable | J78: Not applicable
B79: 465 | C79: Licence | D79: Hanson Limited | E79: Not available | F79: Not applicable | G79: Not applicable | H79: Not applicable | I79: Not applicable | J79: Not applicable
B80: 473 | C80: Licence | D80: Hanson Limited | E80: Not available | F80: Not applicable | G80: Not applicable | H80: Not applicable | I80: Not applicable | J80: Not applicable
B81: 526 | C81: Licence | D81: Hanson Limited | E81: Not available | F81: Not applicable | G81: Not applicable | H81: Not applicable | I81: Not applicable | J81: Not applicable
B82: 1081 | C82: Licence | D82: Breedon Group PLC | E82: Not available | F82: Not applicable | G82: Not applicable | H82: Not applicable | I82: Not applicable | J82: Not applicable
B83: 1082 | C83: Licence | D83: Breedon Group PLC | E83: Not available | F83: Not applicable | G83: Not applicable | H83: Not applicable | I83: Not applicable | J83: Not applicable
B84: 1520 | C84: Licence | D84: Volker Dredging Ltd | E84: Not available | F84: Not applicable | G84: Not applicable | H84: Not applicable | I84: Not applicable | J84: Not applicable
B85: 1601 | C85: Licence | D85: Hanson Limited | E85: Not available | F85: Not applicable | G85: Not applicable | H85: Not applicable | I85: Not applicable | J85: Not applicable
B86: 1602 | C86: Licence | D86: Hanson Limited | E86: Not available | F86: Not applicable | G86: Not applicable | H86: Not applicable | I86: Not applicable | J86: Not applicable
B87: 8775 | C87: Licence | D87: Britannia Aggregates Ltd | E87: Not available | F87: Not applicable | G87: Not applicable | H87: Not applicable | I87: Not applicable | J87: Not applicable
B88: 8777 | C88: Licence | D88: Volker Dredging Ltd | E88: Not available | F88: Not applicable | G88: Not applicable | H88: Not applicable | I88: Not applicable | J88: Not applicable
B89: 8795 | C89: Licence | D89: Britannia Aggregates Ltd | E89: Not available | F89: Not applicable | G89: Not applicable | H89: Not applicable | I89: Not applicable | J89: Not applicable
B90: 1015618 | C90: Licence | D90: Volker Dredging Ltd | E90: Not available | F90: Not applicable | G90: Not applicable | H90: Not applicable | I90: Not applicable | J90: Not applicable
B91: 1015725 | C91: Licence | D91: Volker Dredging Ltd | E91: Not available | F91: Not applicable | G91: Not applicable | H91: Not applicable | I91: Not applicable | J91: Not applicable
B92: 1015726 | C92: Licence | D92: Volker Dredging Ltd | E92: Not available | F92: Not applicable | G92: Not applicable | H92: Not applicable | I92: Not applicable | J92: Not applicable
B93: 2025257 | C93: Licence | D93: Breedon Group PLC | E93: Not available | F93: Not applicable | G93: Not applicable | H93: Not applicable | I93: Not applicable | J93: Not applicable
B94: 2031957 | C94: Licence | D94: Breedon Group PLC | E94: Not available | F94: Not applicable | G94: Not applicable | H94: Not applicable | I94: Not applicable | J94: Not applicable
B95: 3031958 | C95: Licence | D95: Breedon Group PLC | E95: Not available | F95: Not applicable | G95: Not applicable | H95: Not applicable | I95: Not applicable | J95: Not applicable
B96: 3031963 | C96: Licence | D96: Breedon Group PLC | E96: Not available | F96: Not applicable | G96: Not applicable | H96: Not applicable | I96: Not applicable | J96: Not applicable
B97: 4032180 | C97: Licence | D97: Breedon Group PLC | E97: Not available | F97: Not applicable | G97: Not applicable | H97: Not applicable | I97: Not applicable | J97: Not applicable
B98: 242-361 | C98: Licence | D98: Hanson Limited | E98: Not available | F98: Not applicable | G98: Not applicable | H98: Not applicable | I98: Not applicable | J98: Not applicable
B99: 401-2 | C99: Licence | D99: Hanson Limited | E99: Not available | F99: Not applicable | G99: Not applicable | H99: Not applicable | I99: Not applicable | J99: Not applicable
B100: Aker BP ASA | C100: E448 | D100: Aker BP ASA | E100: Oil & Gas | F100: For further field data, please check NSTA website: https://www.nstauthority.co.uk/data-centre/data-downloads-and-publications/field-data/ | G100: For further field data, please check NSTA website: https://www.nstauthority.co.uk/data-centre/data-downloads-and-publications/field-data/ | H100: For further field data, please check NSTA website: https://www.nstauthority.co.uk/data-centre/data-downloads-and-publications/field-data/ | I100: Not available | J100: Not available
B101: Alkane Energy (UK) Ltd | C101: AL10 | D101: Alkane Energy (UK) Ltd | E101: Oil & Gas | F101: For further field data, please check NSTA website: https://www.nstauthority.co.uk/data-centre/data-downloads-and-publications/field-data/ | G101: For further field data, please check NSTA website: https://www.nstauthority.co.uk/data-centre/data-downloads-and-publications/field-data/ | H101: For further field data, please check NSTA website: https://www.nstauthority.co.uk/data-centre/data-downloads-and-publications/field-data/ | I101: Not available | J101: Not available
B102: Alkane Energy (UK) Ltd | C102: EXL253 | D102: Alkane Energy (UK) Ltd | E102: Oil & Gas | F102: For further field data, please check NSTA website: https://www.nstauthority.co.uk/data-centre/data-downloads-and-publications/field-data/ | G102: For further field data, please check NSTA website: https://www.nstauthority.co.uk/data-centre/data-downloads-and-publications/field-data/ | H102: For further field data, please check NSTA website: https://www.nstauthority.co.uk/data-centre/data-downloads-and-publications/field-data/ | I102: Not available | J102: Not available
B103: Alkane Energy (UK) Ltd | C103: PEDL1 | D103: Alkane Energy (UK) Ltd | E103: Oil & Gas | F103: For further field data, please check NSTA website: https://www.nstauthority.co.uk/data-centre/data-downloads-and-publications/field-data/ | G103: For further field data, please check NSTA website: https://www.nstauthority.co.uk/data-centre/data-downloads-and-publications/field-data/ | H103: For further field data, please check NSTA website: https://www.nstauthority.co.uk/data-centre/data-downloads-and-publications/field-data/ | I103: Not available | J103: Not available
B104: Alkane Energy (UK) Ltd | C104: PEDL14 | D104: Alkane Energy (UK) Ltd | E104: Oil & Gas | F104: For further field data, please check NSTA website: https://www.nstauthority.co.uk/data-centre/data-downloads-and-publications/field-data/ | G104: For further field data, please check NSTA website: https://www.nstauthority.co.uk/data-centre/data-downloads-and-publications/field-data/ | H104: For further field data, please check NSTA website: https://www.nstauthority.co.uk/data-centre/data-downloads-and-publications/field-data/ | I104: Not available | J104: Not available
B105: Alkane Energy (UK) Ltd | C105: PEDL202 | D105: Alkane Energy (UK) Ltd | E105: Oil & Gas | F105: For further field data, please check NSTA website: https://www.nstauthority.co.uk/data-centre/data-downloads-and-publications/field-data/ | G105: For further field data, please check NSTA website: https://www.nstauthority.co.uk/data-centre/data-downloads-and-publications/field-data/ | H105: For further field data, please check NSTA website: https://www.nstauthority.co.uk/data-centre/data-downloads-and-publications/field-data/ | I105: Not available | J105: Not available
B106: Alkane Energy (UK) Ltd | C106: PEDL255 | D106: Alkane Energy (UK) Ltd | E106: Oil & Gas | F106: For further field data, please check NSTA website: https://www.nstauthority.co.uk/data-centre/data-downloads-and-publications/field-data/ | G106: For further field data, please check NSTA website: https://www.nstauthority.co.uk/data-centre/data-downloads-and-publications/field-data/ | H106: For further field data, please check NSTA website: https://www.nstauthority.co.uk/data-centre/data-downloads-and-publications/field-data/ | I106: Not available | J106: Not available
B107: Alkane Energy (UK) Ltd | C107: PEDL265 | D107: Alkane Energy (UK) Ltd | E107: Oil & Gas | F107: For further field data, please check NSTA website: https://www.nstauthority.co.uk/data-centre/data-downloads-and-publications/field-data/ | G107: For further field data, please check NSTA website: https://www.nstauthority.co.uk/data-centre/data-downloads-and-publications/field-data/ | H107: For further field data, please check NSTA website: https://www.nstauthority.co.uk/data-centre/data-downloads-and-publications/field-data/ | I107: Not available | J107: Not available
B108: Alkane Energy (UK) Ltd | C108: PEDL274 | D108: Alkane Energy (UK) Ltd | E108: Oil & Gas | F108: For further field data, please check NSTA website: https://www.nstauthority.co.uk/data-centre/data-downloads-and-publications/field-data/ | G108: For further field data, please check NSTA website: https://www.nstauthority.co.uk/data-centre/data-downloads-and-publications/field-data/ | H108: For further field data, please check NSTA website: https://www.nstauthority.co.uk/data-centre/data-downloads-and-publications/field-data/ | I108: Not available | J108: Not available
B109: Alkane Energy (UK) Ltd | C109: PEDL277 | D109: Alkane Energy (UK) Ltd | E109: Oil & Gas | F109: For further field data, please check NSTA website: https://www.nstauthority.co.uk/data-centre/data-downloads-and-publications/field-data/ | G109: For further field data, please check NSTA website: https://www.nstauthority.co.uk/data-centre/data-downloads-and-publications/field-data/ | H109: For further field data, please check NSTA website: https://www.nstauthority.co.uk/data-centre/data-downloads-and-publications/field-data/ | I109: Not available | J109: Not available
B110: Alkane Energy (UK) Ltd | C110: PEDL279 | D110: Alkane Energy (UK) Ltd | E110: Oil & Gas | F110: For further field data, please check NSTA website: https://www.nstauthority.co.uk/data-centre/data-downloads-and-publications/field-data/ | G110: For further field data, please check NSTA website: https://www.nstauthority.co.uk/data-centre/data-downloads-and-publications/field-data/ | H110: For further field data, please check NSTA website: https://www.nstauthority.co.uk/data-centre/data-downloads-and-publications/field-data/ | I110: Not available | J110: Not available
B111: Alkane Energy (UK) Ltd | C111: PEDL281 | D111: Alkane Energy (UK) Ltd | E111: Oil & Gas | F111: For further field data, please check NSTA website: https://www.nstauthority.co.uk/data-centre/data-downloads-and-publications/field-data/ | G111: For further field data, please check NSTA website: https://www.nstauthority.co.uk/data-centre/data-downloads-and-publications/field-data/ | H111: For further field data, please check NSTA website: https://www.nstauthority.co.uk/data-centre/data-downloads-and-publications/field-data/ | I111: Not available | J111: Not available
B112: Alkane Energy (UK) Ltd | C112: PEDL310 | D112: Alkane Energy (UK) Ltd | E112: Oil & Gas | F112: For further field data, please check NSTA website: https://www.nstauthority.co.uk/data-centre/data-downloads-and-publications/field-data/ | G112: For further field data, please check NSTA website: https://www.nstauthority.co.uk/data-centre/data-downloads-and-publications/field-data/ | H112: For further field data, please check NSTA website: https://www.nstauthority.co.uk/data-centre/data-downloads-and-publications/field-data/ | I112: Not available | J112: Not available
B113: ALPHA PETROLEUM RESOURCES LIMITED | C113: P1034 | D113: ALPHA PETROLEUM RESOURCES LIMITED | E113: Oil & Gas | F113: For further field data, please check NSTA website: https://www.nstauthority.co.uk/data-centre/data-downloads-and-publications/field-data/ | G113: For further field data, please check NSTA website: https://www.nstauthority.co.uk/data-centre/data-downloads-and-publications/field-data/ | H113: For further field data, please check NSTA website: https://www.nstauthority.co.uk/data-centre/data-downloads-and-publications/field-data/ | I113: Not available | J113: Not available
B114: Alpha Petroleum Resources Ltd | C114: P1062 | D114: Alpha Petroleum Resources Ltd | E114: Oil & Gas | F114: For further field data, please check NSTA website: https://www.nstauthority.co.uk/data-centre/data-downloads-and-publications/field-data/ | G114: For further field data, please check NSTA website: https://www.nstauthority.co.uk/data-centre/data-downloads-and-publications/field-data/ | H114: For further field data, please check NSTA website: https://www.nstauthority.co.uk/data-centre/data-downloads-and-publications/field-data/ | I114: Not available | J114: Not available
B115: Alpha Petroleum Resources Ltd | C115: P1070 | D115: Alpha Petroleum Resources Ltd | E115: Oil & Gas | F115: For further field data, please check NSTA website: https://www.nstauthority.co.uk/data-centre/data-downloads-and-publications/field-data/ | G115: For further field data, please check NSTA website: https://www.nstauthority.co.uk/data-centre/data-downloads-and-publications/field-data/ | H115: For further field data, please check NSTA website: https://www.nstauthority.co.uk/data-centre/data-downloads-and-publications/field-data/ | I115: Not available | J115: Not available
B116: Alpha Petroleum Resources Ltd | C116: P683 | D116: Alpha Petroleum Resources Ltd | E116: Oil & Gas | F116: For further field data, please check NSTA website: https://www.nstauthority.co.uk/data-centre/data-downloads-and-publications/field-data/ | G116: For further field data, please check NSTA website: https://www.nstauthority.co.uk/data-centre/data-downloads-and-publications/field-data/ | H116: For further field data, please check NSTA website: https://www.nstauthority.co.uk/data-centre/data-downloads-and-publications/field-data/ | I116: Not available | J116: Not available
B117: Altaquest Energy Corporation (UK) Ltd | C117: EXL141 | D117: Altaquest Energy Corporation (UK) Ltd | E117: Oil & Gas | F117: For further field data, please check NSTA website: https://www.nstauthority.co.uk/data-centre/data-downloads-and-publications/field-data/ | G117: For further field data, please check NSTA website: https://www.nstauthority.co.uk/data-centre/data-downloads-and-publications/field-data/ | H117: For further field data, please check NSTA website: https://www.nstauthority.co.uk/data-centre/data-downloads-and-publications/field-data/ | I117: Not available | J117: Not available
B118: Anasuria Hibiscus UK Limited | C118: P2518 | D118: Anasuria Hibiscus UK Limited | E118: Oil & Gas | F118: For further field data, please check NSTA website: https://www.nstauthority.co.uk/data-centre/data-downloads-and-publications/field-data/ | G118: For further field data, please check NSTA website: https://www.nstauthority.co.uk/data-centre/data-downloads-and-publications/field-data/ | H118: For further field data, please check NSTA website: https://www.nstauthority.co.uk/data-centre/data-downloads-and-publications/field-data/ | I118: Not available | J118: Not available
B119: Anasuria Hibiscus UK Limited | C119: P2535 | D119: Anasuria Hibiscus UK Limited | E119: Oil & Gas | F119: For further field data, please check NSTA website: https://www.nstauthority.co.uk/data-centre/data-downloads-and-publications/field-data/ | G119: For further field data, please check NSTA website: https://www.nstauthority.co.uk/data-centre/data-downloads-and-publications/field-data/ | H119: For further field data, please check NSTA website: https://www.nstauthority.co.uk/data-centre/data-downloads-and-publications/field-data/ | I119: Not available | J119: Not available
B120: Angus Energy Weald Basin No.3 Ltd | C120: PEDL244 | D120: Angus Energy Weald Basin No.3 Ltd | E120: Oil & Gas | F120: For further field data, please check NSTA website: https://www.nstauthority.co.uk/data-centre/data-downloads-and-publications/field-data/ | G120: For further field data, please check NSTA website: https://www.nstauthority.co.uk/data-centre/data-downloads-and-publications/field-data/ | H120: For further field data, please check NSTA website: https://www.nstauthority.co.uk/data-centre/data-downloads-and-publications/field-data/ | I120: Not available | J120: Not available
B121: Angus Energy Weald Basin No.3 Ltd | C121: PEDL5 | D121: Angus Energy Weald Basin No.3 Ltd | E121: Oil & Gas | F121: For further field data, please check NSTA website: https://www.nstauthority.co.uk/data-centre/data-downloads-and-publications/field-data/ | G121: For further field data, please check NSTA website: https://www.nstauthority.co.uk/data-centre/data-downloads-and-publications/field-data/ | H121: For further field data, please check NSTA website: https://www.nstauthority.co.uk/data-centre/data-downloads-and-publications/field-data/ | I121: Not available | J121: Not available
B122: Angus Energy Weald Basin No.3 Ltd | C122: PL235 | D122: Angus Energy Weald Basin No.3 Ltd | E122: Oil & Gas | F122: For further field data, please check NSTA website: https://www.nstauthority.co.uk/data-centre/data-downloads-and-publications/field-data/ | G122: For further field data, please check NSTA website: https://www.nstauthority.co.uk/data-centre/data-downloads-and-publications/field-data/ | H122: For further field data, please check NSTA website: https://www.nstauthority.co.uk/data-centre/data-downloads-and-publications/field-data/ | I122: Not available | J122: Not available
B123: Apache Beryl 1 Ltd | C123: P139 | D123: Apache Beryl 1 Ltd | E123: Oil & Gas | F123: For further field data, please check NSTA website: https://www.nstauthority.co.uk/data-centre/data-downloads-and-publications/field-data/ | G123: For further field data, please check NSTA website: https://www.nstauthority.co.uk/data-centre/data-downloads-and-publications/field-data/ | H123: For further field data, please check NSTA website: https://www.nstauthority.co.uk/data-centre/data-downloads-and-publications/field-data/ | I123: Not available | J123: Not available
B124: Apache Beryl 1 Ltd | C124: P1764 | D124: Apache Beryl 1 Ltd | E124: Oil & Gas | F124: For further field data, please check NSTA website: https://www.nstauthority.co.uk/data-centre/data-downloads-and-publications/field-data/ | G124: For further field data, please check NSTA website: https://www.nstauthority.co.uk/data-centre/data-downloads-and-publications/field-data/ | H124: For further field data, please check NSTA website: https://www.nstauthority.co.uk/data-centre/data-downloads-and-publications/field-data/ | I124: Not available | J124: Not available
B125: Apache Beryl 1 Ltd | C125: P1985 | D125: Apache Beryl 1 Ltd | E125: Oil & Gas | F125: For further field data, please check NSTA website: https://www.nstauthority.co.uk/data-centre/data-downloads-and-publications/field-data/ | G125: For further field data, please check NSTA website: https://www.nstauthority.co.uk/data-centre/data-downloads-and-publications/field-data/ | H125: For further field data, please check NSTA website: https://www.nstauthority.co.uk/data-centre/data-downloads-and-publications/field-data/ | I125: Not available | J125: Not available
B126: Apache Beryl 1 Ltd | C126: P1986 | D126: Apache Beryl 1 Ltd | E126: Oil & Gas | F126: For further field data, please check NSTA website: https://www.nstauthority.co.uk/data-centre/data-downloads-and-publications/field-data/ | G126: For further field data, please check NSTA website: https://www.nstauthority.co.uk/data-centre/data-downloads-and-publications/field-data/ | H126: For further field data, please check NSTA website: https://www.nstauthority.co.uk/data-centre/data-downloads-and-publications/field-data/ | I126: Not available | J126: Not available
B127: Apache Beryl 1 Ltd | C127: P2335 | D127: Apache Beryl 1 Ltd | E127: Oil & Gas | F127: For further field data, please check NSTA website: https://www.nstauthority.co.uk/data-centre/data-downloads-and-publications/field-data/ | G127: For further field data, please check NSTA website: https://www.nstauthority.co.uk/data-centre/data-downloads-and-publications/field-data/ | H127: For further field data, please check NSTA website: https://www.nstauthority.co.uk/data-centre/data-downloads-and-publications/field-data/ | I127: Not available | J127: Not available
B128: Apache Beryl 1 Ltd | C128: P2509 | D128: Apache Beryl 1 Ltd | E128: Oil & Gas | F128: For further field data, please check NSTA website: https://www.nstauthority.co.uk/data-centre/data-downloads-and-publications/field-data/ | G128: For further field data, please check NSTA website: https://www.nstauthority.co.uk/data-centre/data-downloads-and-publications/field-data/ | H128: For further field data, please check NSTA website: https://www.nstauthority.co.uk/data-centre/data-downloads-and-publications/field-data/ | I128: Not available | J128: Not available
B129: Apache Beryl 1 Ltd | C129: P2510 | D129: Apache Beryl 1 Ltd | E129: Oil & Gas | F129: For further field data, please check NSTA website: https://www.nstauthority.co.uk/data-centre/data-downloads-and-publications/field-data/ | G129: For further field data, please check NSTA website: https://www.nstauthority.co.uk/data-centre/data-downloads-and-publications/field-data/ | H129: For further field data, please check NSTA website: https://www.nstauthority.co.uk/data-centre/data-downloads-and-publications/field-data/ | I129: Not available | J129: Not available
B130: Apache Beryl 1 Ltd | C130: P337 | D130: Apache Beryl 1 Ltd | E130: Oil & Gas | F130: For further field data, please check NSTA website: https://www.nstauthority.co.uk/data-centre/data-downloads-and-publications/field-data/ | G130: For further field data, please check NSTA website: https://www.nstauthority.co.uk/data-centre/data-downloads-and-publications/field-data/ | H130: For further field data, please check NSTA website: https://www.nstauthority.co.uk/data-centre/data-downloads-and-publications/field-data/ | I130: Not available | J130: Not available
B131: Apache Beryl 1 Ltd | C131: P87 | D131: Apache Beryl 1 Ltd | E131: Oil & Gas | F131: For further field data, please check NSTA website: https://www.nstauthority.co.uk/data-centre/data-downloads-and-publications/field-data/ | G131: For further field data, please check NSTA website: https://www.nstauthority.co.uk/data-centre/data-downloads-and-publications/field-data/ | H131: For further field data, please check NSTA website: https://www.nstauthority.co.uk/data-centre/data-downloads-and-publications/field-data/ | I131: Not available | J131: Not available
B132: APACHE BERYL I LIMITED | C132: P2353 | D132: APACHE BERYL I LIMITED | E132: Oil & Gas | F132: For further field data, please check NSTA website: https://www.nstauthority.co.uk/data-centre/data-downloads-and-publications/field-data/ | G132: For further field data, please check NSTA website: https://www.nstauthority.co.uk/data-centre/data-downloads-and-publications/field-data/ | H132: For further field data, please check NSTA website: https://www.nstauthority.co.uk/data-centre/data-downloads-and-publications/field-data/ | I132: Not available | J132: Not available
B133: APACHE BERYL I LIMITED | C133: P2354 | D133: APACHE BERYL I LIMITED | E133: Oil & Gas | F133: For further field data, please check NSTA website: https://www.nstauthority.co.uk/data-centre/data-downloads-and-publications/field-data/ | G133: For further field data, please check NSTA website: https://www.nstauthority.co.uk/data-centre/data-downloads-and-publications/field-data/ | H133: For further field data, please check NSTA website: https://www.nstauthority.co.uk/data-centre/data-downloads-and-publications/field-data/ | I133: Not available | J133: Not available
B134: APACHE BERYL I LIMITED | C134: P2355 | D134: APACHE BERYL I LIMITED | E134: Oil & Gas | F134: For further field data, please check NSTA website: https://www.nstauthority.co.uk/data-centre/data-downloads-and-publications/field-data/ | G134: For further field data, please check NSTA website: https://www.nstauthority.co.uk/data-centre/data-downloads-and-publications/field-data/ | H134: For further field data, please check NSTA website: https://www.nstauthority.co.uk/data-centre/data-downloads-and-publications/field-data/ | I134: Not available | J134: Not available
B135: APACHE BERYL I LIMITED | C135: P254 | D135: APACHE BERYL I LIMITED | E135: Oil & Gas | F135: For further field data, please check NSTA website: https://www.nstauthority.co.uk/data-centre/data-downloads-and-publications/field-data/ | G135: For further field data, please check NSTA website: https://www.nstauthority.co.uk/data-centre/data-downloads-and-publications/field-data/ | H135: For further field data, please check NSTA website: https://www.nstauthority.co.uk/data-centre/data-downloads-and-publications/field-data/ | I135: Not available | J135: Not available
B136: APACHE NORTH SEA LIMITED | C136: P2346 | D136: APACHE NORTH SEA LIMITED | E136: Oil & Gas | F136: For further field data, please check NSTA website: https://www.nstauthority.co.uk/data-centre/data-downloads-and-publications/field-data/ | G136: For further field data, please check NSTA website: https://www.nstauthority.co.uk/data-centre/data-downloads-and-publications/field-data/ | H136: For further field data, please check NSTA website: https://www.nstauthority.co.uk/data-centre/data-downloads-and-publications/field-data/ | I136: Not available | J136: Not available
B137: APACHE NORTH SEA LIMITED | C137: P2375 | D137: APACHE NORTH SEA LIMITED | E137: Oil & Gas | F137: For further field data, please check NSTA website: https://www.nstauthority.co.uk/data-centre/data-downloads-and-publications/field-data/ | G137: For further field data, please check NSTA website: https://www.nstauthority.co.uk/data-centre/data-downloads-and-publications/field-data/ | H137: For further field data, please check NSTA website: https://www.nstauthority.co.uk/data-centre/data-downloads-and-publications/field-data/ | I137: Not available | J137: Not available
B138: Apache North Sea Ltd | C138: P246 | D138: Apache North Sea Ltd | E138: Oil & Gas | F138: For further field data, please check NSTA website: https://www.nstauthority.co.uk/data-centre/data-downloads-and-publications/field-data/ | G138: For further field data, please check NSTA website: https://www.nstauthority.co.uk/data-centre/data-downloads-and-publications/field-data/ | H138: For further field data, please check NSTA website: https://www.nstauthority.co.uk/data-centre/data-downloads-and-publications/field-data/ | I138: Not available | J138: Not available
B139: Apache North Sea Ltd | C139: P2529 | D139: Apache North Sea Ltd | E139: Oil & Gas | F139: For further field data, please check NSTA website: https://www.nstauthority.co.uk/data-centre/data-downloads-and-publications/field-data/ | G139: For further field data, please check NSTA website: https://www.nstauthority.co.uk/data-centre/data-downloads-and-publications/field-data/ | H139: For further field data, please check NSTA website: https://www.nstauthority.co.uk/data-centre/data-downloads-and-publications/field-data/ | I139: Not available | J139: Not available
B140: Apache North Sea Ltd | C140: P2539 | D140: Apache North Sea Ltd | E140: Oil & Gas | F140: For further field data, please check NSTA website: https://www.nstauthority.co.uk/data-centre/data-downloads-and-publications/field-data/ | G140: For further field data, please check NSTA website: https://www.nstauthority.co.uk/data-centre/data-downloads-and-publications/field-data/ | H140: For further field data, please check NSTA website: https://www.nstauthority.co.uk/data-centre/data-downloads-and-publications/field-data/ | I140: Not available | J140: Not available
B141: ARCO BRITISH LIMITED, LLC | C141: P1937 | D141: ARCO BRITISH LIMITED, LLC | E141: Oil & Gas | F141: For further field data, please check NSTA website: https://www.nstauthority.co.uk/data-centre/data-downloads-and-publications/field-data/ | G141: For further field data, please check NSTA website: https://www.nstauthority.co.uk/data-centre/data-downloads-and-publications/field-data/ | H141: For further field data, please check NSTA website: https://www.nstauthority.co.uk/data-centre/data-downloads-and-publications/field-data/ | I141: Not available | J141: Not available
B142: Area 137 Area A 0010099 | C142: Licence | D142: CEMEX UK MARINE LTD | E142: Not available | F142: Not applicable | G142: Not applicable | H142: Not applicable | I142: Not applicable | J142: Not applicable
B143: Area 340 Nab 0010093 | C143: Licence | D143: CEMEX UK MARINE LTD | E143: Not available | F143: Not applicable | G143: Not applicable | H143: Not applicable | I143: Not applicable | J143: Not applicable
B144: Area 395/1-2, 750,000 tpa | C144: Licence | D144: AIUK (Kendalls) | E144: Not available | F144: Not applicable | G144: Not applicable | H144: Not applicable | I144: Not applicable | J144: Not applicable
B145: Area 407 St Catherine's 0010105 | C145: Licence | D145: CEMEX UK MARINE LTD | E145: Not available | F145: Not applicable | G145: Not applicable | H145: Not applicable | I145: Not applicable | J145: Not applicable
B146: Area 430 Southwold East 0010051 | C146: Licence | D146: CEMEX UK MARINE LTD | E146: Not available | F146: Not applicable | G146: Not applicable | H146: Not applicable | I146: Not applicable | J146: Not applicable
B147: Area 451, 1,250,000 tpa (mix) | C147: Licence | D147: Westminster Gravels Ltd | E147: Not available | F147: Not applicable | G147: Not applicable | H147: Not applicable | I147: Not applicable | J147: Not applicable
B148: Area 453 Owers Extension 0016243 | C148: Licence | D148: CEMEX UK MARINE LTD | E148: Not available | F148: Not applicable | G148: Not applicable | H148: Not applicable | I148: Not applicable | J148: Not applicable
B149: Area 458/464 West Bassurelle 0013234 | C149: Licence | D149: CEMEX UK MARINE LTD | E149: Not available | F149: Not applicable | G149: Not applicable | H149: Not applicable | I149: Not applicable | J149: Not applicable
B150: Area 460 South Hastings 0016246 | C150: Licence | D150: CEMEX UK MARINE LTD | E150: Not available | F150: Not applicable | G150: Not applicable | H150: Not applicable | I150: Not applicable | J150: Not applicable
B151: Area 473 Greenwich Light East 0013027 | C151: Licence | D151: CEMEX UK MARINE LTD | E151: Not available | F151: Not applicable | G151: Not applicable | H151: Not applicable | I151: Not applicable | J151: Not applicable
B152: Area 478, 1,000,000 tpa | C152: Licence | D152: DEME Building Materials Ltd | E152: Not available | F152: Not applicable | G152: Not applicable | H152: Not applicable | I152: Not applicable | J152: Not applicable
B153: Area 483, 600,000 tpa | C153: Licence | D153: DEME Building Materials Ltd | E153: Not available | F153: Not applicable | G153: Not applicable | H153: Not applicable | I153: Not applicable | J153: Not applicable
B154: Area 484, 600,000 tpa | C154: Licence | D154: DEME Building Materials Ltd | E154: Not available | F154: Not applicable | G154: Not applicable | H154: Not applicable | I154: Not applicable | J154: Not applicable
B155: Area 506, 800,000 tpa | C155: Licence | D155: DEME Building Materials Ltd | E155: Not available | F155: Not applicable | G155: Not applicable | H155: Not applicable | I155: Not applicable | J155: Not applicable
B156: Area 507/1- Shipwash 0016273 | C156: Licence | D156: CEMEX UK MARINE LTD | E156: Not available | F156: Not applicable | G156: Not applicable | H156: Not applicable | I156: Not applicable | J156: Not applicable
B157: Area 510/1-2 Longsand 0016276 | C157: Licence | D157: CEMEX UK MARINE LTD | E157: Not available | F157: Not applicable | G157: Not applicable | H157: Not applicable | I157: Not applicable | J157: Not applicable
B158: Area 511 Lowestoft 0018726 | C158: Licence | D158: CEMEX UK MARINE LTD | E158: Not available | F158: Not applicable | G158: Not applicable | H158: Not applicable | I158: Not applicable | J158: Not applicable
B159: Area 512 ex 251/454 0016244 | C159: Licence | D159: CEMEX UK MARINE LTD | E159: Not available | F159: Not applicable | G159: Not applicable | H159: Not applicable | I159: Not applicable | J159: Not applicable
B160: Area 513 Lowestoft 0018727 | C160: Licence | D160: CEMEX UK MARINE LTD | E160: Not available | F160: Not applicable | G160: Not applicable | H160: Not applicable | I160: Not applicable | J160: Not applicable
B161: Area 514/1-4 Humber 0016242 | C161: Licence | D161: CEMEX UK MARINE LTD | E161: Not available | F161: Not applicable | G161: Not applicable | H161: Not applicable | I161: Not applicable | J161: Not applicable
B162: Area 522 West Wight 0019141 | C162: Licence | D162: CEMEX UK MARINE LTD | E162: Not available | F162: Not applicable | G162: Not applicable | H162: Not applicable | I162: Not applicable | J162: Not applicable
B163: Area 524, 550,000 tpa, PA | C163: Licence | D163: DEME Building Materials Ltd | E163: Not available | F163: Not applicable | G163: Not applicable | H163: Not applicable | I163: Not applicable | J163: Not applicable
B164: Area 526 Culver Extension 0019145 | C164: Licence | D164: CEMEX UK MARINE LTD | E164: Not available | F164: Not applicable | G164: Not applicable | H164: Not applicable | I164: Not applicable | J164: Not applicable
B165: Area481 | C165: Licence | D165: Van Oord UK Ltd | E165: Not available | F165: Not applicable | G165: Not applicable | H165: Not applicable | I165: Not applicable | J165: Not applicable
B166: Athena Exploration Limited | C166: P2417 | D166: Athena Exploration Limited | E166: Oil & Gas | F166: For further field data, please check NSTA website: https://www.nstauthority.co.uk/data-centre/data-downloads-and-publications/field-data/ | G166: For further field data, please check NSTA website: https://www.nstauthority.co.uk/data-centre/data-downloads-and-publications/field-data/ | H166: For further field data, please check NSTA website: https://www.nstauthority.co.uk/data-centre/data-downloads-and-publications/field-data/ | I166: Not available | J166: Not available
B167: Athena Exploration Limited | C167: P2595 | D167: Athena Exploration Limited | E167: Oil & Gas | F167: For further field data, please check NSTA website: https://www.nstauthority.co.uk/data-centre/data-downloads-and-publications/field-data/ | G167: For further field data, please check NSTA website: https://www.nstauthority.co.uk/data-centre/data-downloads-and-publications/field-data/ | H167: For further field data, please check NSTA website: https://www.nstauthority.co.uk/data-centre/data-downloads-and-publications/field-data/ | I167: Not available | J167: Not available
B168: Athena Exploration Limited | C168: P2597 | D168: Athena Exploration Limited | E168: Oil & Gas | F168: For further field data, please check NSTA website: https://www.nstauthority.co.uk/data-centre/data-downloads-and-publications/field-data/ | G168: For further field data, please check NSTA website: https://www.nstauthority.co.uk/data-centre/data-downloads-and-publications/field-data/ | H168: For further field data, please check NSTA website: https://www.nstauthority.co.uk/data-centre/data-downloads-and-publications/field-data/ | I168: Not available | J168: Not available
B169: Athena Exploration Limited | C169: P2603 | D169: Athena Exploration Limited | E169: Oil & Gas | F169: For further field data, please check NSTA website: https://www.nstauthority.co.uk/data-centre/data-downloads-and-publications/field-data/ | G169: For further field data, please check NSTA website: https://www.nstauthority.co.uk/data-centre/data-downloads-and-publications/field-data/ | H169: For further field data, please check NSTA website: https://www.nstauthority.co.uk/data-centre/data-downloads-and-publications/field-data/ | I169: Not available | J169: Not available
B170: Aurora Energy Resources Ltd | C170: PEDL164 | D170: Aurora Energy Resources Ltd | E170: Oil & Gas | F170: For further field data, please check NSTA website: https://www.nstauthority.co.uk/data-centre/data-downloads-and-publications/field-data/ | G170: For further field data, please check NSTA website: https://www.nstauthority.co.uk/data-centre/data-downloads-and-publications/field-data/ | H170: For further field data, please check NSTA website: https://www.nstauthority.co.uk/data-centre/data-downloads-and-publications/field-data/ | I170: Not available | J170: Not available
B171: Aurora Energy Resources Ltd | C171: PEDL252 | D171: Aurora Energy Resources Ltd | E171: Oil & Gas | F171: For further field data, please check NSTA website: https://www.nstauthority.co.uk/data-centre/data-downloads-and-publications/field-data/ | G171: For further field data, please check NSTA website: https://www.nstauthority.co.uk/data-centre/data-downloads-and-publications/field-data/ | H171: For further field data, please check NSTA website: https://www.nstauthority.co.uk/data-centre/data-downloads-and-publications/field-data/ | I171: Not available | J171: Not available
B172: Aurora Energy Resources Ltd | C172: PEDL261 | D172: Aurora Energy Resources Ltd | E172: Oil & Gas | F172: For further field data, please check NSTA website: https://www.nstauthority.co.uk/data-centre/data-downloads-and-publications/field-data/ | G172: For further field data, please check NSTA website: https://www.nstauthority.co.uk/data-centre/data-downloads-and-publications/field-data/ | H172: For further field data, please check NSTA website: https://www.nstauthority.co.uk/data-centre/data-downloads-and-publications/field-data/ | I172: Not available | J172: Not available
B173: Aurora Energy Resources Ltd | C173: PEDL267 | D173: Aurora Energy Resources Ltd | E173: Oil & Gas | F173: For further field data, please check NSTA website: https://www.nstauthority.co.uk/data-centre/data-downloads-and-publications/field-data/ | G173: For further field data, please check NSTA website: https://www.nstauthority.co.uk/data-centre/data-downloads-and-publications/field-data/ | H173: For further field data, please check NSTA website: https://www.nstauthority.co.uk/data-centre/data-downloads-and-publications/field-data/ | I173: Not available | J173: Not available
B174: AXXIS GEO SOLUTIONS AS | C174: E456 | D174: AXXIS GEO SOLUTIONS AS | E174: Oil & Gas | F174: For further field data, please check NSTA website: https://www.nstauthority.co.uk/data-centre/data-downloads-and-publications/field-data/ | G174: For further field data, please check NSTA website: https://www.nstauthority.co.uk/data-centre/data-downloads-and-publications/field-data/ | H174: For further field data, please check NSTA website: https://www.nstauthority.co.uk/data-centre/data-downloads-and-publications/field-data/ | I174: Not available | J174: Not available
B175: BG International Ltd | C175: P98 | D175: BG International Ltd | E175: Oil & Gas | F175: For further field data, please check NSTA website: https://www.nstauthority.co.uk/data-centre/data-downloads-and-publications/field-data/ | G175: For further field data, please check NSTA website: https://www.nstauthority.co.uk/data-centre/data-downloads-and-publications/field-data/ | H175: For further field data, please check NSTA website: https://www.nstauthority.co.uk/data-centre/data-downloads-and-publications/field-data/ | I175: Not available | J175: Not available
B176: Biogas Technology (Sawtry) Ltd | C176: EXL276 | D176: Biogas Technology (Sawtry) Ltd | E176: Oil & Gas | F176: For further field data, please check NSTA website: https://www.nstauthority.co.uk/data-centre/data-downloads-and-publications/field-data/ | G176: For further field data, please check NSTA website: https://www.nstauthority.co.uk/data-centre/data-downloads-and-publications/field-data/ | H176: For further field data, please check NSTA website: https://www.nstauthority.co.uk/data-centre/data-downloads-and-publications/field-data/ | I176: Not available | J176: Not available
B177: BLACKLAND PARK EXPLORATION LIMITED | C177: PL199 | D177: BLACKLAND PARK EXPLORATION LIMITED | E177: Oil & Gas | F177: For further field data, please check NSTA website: https://www.nstauthority.co.uk/data-centre/data-downloads-and-publications/field-data/ | G177: For further field data, please check NSTA website: https://www.nstauthority.co.uk/data-centre/data-downloads-and-publications/field-data/ | H177: For further field data, please check NSTA website: https://www.nstauthority.co.uk/data-centre/data-downloads-and-publications/field-data/ | I177: Not available | J177: Not available
B178: Boulby Mine | C178: Licence | D178: Cleveland Potash Ltd | E178: Not available | F178: Not applicable | G178: Not applicable | H178: Not applicable | I178: Not applicable | J178: Not applicable
B179: BP Exploration Operating Co Limited | C179: E470 | D179: BP Exploration Operating Co Limited | E179: Oil & Gas | F179: For further field data, please check NSTA website: https://www.nstauthority.co.uk/data-centre/data-downloads-and-publications/field-data/ | G179: For further field data, please check NSTA website: https://www.nstauthority.co.uk/data-centre/data-downloads-and-publications/field-data/ | H179: For further field data, please check NSTA website: https://www.nstauthority.co.uk/data-centre/data-downloads-and-publications/field-data/ | I179: Not available | J179: Not available
B180: BP EXPLORATION OPERATING COMPANY LIMITED | C180: E442 | D180: BP EXPLORATION OPERATING COMPANY LIMITED | E180: Oil & Gas | F180: For further field data, please check NSTA website: https://www.nstauthority.co.uk/data-centre/data-downloads-and-publications/field-data/ | G180: For further field data, please check NSTA website: https://www.nstauthority.co.uk/data-centre/data-downloads-and-publications/field-data/ | H180: For further field data, please check NSTA website: https://www.nstauthority.co.uk/data-centre/data-downloads-and-publications/field-data/ | I180: Not available | J180: Not available
B181: BP Exploration Operating Company Limited | C181: P1570 | D181: BP Exploration Operating Company Limited | E181: Oil & Gas | F181: For further field data, please check NSTA website: https://www.nstauthority.co.uk/data-centre/data-downloads-and-publications/field-data/ | G181: For further field data, please check NSTA website: https://www.nstauthority.co.uk/data-centre/data-downloads-and-publications/field-data/ | H181: For further field data, please check NSTA website: https://www.nstauthority.co.uk/data-centre/data-downloads-and-publications/field-data/ | I181: Not available | J181: Not available
B182: BP Exploration Operating Company Limited | C182: P165 | D182: BP Exploration Operating Company Limited | E182: Oil & Gas | F182: For further field data, please check NSTA website: https://www.nstauthority.co.uk/data-centre/data-downloads-and-publications/field-data/ | G182: For further field data, please check NSTA website: https://www.nstauthority.co.uk/data-centre/data-downloads-and-publications/field-data/ | H182: For further field data, please check NSTA website: https://www.nstauthority.co.uk/data-centre/data-downloads-and-publications/field-data/ | I182: Not available | J182: Not available
B183: BP Exploration Operating Company Limited | C183: P168 | D183: BP Exploration Operating Company Limited | E183: Oil & Gas | F183: For further field data, please check NSTA website: https://www.nstauthority.co.uk/data-centre/data-downloads-and-publications/field-data/ | G183: For further field data, please check NSTA website: https://www.nstauthority.co.uk/data-centre/data-downloads-and-publications/field-data/ | H183: For further field data, please check NSTA website: https://www.nstauthority.co.uk/data-centre/data-downloads-and-publications/field-data/ | I183: Not available | J183: Not available
B184: BP Exploration Operating Company Limited | C184: P1777 | D184: BP Exploration Operating Company Limited | E184: Oil & Gas | F184: For further field data, please check NSTA website: https://www.nstauthority.co.uk/data-centre/data-downloads-and-publications/field-data/ | G184: For further field data, please check NSTA website: https://www.nstauthority.co.uk/data-centre/data-downloads-and-publications/field-data/ | H184: For further field data, please check NSTA website: https://www.nstauthority.co.uk/data-centre/data-downloads-and-publications/field-data/ | I184: Not available | J184: Not available
B185: BP Exploration Operating Company Limited | C185: P2189 | D185: BP Exploration Operating Company Limited | E185: Oil & Gas | F185: For further field data, please check NSTA website: https://www.nstauthority.co.uk/data-centre/data-downloads-and-publications/field-data/ | G185: For further field data, please check NSTA website: https://www.nstauthority.co.uk/data-centre/data-downloads-and-publications/field-data/ | H185: For further field data, please check NSTA website: https://www.nstauthority.co.uk/data-centre/data-downloads-and-publications/field-data/ | I185: Not available | J185: Not available
B186: BP Exploration Operating Company Limited | C186: P2293 | D186: BP Exploration Operating Company Limited | E186: Oil & Gas | F186: For further field data, please check NSTA website: https://www.nstauthority.co.uk/data-centre/data-downloads-and-publications/field-data/ | G186: For further field data, please check NSTA website: https://www.nstauthority.co.uk/data-centre/data-downloads-and-publications/field-data/ | H186: For further field data, please check NSTA website: https://www.nstauthority.co.uk/data-centre/data-downloads-and-publications/field-data/ | I186: Not available | J186: Not available
B187: BP EXPLORATION OPERATING COMPANY LIMITED | C187: P2347 | D187: BP EXPLORATION OPERATING COMPANY LIMITED | E187: Oil & Gas | F187: For further field data, please check NSTA website: https://www.nstauthority.co.uk/data-centre/data-downloads-and-publications/field-data/ | G187: For further field data, please check NSTA website: https://www.nstauthority.co.uk/data-centre/data-downloads-and-publications/field-data/ | H187: For further field data, please check NSTA website: https://www.nstauthority.co.uk/data-centre/data-downloads-and-publications/field-data/ | I187: Not available | J187: Not available
B188: BP EXPLORATION OPERATING COMPANY LIMITED | C188: P2410 | D188: BP EXPLORATION OPERATING COMPANY LIMITED | E188: Oil & Gas | F188: For further field data, please check NSTA website: https://www.nstauthority.co.uk/data-centre/data-downloads-and-publications/field-data/ | G188: For further field data, please check NSTA website: https://www.nstauthority.co.uk/data-centre/data-downloads-and-publications/field-data/ | H188: For further field data, please check NSTA website: https://www.nstauthority.co.uk/data-centre/data-downloads-and-publications/field-data/ | I188: Not available | J188: Not available
B189: BP EXPLORATION OPERATING COMPANY LIMITED | C189: P2413 | D189: BP EXPLORATION OPERATING COMPANY LIMITED | E189: Oil & Gas | F189: For further field data, please check NSTA website: https://www.nstauthority.co.uk/data-centre/data-downloads-and-publications/field-data/ | G189: For further field data, please check NSTA website: https://www.nstauthority.co.uk/data-centre/data-downloads-and-publications/field-data/ | H189: For further field data, please check NSTA website: https://www.nstauthority.co.uk/data-centre/data-downloads-and-publications/field-data/ | I189: Not available | J189: Not available
B190: BP Exploration Operating Company Limited | C190: P2452 | D190: BP Exploration Operating Company Limited | E190: Oil & Gas | F190: For further field data, please check NSTA website: https://www.nstauthority.co.uk/data-centre/data-downloads-and-publications/field-data/ | G190: For further field data, please check NSTA website: https://www.nstauthority.co.uk/data-centre/data-downloads-and-publications/field-data/ | H190: For further field data, please check NSTA website: https://www.nstauthority.co.uk/data-centre/data-downloads-and-publications/field-data/ | I190: Not available | J190: Not available
B191: BP EXPLORATION OPERATING COMPANY LIMITED | C191: P2491 | D191: BP EXPLORATION OPERATING COMPANY LIMITED | E191: Oil & Gas | F191: For further field data, please check NSTA website: https://www.nstauthority.co.uk/data-centre/data-downloads-and-publications/field-data/ | G191: For further field data, please check NSTA website: https://www.nstauthority.co.uk/data-centre/data-downloads-and-publications/field-data/ | H191: For further field data, please check NSTA website: https://www.nstauthority.co.uk/data-centre/data-downloads-and-publications/field-data/ | I191: Not available | J191: Not available
B192: BP Exploration Operating Company Limited | C192: P2541 | D192: BP Exploration Operating Company Limited | E192: Oil & Gas | F192: For further field data, please check NSTA website: https://www.nstauthority.co.uk/data-centre/data-downloads-and-publications/field-data/ | G192: For further field data, please check NSTA website: https://www.nstauthority.co.uk/data-centre/data-downloads-and-publications/field-data/ | H192: For further field data, please check NSTA website: https://www.nstauthority.co.uk/data-centre/data-downloads-and-publications/field-data/ | I192: Not available | J192: Not available
B193: BP Exploration Operating Company Limited | C193: P2590 | D193: BP Exploration Operating Company Limited | E193: Oil & Gas | F193: For further field data, please check NSTA website: https://www.nstauthority.co.uk/data-centre/data-downloads-and-publications/field-data/ | G193: For further field data, please check NSTA website: https://www.nstauthority.co.uk/data-centre/data-downloads-and-publications/field-data/ | H193: For further field data, please check NSTA website: https://www.nstauthority.co.uk/data-centre/data-downloads-and-publications/field-data/ | I193: Not available | J193: Not available
B194: BP Exploration Operating Company Limited | C194: P358 | D194: BP Exploration Operating Company Limited | E194: Oil & Gas | F194: For further field data, please check NSTA website: https://www.nstauthority.co.uk/data-centre/data-downloads-and-publications/field-data/ | G194: For further field data, please check NSTA website: https://www.nstauthority.co.uk/data-centre/data-downloads-and-publications/field-data/ | H194: For further field data, please check NSTA website: https://www.nstauthority.co.uk/data-centre/data-downloads-and-publications/field-data/ | I194: Not available | J194: Not available
B195: BP Exploration Operating Company Limited | C195: P363 | D195: BP Exploration Operating Company Limited | E195: Oil & Gas | F195: For further field data, please check NSTA website: https://www.nstauthority.co.uk/data-centre/data-downloads-and-publications/field-data/ | G195: For further field data, please check NSTA website: https://www.nstauthority.co.uk/data-centre/data-downloads-and-publications/field-data/ | H195: For further field data, please check NSTA website: https://www.nstauthority.co.uk/data-centre/data-downloads-and-publications/field-data/ | I195: Not available | J195: Not available
B196: BP Exploration Operating Company Limited | C196: P57 | D196: BP Exploration Operating Company Limited | E196: Oil & Gas | F196: For further field data, please check NSTA website: https://www.nstauthority.co.uk/data-centre/data-downloads-and-publications/field-data/ | G196: For further field data, please check NSTA website: https://www.nstauthority.co.uk/data-centre/data-downloads-and-publications/field-data/ | H196: For further field data, please check NSTA website: https://www.nstauthority.co.uk/data-centre/data-downloads-and-publications/field-data/ | I196: Not available | J196: Not available
B197: BP Exploration Operating Company Limited | C197: P803 | D197: BP Exploration Operating Company Limited | E197: Oil & Gas | F197: For further field data, please check NSTA website: https://www.nstauthority.co.uk/data-centre/data-downloads-and-publications/field-data/ | G197: For further field data, please check NSTA website: https://www.nstauthority.co.uk/data-centre/data-downloads-and-publications/field-data/ | H197: For further field data, please check NSTA website: https://www.nstauthority.co.uk/data-centre/data-downloads-and-publications/field-data/ | I197: Not available | J197: Not available
B198: BP Exploration Operating Company Limited | C198: P92 | D198: BP Exploration Operating Company Limited | E198: Oil & Gas | F198: For further field data, please check NSTA website: https://www.nstauthority.co.uk/data-centre/data-downloads-and-publications/field-data/ | G198: For further field data, please check NSTA website: https://www.nstauthority.co.uk/data-centre/data-downloads-and-publications/field-data/ | H198: For further field data, please check NSTA website: https://www.nstauthority.co.uk/data-centre/data-downloads-and-publications/field-data/ | I198: Not available | J198: Not available
B199: BRIDGE PETROLEUM 1 LIMITED | C199: P96 | D199: BRIDGE PETROLEUM 1 LIMITED | E199: Oil & Gas | F199: For further field data, please check NSTA website: https://www.nstauthority.co.uk/data-centre/data-downloads-and-publications/field-data/ | G199: For further field data, please check NSTA website: https://www.nstauthority.co.uk/data-centre/data-downloads-and-publications/field-data/ | H199: For further field data, please check NSTA website: https://www.nstauthority.co.uk/data-centre/data-downloads-and-publications/field-data/ | I199: Not available | J199: Not available
B200: BRIDGE PETROLEUM 3 LIMITED | C200: P184 | D200: BRIDGE PETROLEUM 3 LIMITED | E200: Oil & Gas | F200: For further field data, please check NSTA website: https://www.nstauthority.co.uk/data-centre/data-downloads-and-publications/field-data/ | G200: For further field data, please check NSTA website: https://www.nstauthority.co.uk/data-centre/data-downloads-and-publications/field-data/ | H200: For further field data, please check NSTA website: https://www.nstauthority.co.uk/data-centre/data-downloads-and-publications/field-data/ | I200: Not available | J200: Not available
B201: BRIDGE PETROLEUM 3 LIMITED | C201: P474 | D201: BRIDGE PETROLEUM 3 LIMITED | E201: Oil & Gas | F201: For further field data, please check NSTA website: https://www.nstauthority.co.uk/data-centre/data-downloads-and-publications/field-data/ | G201: For further field data, please check NSTA website: https://www.nstauthority.co.uk/data-centre/data-downloads-and-publications/field-data/ | H201: For further field data, please check NSTA website: https://www.nstauthority.co.uk/data-centre/data-downloads-and-publications/field-data/ | I201: Not available | J201: Not available
B202: BRIDGE PETROLEUM LIMITED | C202: P2420 | D202: BRIDGE PETROLEUM LIMITED | E202: Oil & Gas | F202: For further field data, please check NSTA website: https://www.nstauthority.co.uk/data-centre/data-downloads-and-publications/field-data/ | G202: For further field data, please check NSTA website: https://www.nstauthority.co.uk/data-centre/data-downloads-and-publications/field-data/ | H202: For further field data, please check NSTA website: https://www.nstauthority.co.uk/data-centre/data-downloads-and-publications/field-data/ | I202: Not available | J202: Not available
B203: BRIDGE PETROLEUM LIMITED | C203: P2426 | D203: BRIDGE PETROLEUM LIMITED | E203: Oil & Gas | F203: For further field data, please check NSTA website: https://www.nstauthority.co.uk/data-centre/data-downloads-and-publications/field-data/ | G203: For further field data, please check NSTA website: https://www.nstauthority.co.uk/data-centre/data-downloads-and-publications/field-data/ | H203: For further field data, please check NSTA website: https://www.nstauthority.co.uk/data-centre/data-downloads-and-publications/field-data/ | I203: Not available | J203: Not available
B204: Britoil Ltd | C204: P111 | D204: Britoil Ltd | E204: Oil & Gas | F204: For further field data, please check NSTA website: https://www.nstauthority.co.uk/data-centre/data-downloads-and-publications/field-data/ | G204: For further field data, please check NSTA website: https://www.nstauthority.co.uk/data-centre/data-downloads-and-publications/field-data/ | H204: For further field data, please check NSTA website: https://www.nstauthority.co.uk/data-centre/data-downloads-and-publications/field-data/ | I204: Not available | J204: Not available
B205: Britoil Ltd | C205: P236 | D205: Britoil Ltd | E205: Oil & Gas | F205: For further field data, please check NSTA website: https://www.nstauthority.co.uk/data-centre/data-downloads-and-publications/field-data/ | G205: For further field data, please check NSTA website: https://www.nstauthority.co.uk/data-centre/data-downloads-and-publications/field-data/ | H205: For further field data, please check NSTA website: https://www.nstauthority.co.uk/data-centre/data-downloads-and-publications/field-data/ | I205: Not available | J205: Not available
B206: Britoil Ltd | C206: P475 | D206: Britoil Ltd | E206: Oil & Gas | F206: For further field data, please check NSTA website: https://www.nstauthority.co.uk/data-centre/data-downloads-and-publications/field-data/ | G206: For further field data, please check NSTA website: https://www.nstauthority.co.uk/data-centre/data-downloads-and-publications/field-data/ | H206: For further field data, please check NSTA website: https://www.nstauthority.co.uk/data-centre/data-downloads-and-publications/field-data/ | I206: Not available | J206: Not available
... 596 more rows

Sheet Part 4 - Government revenues
N3: Summary data template
N4: =Introduction!G4 -> 45185
F8: Part 4 (Government revenues) contains comprehensive data on government revenues per revenue stream, according to GFSM classification.
F9: How to complete this sheet:
F10: 1. Enter the name of all government Revenue streams for the extractive sectors, including revenues that fall below agreed materiality thresholds (one row should be used for each individual revenue stream and individual governmant entity)
F11: 2. Enter the name of the receiving Government entity (choose using the dropdown list. It will appear there since you have already entered the government entitiy in Part 3).
F12: 3.Choose the Sector and the GFS Classification this revenue applies to. Use the guidance provided in the GFS Framework for EITI reporting. If a revenue stream cannot be disaggregated by sector, chose "Other".
F13: 4. In the Revenue value column, enter total figure of each revenue stream as disclosed by government, including revenues that were not reconciled.
F14: Remember: Governments receipts from companies on behalf of their employees should be excluded (e.g personal income tax PAYE, employee social security contributions, withholding tax) because they are not considered payments from companies to government.
F15: 5. If there are any payments which are in the EITI Report, but cannot be matched with the GFS categories, please list them in the box below called "Additional information".
F16: If you have any questions, please contact data@eiti.org
F18: Total government revenues from extractive sector (using GFS) | M18: GFS Framework for EITI Reporting
M19: EITI Requirement 5.1.b: Revenue classification
F20: EITI Requirement 4.1.d: Full government disclosure
B21: GFS Level 1 | C21: GFS Level 2 | D21: GFS Level 3 | E21: GFS Level 4 | F21: GFS Classification | G21: Sector | H21: Revenue stream name | I21: Government entity | J21: Revenue value | K21: Currency | M21: What is GFS?
B22: =IFERROR(VLOOKUP(Government_revenues_table[[#This Row],[GFS Classification]],Table6_GFS_codes_classification[],COLUMNS($F:F)+3,FALSE),"Do not enter data") -> Taxes (11E) | C22: =IFERROR(VLOOKUP(Government_revenues_table[[#This Row],[GFS Classification]],Table6_GFS_codes_classification[],COLUMNS($F:G)+3,FALSE),"Do not enter data") -> Taxes on income, profits and capital gains (111E) | D22: =IFERROR(VLOOKUP(Government_revenues_table[[#This Row],[GFS Classification]],Table6_GFS_codes_classification[],COLUMNS($F:H)+3,FALSE),"Do not enter data") -> Ordinary taxes on income, profits and capital gains (1112E1) | E22: =IFERROR(VLOOKUP(Government_revenues_table[[#This Row],[GFS Classification]],Table6_GFS_codes_classification[],COLUMNS($F:I)+3,FALSE),"Do not enter data") -> Ordinary taxes on income, profits and capital gains (1112E1) | F22: Ordinary taxes on income, profits and capital gains (1112E1) | G22: Mining | H22: Corporation Tax | I22: His Majesty’s Revenue and Customs (HMRC) | J22: =28.65834298*1000000 -> 28658342.98 | K22: GBP | M22: GFS, or Government Finance Statistics, is an international framework for categorising revenue streams so they are comparable across countries and time-periods. See full framework example below. The framework used below has been developped by the IMF and EITI International Secretariat. The letter E in the GFS codes means that these are codes only used for revenues from extractives companies. The digits to the right were specifically designed for extractive sector companies.
B23: =IFERROR(VLOOKUP(Government_revenues_table[[#This Row],[GFS Classification]],Table6_GFS_codes_classification[],COLUMNS($F:F)+3,FALSE),"Do not enter data") -> Taxes (11E) | C23: =IFERROR(VLOOKUP(Government_revenues_table[[#This Row],[GFS Classification]],Table6_GFS_codes_classification[],COLUMNS($F:G)+3,FALSE),"Do not enter data") -> Taxes on income, profits and capital gains (111E) | D23: =IFERROR(VLOOKUP(Government_revenues_table[[#This Row],[GFS Classification]],Table6_GFS_codes_classification[],COLUMNS($F:H)+3,FALSE),"Do not enter data") -> Ordinary taxes on income, profits and capital gains (1112E1) | E23: =IFERROR(VLOOKUP(Government_revenues_table[[#This Row],[GFS Classification]],Table6_GFS_codes_classification[],COLUMNS($F:I)+3,FALSE),"Do not enter data") -> Ordinary taxes on income, profits and capital gains (1112E1) | F23: Ordinary taxes on income, profits and capital gains (1112E1) | G23: Oil & Gas | H23: Ring Fence CT and Supplementary Charge (RFCT & SC) | I23: His Majesty’s Revenue and Customs (HMRC) | J23: =5364.8030032*1000000 -> 5364803003 | K23: GBP
B24: =IFERROR(VLOOKUP(Government_revenues_table[[#This Row],[GFS Classification]],Table6_GFS_codes_classification[],COLUMNS($F:F)+3,FALSE),"Do not enter data") -> Taxes (11E) | C24: =IFERROR(VLOOKUP(Government_revenues_table[[#This Row],[GFS Classification]],Table6_GFS_codes_classification[],COLUMNS($F:G)+3,FALSE),"Do not enter data") -> Taxes on income, profits and capital gains (111E) | D24: =IFERROR(VLOOKUP(Government_revenues_table[[#This Row],[GFS Classification]],Table6_GFS_codes_classification[],COLUMNS($F:H)+3,FALSE),"Do not enter data") -> Extraordinary taxes on income, profits and capital gains (1112E2) | E24: =IFERROR(VLOOKUP(Government_revenues_table[[#This Row],[GFS Classification]],Table6_GFS_codes_classification[],COLUMNS($F:I)+3,FALSE),"Do not enter data") -> Extraordinary taxes on income, profits and capital gains (1112E2) | F24: Extraordinary taxes on income, profits and capital gains (1112E2) | G24: Oil & Gas | H24: Petroleum Revenue Tax (PRT) | I24: His Majesty’s Revenue and Customs (HMRC) | J24: =-393.945491*1000000 -> -393945491 | K24: GBP
B25: =IFERROR(VLOOKUP(Government_revenues_table[[#This Row],[GFS Classification]],Table6_GFS_codes_classification[],COLUMNS($F:F)+3,FALSE),"Do not enter data") -> Taxes (11E) | C25: =IFERROR(VLOOKUP(Government_revenues_table[[#This Row],[GFS Classification]],Table6_GFS_codes_classification[],COLUMNS($F:G)+3,FALSE),"Do not enter data") -> Taxes on income, profits and capital gains (111E) | D25: =IFERROR(VLOOKUP(Government_revenues_table[[#This Row],[GFS Classification]],Table6_GFS_codes_classification[],COLUMNS($F:H)+3,FALSE),"Do not enter data") -> Extraordinary taxes on income, profits and capital gains (1112E2) | E25: =IFERROR(VLOOKUP(Government_revenues_table[[#This Row],[GFS Classification]],Table6_GFS_codes_classification[],COLUMNS($F:I)+3,FALSE),"Do not enter data") -> Extraordinary taxes on income, profits and capital gains (1112E2) | F25: Extraordinary taxes on income, profits and capital gains (1112E2) | G25: Oil & Gas | H25: ENERGY (OIL AND GAS) PROFITS LEVY | I25: His Majesty’s Revenue and Customs (HMRC) | J25: =1770.471513*1000000 -> 1770471513 | K25: GBP
B26: =IFERROR(VLOOKUP(Government_revenues_table[[#This Row],[GFS Classification]],Table6_GFS_codes_classification[],COLUMNS($F:F)+3,FALSE),"Do not enter data") -> Taxes (11E) | C26: =IFERROR(VLOOKUP(Government_revenues_table[[#This Row],[GFS Classification]],Table6_GFS_codes_classification[],COLUMNS($F:G)+3,FALSE),"Do not enter data") -> Taxes on goods and services (114E) | D26: =IFERROR(VLOOKUP(Government_revenues_table[[#This Row],[GFS Classification]],Table6_GFS_codes_classification[],COLUMNS($F:H)+3,FALSE),"Do not enter data") -> Taxes on use of goods/permission to use goods or perform activities (1145E) | E26: =IFERROR(VLOOKUP(Government_revenues_table[[#This Row],[GFS Classification]],Table6_GFS_codes_classification[],COLUMNS($F:I)+3,FALSE),"Do not enter data") -> Licence fees (114521E) | F26: Licence fees (114521E) | G26: Mining | H26: Payments to the Crown Estate M&Q | I26: The Crown Estate (TCE) | J26: =26.2763994*1000000 -> 26276399.4 | K26: GBP
B27: =IFERROR(VLOOKUP(Government_revenues_table[[#This Row],[GFS Classification]],Table6_GFS_codes_classification[],COLUMNS($F:F)+3,FALSE),"Do not enter data") -> Taxes (11E) | C27: =IFERROR(VLOOKUP(Government_revenues_table[[#This Row],[GFS Classification]],Table6_GFS_codes_classification[],COLUMNS($F:G)+3,FALSE),"Do not enter data") -> Taxes on goods and services (114E) | D27: =IFERROR(VLOOKUP(Government_revenues_table[[#This Row],[GFS Classification]],Table6_GFS_codes_classification[],COLUMNS($F:H)+3,FALSE),"Do not enter data") -> Taxes on use of goods/permission to use goods or perform activities (1145E) | E27: =IFERROR(VLOOKUP(Government_revenues_table[[#This Row],[GFS Classification]],Table6_GFS_codes_classification[],COLUMNS($F:I)+3,FALSE),"Do not enter data") -> Licence fees (114521E) | F27: Licence fees (114521E) | G27: Oil & Gas | H27: Payments to the Crown Estate O&G | I27: The Crown Estate (TCE) | J27: =2.416598*1000000 -> 2416598 | K27: GBP | M27: For more guidance, please visit https://eiti.org/summary-data-template
B28: =IFERROR(VLOOKUP(Government_revenues_table[[#This Row],[GFS Classification]],Table6_GFS_codes_classification[],COLUMNS($F:F)+3,FALSE),"Do not enter data") -> Taxes (11E) | C28: =IFERROR(VLOOKUP(Government_revenues_table[[#This Row],[GFS Classification]],Table6_GFS_codes_classification[],COLUMNS($F:G)+3,FALSE),"Do not enter data") -> Taxes on goods and services (114E) | D28: =IFERROR(VLOOKUP(Government_revenues_table[[#This Row],[GFS Classification]],Table6_GFS_codes_classification[],COLUMNS($F:H)+3,FALSE),"Do not enter data") -> Taxes on use of goods/permission to use goods or perform activities (1145E) | E28: =IFERROR(VLOOKUP(Government_revenues_table[[#This Row],[GFS Classification]],Table6_GFS_codes_classification[],COLUMNS($F:I)+3,FALSE),"Do not enter data") -> Licence fees (114521E) | F28: Licence fees (114521E) | G28: Mining | H28: Payments to Crown Estate Scotland M&Q | I28: Crown Estate Scotland (CES) | J28: =0.310766*1000000 -> 310766 | K28: GBP | M28: or, https://www.imf.org/external/np/sta/gfsm/
B29: =IFERROR(VLOOKUP(Government_revenues_table[[#This Row],[GFS Classification]],Table6_GFS_codes_classification[],COLUMNS($F:F)+3,FALSE),"Do not enter data") -> Taxes (11E) | C29: =IFERROR(VLOOKUP(Government_revenues_table[[#This Row],[GFS Classification]],Table6_GFS_codes_classification[],COLUMNS($F:G)+3,FALSE),"Do not enter data") -> Taxes on goods and services (114E) | D29: =IFERROR(VLOOKUP(Government_revenues_table[[#This Row],[GFS Classification]],Table6_GFS_codes_classification[],COLUMNS($F:H)+3,FALSE),"Do not enter data") -> Taxes on use of goods/permission to use goods or perform activities (1145E) | E29: =IFERROR(VLOOKUP(Government_revenues_table[[#This Row],[GFS Classification]],Table6_GFS_codes_classification[],COLUMNS($F:I)+3,FALSE),"Do not enter data") -> Licence fees (114521E) | F29: Licence fees (114521E) | G29: Oil & Gas | H29: Payments to Crown Estate Scotland O&G | I29: Crown Estate Scotland (CES) | J29: =1.605911*1000000 -> 1605911 | K29: GBP
B30: =IFERROR(VLOOKUP(Government_revenues_table[[#This Row],[GFS Classification]],Table6_GFS_codes_classification[],COLUMNS($F:F)+3,FALSE),"Do not enter data") -> Taxes (11E) | C30: =IFERROR(VLOOKUP(Government_revenues_table[[#This Row],[GFS Classification]],Table6_GFS_codes_classification[],COLUMNS($F:G)+3,FALSE),"Do not enter data") -> Taxes on goods and services (114E) | D30: =IFERROR(VLOOKUP(Government_revenues_table[[#This Row],[GFS Classification]],Table6_GFS_codes_classification[],COLUMNS($F:H)+3,FALSE),"Do not enter data") -> Taxes on use of goods/permission to use goods or perform activities (1145E) | E30: =IFERROR(VLOOKUP(Government_revenues_table[[#This Row],[GFS Classification]],Table6_GFS_codes_classification[],COLUMNS($F:I)+3,FALSE),"Do not enter data") -> Licence fees (114521E) | F30: Licence fees (114521E) | G30: Oil & Gas | H30: Petroleum Licence Fees | I30: North Sea Transition Authority (NSTA) | J30: =51004688.92-100328.46 -> 50904360.46 | K30: GBP
B31: =IFERROR(VLOOKUP(Government_revenues_table[[#This Row],[GFS Classification]],Table6_GFS_codes_classification[],COLUMNS($F:F)+3,FALSE),"Do not enter data") -> Taxes (11E) | C31: =IFERROR(VLOOKUP(Government_revenues_table[[#This Row],[GFS Classification]],Table6_GFS_codes_classification[],COLUMNS($F:G)+3,FALSE),"Do not enter data") -> Other taxes payable by natural resource companies (116E) | D31: =IFERROR(VLOOKUP(Government_revenues_table[[#This Row],[GFS Classification]],Table6_GFS_codes_classification[],COLUMNS($F:H)+3,FALSE),"Do not enter data") -> Other taxes payable by natural resource companies (116E) | E31: =IFERROR(VLOOKUP(Government_revenues_table[[#This Row],[GFS Classification]],Table6_GFS_codes_classification[],COLUMNS($F:I)+3,FALSE),"Do not enter data") -> Other taxes payable by natural resource companies (116E) | F31: Other taxes payable by natural resource companies (116E) | G31: Oil & Gas | H31: Oil & Gas Authority (OGA) Levy | I31: North Sea Transition Authority (NSTA) | J31: =(32853887.92-3792268.14) -> 29061619.78 | K31: GBP
I33: Total in USD | J33: =SUMIF(Government_revenues_table[Currency],"USD",Government_revenues_table[Revenue value])+(IFERROR(SUMIF(Government_revenues_table[Currency],"<>USD",Government_revenues_table[Revenue value])/'Part 1 - About'!$E$45,0)) -> 8473599782
I35: ="Total in "&'Part 1 - About'!E44 -> Total in GBP | J35: =IF('Part 1 - About'!$E$44="USD",0,SUMIF(Government_revenues_table[Currency],'Part 1 - About'!$E$44,Government_revenues_table[Revenue value]))+(IFERROR(SUMIF(Government_revenues_table[Currency],"USD",Government_revenues_table[Revenue value])*'Part 1 - About'!$E$45,0)) -> 6880563023
F39: Additional information
F41: Please note that the difference of GBP 13.48 million (Equivalent to USD 14.46 million) between the "Total Government Revenues" and the "Total Company Data". This includes: 1) extractive companies out of scope of the reconciliation because their payment / repayments were below the agreed materiality thresholds, 2) those with material payments that declined to participate in the reconciliation process and 3) non-material payment / repayments for companies that were in scope.
F53: For the latest version of Summary data templates, see https://eiti.org/summary-data-template
F54: Give us your feedback or report a conflict in the data! Write to us at data@eiti.org
F56: EITI International Secretariat
F57: Phone: +47 222 00 800  E-mail: secretariat@eiti.org  Twitter: @EITIorg  www.eiti.org
F58: Address: Rådhusgata 26, 0151 Oslo, Norway  P.O. Box: Postboks 340 Sentrum, 0101 Oslo, Norway

Sheet Part 5 - Company data
C2: Part 5 (Company data) contains company- and project-level data per revenue stream. The companies and projects are available from drop-down since the data is entered in sheet 3.
C3: How to fill this sheet:
C4: 1. Select company name from drop-down menu
C5: 2. Select government collecting entity and payment name from drop-down menu
C6: 3. Indicate whether the payment stream is (i) levied on project and (ii) reported by project
C7: 4. Enter project information: project name, and reporting currency
C8: 5. Enter revenue value,as disclosed by government and any comments that may be applicable
C9: If you have any questions, please contact data@eiti.org
C11: Government revenues by company and project
B13: EITI Requirement 4.1.c: Company payments ; EITI Requirement 4.7: Project-level reporting
B14: Sector | C14: Full company name | D14: Government entity | E14: Revenue stream name | F14: Levied on project (Y/N) | G14: Reported by project (Y/N) | H14: Project name | I14: Reporting currency | J14: Revenue value | K14: Payment made in-kind (Y/N) | L14: In-kind volume (if applicable) | M14: Unit (if applicable) | N14: Comments
C15: ANASURIA HIBISCUS UK Ltd | D15: His Majesty’s Revenue and Customs (HMRC) | E15: Ring Fence CT and Supplementary Charge (RFCT & SC) | F15: No | G15: No | H15: N/A | I15: GBP | J15: 8563334 | K15: Not applicable | L15: Not applicable | M15: Not applicable
C16: Apache Corporation | D16: His Majesty’s Revenue and Customs (HMRC) | E16: Ring Fence CT and Supplementary Charge (RFCT & SC) | F16: No | G16: No | H16: N/A | I16: GBP | J16: 224140000 | K16: Not applicable | L16: Not applicable | M16: Not applicable
C17: BP Plc | D17: His Majesty’s Revenue and Customs (HMRC) | E17: Ring Fence CT and Supplementary Charge (RFCT & SC) | F17: No | G17: No | H17: N/A | I17: GBP | J17: 735000000 | K17: Not applicable | L17: Not applicable | M17: Not applicable
C18: Centrica PLC | D18: His Majesty’s Revenue and Customs (HMRC) | E18: Ring Fence CT and Supplementary Charge (RFCT & SC) | F18: No | G18: No | H18: N/A | I18: GBP | J18: 62523500 | K18: Not applicable | L18: Not applicable | M18: Not applicable
C19: Chevron | D19: His Majesty’s Revenue and Customs (HMRC) | E19: Ring Fence CT and Supplementary Charge (RFCT & SC) | F19: No | G19: No | H19: N/A | I19: GBP | J19: 130275873 | K19: Not applicable | L19: Not applicable | M19: Not applicable
C20: CNOOC Petroleum Europe Ltd | D20: His Majesty’s Revenue and Customs (HMRC) | E20: Ring Fence CT and Supplementary Charge (RFCT & SC) | F20: No | G20: No | H20: N/A | I20: GBP | J20: 338000000 | K20: Not applicable | L20: Not applicable | M20: Not applicable
C21: CNR International UK Investments Ltd | D21: His Majesty’s Revenue and Customs (HMRC) | E21: Ring Fence CT and Supplementary Charge (RFCT & SC) | F21: No | G21: No | H21: N/A | I21: GBP | J21: -4861258 | K21: Not applicable | L21: Not applicable | M21: Not applicable
C22: Dana Petroleum Ltd | D22: His Majesty’s Revenue and Customs (HMRC) | E22: Ring Fence CT and Supplementary Charge (RFCT & SC) | F22: No | G22: No | H22: N/A | I22: GBP | J22: 25223480 | K22: Not applicable | L22: Not applicable | M22: Not applicable
C23: ENI UK Ltd | D23: His Majesty’s Revenue and Customs (HMRC) | E23: Ring Fence CT and Supplementary Charge (RFCT & SC) | F23: No | G23: No | H23: N/A | I23: GBP | J23: 378526000 | K23: Not applicable | L23: Not applicable | M23: Not applicable
C24: ExxonMobil International Ltd | D24: His Majesty’s Revenue and Customs (HMRC) | E24: Ring Fence CT and Supplementary Charge (RFCT & SC) | F24: No | G24: No | H24: N/A | I24: GBP | J24: 72000000 | K24: Not applicable | L24: Not applicable | M24: Not applicable
C25: Harbour Energy Plc | D25: His Majesty’s Revenue and Customs (HMRC) | E25: Ring Fence CT and Supplementary Charge (RFCT & SC) | F25: No | G25: No | H25: N/A | I25: GBP | J25: 274381594 | K25: Not applicable | L25: Not applicable | M25: Not applicable
C26: HESS Ltd | D26: His Majesty’s Revenue and Customs (HMRC) | E26: Ring Fence CT and Supplementary Charge (RFCT & SC) | F26: No | G26: No | H26: N/A | I26: GBP | J26: 209423 | K26: Not applicable | L26: Not applicable | M26: Not applicable
C27: Iranian Oil Company (U.K.) Ltd | D27: His Majesty’s Revenue and Customs (HMRC) | E27: Ring Fence CT and Supplementary Charge (RFCT & SC) | F27: No | G27: No | H27: N/A | I27: GBP | J27: 198032461 | K27: Not applicable | L27: Not applicable | M27: Not applicable
C28: Ithaca Energy UK | D28: His Majesty’s Revenue and Customs (HMRC) | E28: Ring Fence CT and Supplementary Charge (RFCT & SC) | F28: No | G28: No | H28: N/A | I28: GBP | J28: 47221400 | K28: Not applicable | L28: Not applicable | M28: Not applicable
C29: Neo Energy | D29: His Majesty’s Revenue and Customs (HMRC) | E29: Ring Fence CT and Supplementary Charge (RFCT & SC) | F29: No | G29: No | H29: N/A | I29: GBP | J29: 66254777.2 | K29: Not applicable | L29: Not applicable | M29: Not applicable
C30: Neptune Energy Group Ltd | D30: His Majesty’s Revenue and Customs (HMRC) | E30: Ring Fence CT and Supplementary Charge (RFCT & SC) | F30: No | G30: No | H30: N/A | I30: GBP | J30: -3687655 | K30: Not applicable | L30: Not applicable | M30: Not applicable
C31: ONE-Dyas UK Ltd | D31: His Majesty’s Revenue and Customs (HMRC) | E31: Ring Fence CT and Supplementary Charge (RFCT & SC) | F31: No | G31: No | H31: N/A | I31: GBP | J31: 30129963 | K31: Not applicable | L31: Not applicable | M31: Not applicable
C32: Perenco UK Ltd | D32: His Majesty’s Revenue and Customs (HMRC) | E32: Ring Fence CT and Supplementary Charge (RFCT & SC) | F32: No | G32: No | H32: N/A | I32: GBP | J32: 303289075 | K32: Not applicable | L32: Not applicable | M32: Not applicable
C33: Repsol Sinopec Resources UK Ltd | D33: His Majesty’s Revenue and Customs (HMRC) | E33: Ring Fence CT and Supplementary Charge (RFCT & SC) | F33: No | G33: No | H33: N/A | I33: GBP | J33: -7755461 | K33: Not applicable | L33: Not applicable | M33: Not applicable
C34: RockRose Energy Ltd | D34: His Majesty’s Revenue and Customs (HMRC) | E34: Ring Fence CT and Supplementary Charge (RFCT & SC) | F34: No | G34: No | H34: N/A | I34: GBP | J34: 40000000 | K34: Not applicable | L34: Not applicable | M34: Not applicable
C35: Serica Energy Plc | D35: His Majesty’s Revenue and Customs (HMRC) | E35: Ring Fence CT and Supplementary Charge (RFCT & SC) | F35: No | G35: No | H35: N/A | I35: GBP | J35: 116000000 | K35: Not applicable | L35: Not applicable | M35: Not applicable
C36: Suncor Energy UK Ltd | D36: His Majesty’s Revenue and Customs (HMRC) | E36: Ring Fence CT and Supplementary Charge (RFCT & SC) | F36: No | G36: No | H36: N/A | I36: GBP | J36: 155453662 | K36: Not applicable | L36: Not applicable | M36: Not applicable
C37: TAQA | D37: His Majesty’s Revenue and Customs (HMRC) | E37: Ring Fence CT and Supplementary Charge (RFCT & SC) | F37: No | G37: No | H37: N/A | I37: GBP | J37: 164376950 | K37: Not applicable | L37: Not applicable | M37: Not applicable
C38: TotalEnergies Holdings UK Ltd | D38: His Majesty’s Revenue and Customs (HMRC) | E38: Ring Fence CT and Supplementary Charge (RFCT & SC) | F38: No | G38: No | H38: N/A | I38: GBP | J38: 2016517314 | K38: Not applicable | L38: Not applicable | M38: Not applicable
B39: 7899774 | C39: Tullow Oil Plc | D39: His Majesty’s Revenue and Customs (HMRC) | E39: Ring Fence CT and Supplementary Charge (RFCT & SC) | F39: No | G39: No | H39: N/A | I39: GBP | J39: -14487313 | K39: Not applicable | L39: Not applicable | M39: Not applicable
B40: 956571.33 | C40: WINTERSHALL NOORDZEE B.V. | D40: His Majesty’s Revenue and Customs (HMRC) | E40: Ring Fence CT and Supplementary Charge (RFCT & SC) | F40: No | G40: No | H40: N/A | I40: GBP | J40: 9000000 | K40: Not applicable | L40: Not applicable | M40: Not applicable
B41: 33565226.85 | C41: BP Plc | D41: His Majesty’s Revenue and Customs (HMRC) | E41: Petroleum Revenue Tax (PRT) | F41: Yes | G41: Yes | H41: South Valiant | I41: GBP | J41: -19110 | K41: Not applicable | L41: Not applicable | M41: Not applicable
B42: -1123761 | C42: BP Plc | D42: His Majesty’s Revenue and Customs (HMRC) | E42: Petroleum Revenue Tax (PRT) | F42: Yes | G42: Yes | H42: Vulcan | I42: GBP | J42: -269258 | K42: Not applicable | L42: Not applicable | M42: Not applicable
B43: 255000 | C43: BP Plc | D43: His Majesty’s Revenue and Customs (HMRC) | E43: Petroleum Revenue Tax (PRT) | F43: Yes | G43: Yes | H43: Miller | I43: GBP | J43: -420846 | K43: Not applicable | L43: Not applicable | M43: Not applicable
B44: 1771076 | C44: BP Plc | D44: His Majesty’s Revenue and Customs (HMRC) | E44: Petroleum Revenue Tax (PRT) | F44: Yes | G44: Yes | H44: Vulcan | I44: GBP | J44: -5969490 | K44: Not applicable | L44: Not applicable | M44: Not applicable
C45: BP Plc | D45: His Majesty’s Revenue and Customs (HMRC) | E45: Petroleum Revenue Tax (PRT) | F45: Yes | G45: Yes | H45: South Valiant | I45: GBP | J45: -1833343 | K45: Not applicable | L45: Not applicable | M45: Not applicable
C46: BP Plc | D46: His Majesty’s Revenue and Customs (HMRC) | E46: Petroleum Revenue Tax (PRT) | F46: Yes | G46: Yes | H46: Miller | I46: GBP | J46: -129184 | K46: Not applicable | L46: Not applicable | M46: Not applicable
C47: BP Plc | D47: His Majesty’s Revenue and Customs (HMRC) | E47: Petroleum Revenue Tax (PRT) | F47: Yes | G47: Yes | H47: Thistle | I47: GBP | J47: -9964212 | K47: Not applicable | L47: Not applicable | M47: Not applicable
C48: CNOOC Petroleum Europe Ltd | D48: His Majesty’s Revenue and Customs (HMRC) | E48: Petroleum Revenue Tax (PRT) | F48: Yes | G48: Yes | H48: Scott | I48: GBP | J48: -4522321 | K48: Not applicable | L48: Not applicable | M48: Not applicable
C49: CNR International UK Investments Ltd | D49: His Majesty’s Revenue and Customs (HMRC) | E49: Petroleum Revenue Tax (PRT) | F49: Yes | G49: Yes | H49: Ninian | I49: GBP | J49: -20100394 | K49: Not applicable | L49: Not applicable | M49: Not applicable
C50: Dana Petroleum Ltd | D50: His Majesty’s Revenue and Customs (HMRC) | E50: Petroleum Revenue Tax (PRT) | F50: Yes | G50: Yes | H50: Victor | I50: GBP | J50: -1148527 | K50: Not applicable | L50: Not applicable | M50: Not applicable
C51: ENI UK Ltd | D51: His Majesty’s Revenue and Customs (HMRC) | E51: Petroleum Revenue Tax (PRT) | F51: Yes | G51: Yes | H51: Orwell | I51: GBP | J51: -201889 | K51: Not applicable | L51: Not applicable | M51: Not applicable
C52: ExxonMobil International Ltd | D52: His Majesty’s Revenue and Customs (HMRC) | E52: Petroleum Revenue Tax (PRT) | F52: Yes | G52: Yes | H52: Brent | I52: GBP | J52: -35965378 | K52: Not applicable | L52: Not applicable | M52: Not applicable
C53: ExxonMobil International Ltd | D53: His Majesty’s Revenue and Customs (HMRC) | E53: Petroleum Revenue Tax (PRT) | F53: Yes | G53: Yes | H53: Fulmar | I53: GBP | J53: -11862263 | K53: Not applicable | L53: Not applicable | M53: Not applicable
C54: ExxonMobil International Ltd | D54: His Majesty’s Revenue and Customs (HMRC) | E54: Petroleum Revenue Tax (PRT) | F54: Yes | G54: Yes | H54: Victor | I54: GBP | J54: -1704308 | K54: Not applicable | L54: Not applicable | M54: Not applicable
C55: Harbour Energy Plc | D55: His Majesty’s Revenue and Customs (HMRC) | E55: Petroleum Revenue Tax (PRT) | F55: Yes | G55: Yes | H55: South Valiant | I55: GBP | J55: -7859 | K55: Not applicable | L55: Not applicable | M55: Not applicable
C56: Harbour Energy Plc | D56: His Majesty’s Revenue and Customs (HMRC) | E56: Petroleum Revenue Tax (PRT) | F56: Yes | G56: Yes | H56: Vulcan | I56: GBP | J56: -631213 | K56: Not applicable | L56: Not applicable | M56: Not applicable
C57: Harbour Energy Plc | D57: His Majesty’s Revenue and Customs (HMRC) | E57: Petroleum Revenue Tax (PRT) | F57: Yes | G57: Yes | H57: Victor | I57: GBP | J57: -1335132 | K57: Not applicable | L57: Not applicable | M57: Not applicable
C58: Harbour Energy Plc | D58: His Majesty’s Revenue and Customs (HMRC) | E58: Petroleum Revenue Tax (PRT) | F58: Yes | G58: Yes | H58: South Valiant | I58: GBP | J58: -7859 | K58: Not applicable | L58: Not applicable | M58: Not applicable
C59: Harbour Energy Plc | D59: His Majesty’s Revenue and Customs (HMRC) | E59: Petroleum Revenue Tax (PRT) | F59: Yes | G59: Yes | H59: Vulcan | I59: GBP | J59: -631044 | K59: Not applicable | L59: Not applicable | M59: Not applicable
C60: Harbour Energy Plc | D60: His Majesty’s Revenue and Customs (HMRC) | E60: Petroleum Revenue Tax (PRT) | F60: Yes | G60: Yes | H60: Miller | I60: GBP | J60: -278520 | K60: Not applicable | L60: Not applicable | M60: Not applicable
C61: Harbour Energy Plc | D61: His Majesty’s Revenue and Customs (HMRC) | E61: Petroleum Revenue Tax (PRT) | F61: Yes | G61: Yes | H61: Vulcan | I61: GBP | J61: -4226395 | K61: Not applicable | L61: Not applicable | M61: Not applicable
C62: INEOS Industries | D62: His Majesty’s Revenue and Customs (HMRC) | E62: Petroleum Revenue Tax (PRT) | F62: Yes | G62: Yes | H62: Victor | I62: GBP | J62: -1112936 | K62: Not applicable | L62: Not applicable | M62: Not applicable
C63: Ithaca Energy UK | D63: His Majesty’s Revenue and Customs (HMRC) | E63: Petroleum Revenue Tax (PRT) | F63: Yes | G63: Yes | H63: Murchison | I63: GBP | J63: -183329 | K63: Not applicable | L63: Not applicable | M63: Not applicable
C64: JX Nippon Exploration and Production (U.K.) Ltd | D64: His Majesty’s Revenue and Customs (HMRC) | E64: Petroleum Revenue Tax (PRT) | F64: Yes | G64: Yes | H64: Brae | I64: GBP | J64: -364206 | K64: Not applicable | L64: Not applicable | M64: Not applicable
C65: JX Nippon Exploration and Production (U.K.) Ltd | D65: His Majesty’s Revenue and Customs (HMRC) | E65: Petroleum Revenue Tax (PRT) | F65: Yes | G65: Yes | H65: East Brae | I65: GBP | J65: -321835 | K65: Not applicable | L65: Not applicable | M65: Not applicable
C66: Perenco UK Ltd | D66: His Majesty’s Revenue and Customs (HMRC) | E66: Petroleum Revenue Tax (PRT) | F66: Yes | G66: Yes | H66: West Sole | I66: GBP | J66: -4154370 | K66: Not applicable | L66: Not applicable | M66: Not applicable
C67: Repsol Sinopec Resources UK Ltd | D67: His Majesty’s Revenue and Customs (HMRC) | E67: Petroleum Revenue Tax (PRT) | F67: Yes | G67: Yes | H67: Claymore | I67: GBP | J67: -17990328 | K67: Not applicable | L67: Not applicable | M67: Not applicable
C68: Repsol Sinopec Resources UK Ltd | D68: His Majesty’s Revenue and Customs (HMRC) | E68: Petroleum Revenue Tax (PRT) | F68: Yes | G68: Yes | H68: Wytch Farm | I68: GBP | J68: -138166080 | K68: Not applicable | L68: Not applicable | M68: Not applicable
C69: Repsol Sinopec Resources UK Ltd | D69: His Majesty’s Revenue and Customs (HMRC) | E69: Petroleum Revenue Tax (PRT) | F69: Yes | G69: Yes | H69: Claymore | I69: GBP | J69: -6406324 | K69: Not applicable | L69: Not applicable | M69: Not applicable
C70: Repsol Sinopec Resources UK Ltd | D70: His Majesty’s Revenue and Customs (HMRC) | E70: Petroleum Revenue Tax (PRT) | F70: Yes | G70: Yes | H70: Piper | I70: GBP | J70: -6865143 | K70: Not applicable | L70: Not applicable | M70: Not applicable
C71: Repsol Sinopec Resources UK Ltd | D71: His Majesty’s Revenue and Customs (HMRC) | E71: Petroleum Revenue Tax (PRT) | F71: Yes | G71: Yes | H71: Piper | I71: GBP | J71: -7574627 | K71: Not applicable | L71: Not applicable | M71: Not applicable
C72: Royal Dutch Shell Plc | D72: His Majesty’s Revenue and Customs (HMRC) | E72: Petroleum Revenue Tax (PRT) | F72: Yes | G72: Yes | H72: Brent | I72: GBP | J72: -40309554 | K72: Not applicable | L72: Not applicable | M72: Not applicable
C73: Royal Dutch Shell Plc | D73: His Majesty’s Revenue and Customs (HMRC) | E73: Petroleum Revenue Tax (PRT) | F73: Yes | G73: Yes | H73: Fulmar | I73: GBP | J73: -17547066 | K73: Not applicable | L73: Not applicable | M73: Not applicable
C74: Centrica plc | D74: His Majesty’s Revenue and Customs (HMRC) | E74: Petroleum Revenue Tax (PRT) | F74: Yes | G74: Yes | H74: South Morecambe | I74: GBP | J74: -15087887 | K74: Not applicable | L74: Not applicable | M74: Not applicable
C75: Centrica plc | D75: His Majesty’s Revenue and Customs (HMRC) | E75: Petroleum Revenue Tax (PRT) | F75: Yes | G75: Yes | H75: Brae | I75: GBP | J75: -1347913 | K75: Not applicable | L75: Not applicable | M75: Not applicable
C76: Centrica plc | D76: His Majesty’s Revenue and Customs (HMRC) | E76: Petroleum Revenue Tax (PRT) | F76: Yes | G76: Yes | H76: East Brae | I76: GBP | J76: -70536 | K76: Not applicable | L76: Not applicable | M76: Not applicable
C77: Centrica plc | D77: His Majesty’s Revenue and Customs (HMRC) | E77: Petroleum Revenue Tax (PRT) | F77: Yes | G77: Yes | H77: Victor | I77: GBP | J77: -2069885 | K77: Not applicable | L77: Not applicable | M77: Not applicable
C78: TAQA | D78: His Majesty’s Revenue and Customs (HMRC) | E78: Petroleum Revenue Tax (PRT) | F78: Yes | G78: Yes | H78: East Brae | I78: GBP | J78: -792042 | K78: Not applicable | L78: Not applicable | M78: Not applicable
C79: TAQA | D79: His Majesty’s Revenue and Customs (HMRC) | E79: Petroleum Revenue Tax (PRT) | F79: Yes | G79: Yes | H79: North Cormorant | I79: GBP | J79: -12110593 | K79: Not applicable | L79: Not applicable | M79: Not applicable
C80: TAQA | D80: His Majesty’s Revenue and Customs (HMRC) | E80: Petroleum Revenue Tax (PRT) | F80: Yes | G80: Yes | H80: Tern | I80: GBP | J80: -18289099 | K80: Not applicable | L80: Not applicable | M80: Not applicable
C81: TAQA | D81: His Majesty’s Revenue and Customs (HMRC) | E81: Petroleum Revenue Tax (PRT) | F81: Yes | G81: Yes | H81: Brae | I81: GBP | J81: -1222685 | K81: Not applicable | L81: Not applicable | M81: Not applicable
C82: TAQA | D82: His Majesty’s Revenue and Customs (HMRC) | E82: Petroleum Revenue Tax (PRT) | F82: Yes | G82: Yes | H82: East Brae | I82: GBP | J82: -76014 | K82: Not applicable | L82: Not applicable | M82: Not applicable
C83: Tullow Oil Plc | D83: His Majesty’s Revenue and Customs (HMRC) | E83: Petroleum Revenue Tax (PRT) | F83: Yes | G83: Yes | H83: Murdoch | I83: GBP | J83: -654494 | K83: Not applicable | L83: Not applicable | M83: Not applicable
C84: Apache Corporation | D84: His Majesty’s Revenue and Customs (HMRC) | E84: ENERGY (OIL AND GAS) PROFITS LEVY | F84: Not applicable | G84: Not applicable | H84: N/A | I84: GBP | J84: 41060000 | K84: Not applicable | L84: Not applicable | M84: Not applicable
C85: BP Plc | D85: His Majesty’s Revenue and Customs (HMRC) | E85: ENERGY (OIL AND GAS) PROFITS LEVY | F85: Not applicable | G85: Not applicable | H85: N/A | I85: GBP | J85: 356000000 | K85: Not applicable | L85: Not applicable | M85: Not applicable
C86: Centrica PLC | D86: His Majesty’s Revenue and Customs (HMRC) | E86: ENERGY (OIL AND GAS) PROFITS LEVY | F86: Not applicable | G86: Not applicable | H86: N/A | I86: GBP | J86: 34467888 | K86: Not applicable | L86: Not applicable | M86: Not applicable
C87: Chevron | D87: His Majesty’s Revenue and Customs (HMRC) | E87: ENERGY (OIL AND GAS) PROFITS LEVY | F87: Not applicable | G87: Not applicable | H87: N/A | I87: GBP | J87: 22894021 | K87: Not applicable | L87: Not applicable | M87: Not applicable
C88: CNOOC Petroleum Europe Ltd | D88: His Majesty’s Revenue and Customs (HMRC) | E88: ENERGY (OIL AND GAS) PROFITS LEVY | F88: Not applicable | G88: Not applicable | H88: N/A | I88: GBP | J88: 73000000 | K88: Not applicable | L88: Not applicable | M88: Not applicable
C89: Dana Petroleum Ltd | D89: His Majesty’s Revenue and Customs (HMRC) | E89: ENERGY (OIL AND GAS) PROFITS LEVY | F89: Not applicable | G89: Not applicable | H89: N/A | I89: GBP | J89: 49046261 | K89: Not applicable | L89: Not applicable | M89: Not applicable
C90: ENI UK Ltd | D90: His Majesty’s Revenue and Customs (HMRC) | E90: ENERGY (OIL AND GAS) PROFITS LEVY | F90: Not applicable | G90: Not applicable | H90: N/A | I90: GBP | J90: 81607810 | K90: Not applicable | L90: Not applicable | M90: Not applicable
C91: EnQuest PLC | D91: His Majesty’s Revenue and Customs (HMRC) | E91: ENERGY (OIL AND GAS) PROFITS LEVY | F91: Not applicable | G91: Not applicable | H91: N/A | I91: GBP | J91: 30917000 | K91: Not applicable | L91: Not applicable | M91: Not applicable
C92: ExxonMobil International Ltd | D92: His Majesty’s Revenue and Customs (HMRC) | E92: ENERGY (OIL AND GAS) PROFITS LEVY | F92: Not applicable | G92: Not applicable | H92: N/A | I92: GBP | J92: 26000000 | K92: Not applicable | L92: Not applicable | M92: Not applicable
C93: Harbour Energy Plc | D93: His Majesty’s Revenue and Customs (HMRC) | E93: ENERGY (OIL AND GAS) PROFITS LEVY | F93: Not applicable | G93: Not applicable | H93: N/A | I93: GBP | J93: 171400000 | K93: Not applicable | L93: Not applicable | M93: Not applicable
C94: Hurricane Energy Plc | D94: His Majesty’s Revenue and Customs (HMRC) | E94: ENERGY (OIL AND GAS) PROFITS LEVY | F94: Not applicable | G94: Not applicable | H94: N/A | I94: GBP | J94: 2100000 | K94: Not applicable | L94: Not applicable | M94: Not applicable
C95: Iranian Oil Company (U.K.) Ltd | D95: His Majesty’s Revenue and Customs (HMRC) | E95: ENERGY (OIL AND GAS) PROFITS LEVY | F95: Not applicable | G95: Not applicable | H95: N/A | I95: GBP | J95: 38658359 | K95: Not applicable | L95: Not applicable | M95: Not applicable
C96: Ithaca Energy UK | D96: His Majesty’s Revenue and Customs (HMRC) | E96: ENERGY (OIL AND GAS) PROFITS LEVY | F96: Not applicable | G96: Not applicable | H96: N/A | I96: GBP | J96: 26300000 | K96: Not applicable | L96: Not applicable | M96: Not applicable
C97: ONE-Dyas UK Ltd | D97: His Majesty’s Revenue and Customs (HMRC) | E97: ENERGY (OIL AND GAS) PROFITS LEVY | F97: Not applicable | G97: Not applicable | H97: N/A | I97: GBP | J97: 16500000 | K97: Not applicable | L97: Not applicable | M97: Not applicable
C98: Perenco UK Ltd | D98: His Majesty’s Revenue and Customs (HMRC) | E98: ENERGY (OIL AND GAS) PROFITS LEVY | F98: Not applicable | G98: Not applicable | H98: N/A | I98: GBP | J98: 64500000 | K98: Not applicable | L98: Not applicable | M98: Not applicable
C99: Repsol Sinopec Resources UK Ltd | D99: His Majesty’s Revenue and Customs (HMRC) | E99: ENERGY (OIL AND GAS) PROFITS LEVY | F99: Not applicable | G99: Not applicable | H99: N/A | I99: GBP | J99: 37011289 | K99: Not applicable | L99: Not applicable | M99: Not applicable
C100: RockRose Energy Ltd | D100: His Majesty’s Revenue and Customs (HMRC) | E100: ENERGY (OIL AND GAS) PROFITS LEVY | F100: Not applicable | G100: Not applicable | H100: N/A | I100: GBP | J100: 34274000 | K100: Not applicable | L100: Not applicable | M100: Not applicable
C101: Royal Dutch Shell Plc | D101: His Majesty’s Revenue and Customs (HMRC) | E101: ENERGY (OIL AND GAS) PROFITS LEVY | F101: Not applicable | G101: Not applicable | H101: N/A | I101: GBP | J101: 49000000 | K101: Not applicable | L101: Not applicable | M101: Not applicable
C102: Serica Energy Plc | D102: His Majesty’s Revenue and Customs (HMRC) | E102: ENERGY (OIL AND GAS) PROFITS LEVY | F102: Not applicable | G102: Not applicable | H102: N/A | I102: GBP | J102: 27500000 | K102: Not applicable | L102: Not applicable | M102: Not applicable
C103: Suncor Energy UK Ltd | D103: His Majesty’s Revenue and Customs (HMRC) | E103: ENERGY (OIL AND GAS) PROFITS LEVY | F103: Not applicable | G103: Not applicable | H103: N/A | I103: GBP | J103: 41783280 | K103: Not applicable | L103: Not applicable | M103: Not applicable
C104: TAQA | D104: His Majesty’s Revenue and Customs (HMRC) | E104: ENERGY (OIL AND GAS) PROFITS LEVY | F104: Not applicable | G104: Not applicable | H104: N/A | I104: GBP | J104: 63169000 | K104: Not applicable | L104: Not applicable | M104: Not applicable
C105: TotalEnergies Holdings UK Ltd | D105: His Majesty’s Revenue and Customs (HMRC) | E105: ENERGY (OIL AND GAS) PROFITS LEVY | F105: Not applicable | G105: Not applicable | H105: N/A | I105: GBP | J105: 472755982 | K105: Not applicable | L105: Not applicable | M105: Not applicable
C106: WINTERSHALL NOORDZEE B.V. | D106: His Majesty’s Revenue and Customs (HMRC) | E106: ENERGY (OIL AND GAS) PROFITS LEVY | F106: Not applicable | G106: Not applicable | H106: N/A | I106: GBP | J106: 8000000 | K106: Not applicable | L106: Not applicable | M106: Not applicable
C107: Centrica PLC | D107: The Crown Estate (TCE) | E107: Payments to the Crown Estate M&Q | F107: Yes | G107: Yes | H107: Rough | I107: GBP | J107: 373611 | K107: Not applicable | L107: Not applicable | M107: Not applicable
C108: Harbour Energy Plc | D108: The Crown Estate (TCE) | E108: Payments to the Crown Estate M&Q | F108: Yes | G108: Yes | H108: Theddlethorpe - Caister / Murdoch Oil Pipeline | I108: GBP | J108: 155741 | K108: Not applicable | L108: Not applicable | M108: Not applicable
C109: Harbour Energy Plc | D109: The Crown Estate (TCE) | E109: Payments to the Crown Estate M&Q | F109: Yes | G109: Yes | H109: Theddlethorpe - Viking Oil Pipeline | I109: GBP | J109: 6750 | K109: Not applicable | L109: Not applicable | M109: Not applicable
C110: Harbour Energy Plc | D110: The Crown Estate (TCE) | E110: Payments to the Crown Estate M&Q | F110: Yes | G110: Yes | H110: Victor / Viking - Hydrocarbon Pipeline | I110: GBP | J110: 1900 | K110: Not applicable | L110: Not applicable | M110: Not applicable
C111: Harbour Energy Plc | D111: The Crown Estate (TCE) | E111: Payments to the Crown Estate M&Q | F111: Yes | G111: Yes | H111: River Fields - Hydrocarbon Pipeline | I111: GBP | J111: 163945 | K111: Not applicable | L111: Not applicable | M111: Not applicable
C112: INEOS Industries | D112: The Crown Estate (TCE) | E112: Payments to the Crown Estate M&Q | F112: Yes | G112: Yes | H112: Breagh | I112: GBP | J112: 11800 | K112: Not applicable | L112: Not applicable | M112: Not applicable
C113: INEOS Industries | D113: The Crown Estate (TCE) | E113: Payments to the Crown Estate M&Q | F113: Yes | G113: Yes | H113: Breagh | I113: GBP | J113: 11800 | K113: Not applicable | L113: Not applicable | M113: Not applicable
C114: INEOS Industries | D114: The Crown Estate (TCE) | E114: Payments to the Crown Estate M&Q | F114: Yes | G114: Yes | H114: Breagh | I114: GBP | J114: 11800 | K114: Not applicable | L114: Not applicable | M114: Not applicable
C115: INEOS Industries | D115: The Crown Estate (TCE) | E115: Payments to the Crown Estate M&Q | F115: Yes | G115: Yes | H115: Breagh | I115: GBP | J115: 63842 | K115: Not applicable | L115: Not applicable | M115: Not applicable
C116: INEOS Industries | D116: The Crown Estate (TCE) | E116: Payments to the Crown Estate M&Q | F116: Yes | G116: Yes | H116: Breagh | I116: GBP | J116: 63842 | K116: Not applicable | L116: Not applicable | M116: Not applicable
C117: Perenco UK Ltd | D117: The Crown Estate (TCE) | E117: Payments to the Crown Estate M&Q | F117: Yes | G117: Yes | H117: Eagles pipeline | I117: GBP | J117: 163945 | K117: Not applicable | L117: Not applicable | M117: Not applicable
C118: Perenco UK Ltd | D118: The Crown Estate (TCE) | E118: Payments to the Crown Estate M&Q | F118: Yes | G118: Yes | H118: Furzey Island | I118: GBP | J118: 21818 | K118: Not applicable | L118: Not applicable | M118: Not applicable
C119: Perenco UK Ltd | D119: The Crown Estate (TCE) | E119: Payments to the Crown Estate M&Q | F119: Yes | G119: Yes | H119: Leman | I119: GBP | J119: 65 | K119: Not applicable | L119: Not applicable | M119: Not applicable
C120: Perenco UK Ltd | D120: The Crown Estate (TCE) | E120: Payments to the Crown Estate M&Q | F120: Yes | G120: Yes | H120: Bacton - Lancelot | I120: GBP | J120: 106071 | K120: Not applicable | L120: Not applicable | M120: Not applicable
C121: Perenco UK Ltd | D121: The Crown Estate (TCE) | E121: Payments to the Crown Estate M&Q | F121: Yes | G121: Yes | H121: Bacton | I121: GBP | J121: 199208 | K121: Not applicable | L121: Not applicable | M121: Not applicable
C122: Perenco UK Ltd | D122: The Crown Estate (TCE) | E122: Payments to the Crown Estate M&Q | F122: Yes | G122: Yes | H122: Easington Amethyst | I122: GBP | J122: 380162 | K122: Not applicable | L122: Not applicable | M122: Not applicable
C123: Perenco UK Ltd | D123: The Crown Estate (TCE) | E123: Payments to the Crown Estate M&Q | F123: Yes | G123: Yes | H123: Pickerill | I123: GBP | J123: 41283 | K123: Not applicable | L123: Not applicable | M123: Not applicable
C124: Royal Dutch Shell Plc | D124: The Crown Estate (TCE) | E124: Payments to the Crown Estate M&Q | F124: Yes | G124: Yes | H124: Lease Rent Bacton Refinery | I124: GBP | J124: 8651 | K124: Not applicable | L124: Not applicable | M124: Not applicable
C125: Royal Dutch Shell Plc | D125: The Crown Estate (TCE) | E125: Payments to the Crown Estate M&Q | F125: Yes | G125: Yes | H125: Bacton Pipeline | I125: GBP | J125: 193232 | K125: Not applicable | L125: Not applicable | M125: Not applicable
C126: Royal Dutch Shell Plc | D126: The Crown Estate (TCE) | E126: Payments to the Crown Estate M&Q | F126: Yes | G126: Yes | H126: Hydrocarbone pipeline | I126: GBP | J126: 41929 | K126: Not applicable | L126: Not applicable | M126: Not applicable
C127: Royal Dutch Shell Plc | D127: The Crown Estate (TCE) | E127: Payments to the Crown Estate M&Q | F127: Yes | G127: Yes | H127: Hydrocarbone pipeline | I127: GBP | J127: 34483 | K127: Not applicable | L127: Not applicable | M127: Not applicable
C128: Royal Dutch Shell Plc | D128: The Crown Estate (TCE) | E128: Payments to the Crown Estate M&Q | F128: Yes | G128: Yes | H128: Bacton Pipeline | I128: GBP | J128: 250267 | K128: Not applicable | L128: Not applicable | M128: Not applicable
C129: BP Plc | D129: Crown Estate Scotland (CES) | E129: Payments to Crown Estate Scotland M&Q | F129: Yes | G129: Yes | H129: Clair Pipeline | I129: GBP | J129: 150107 | K129: Not applicable | L129: Not applicable | M129: Not applicable
C130: BP Plc | D130: Crown Estate Scotland (CES) | E130: Payments to Crown Estate Scotland M&Q | F130: Yes | G130: Yes | H130: Orka Voe - West of Shetland | I130: GBP | J130: 94415 | K130: Not applicable | L130: Not applicable | M130: Not applicable
C131: EnQuest PLC | D131: Crown Estate Scotland (CES) | E131: Payments to Crown Estate Scotland M&Q | F131: Yes | G131: Yes | H131: Ninian Field to Grutwick | I131: GBP | J131: 10 | K131: Not applicable | L131: Not applicable | M131: Not applicable
C132: EnQuest PLC | D132: Crown Estate Scotland (CES) | E132: Payments to Crown Estate Scotland M&Q | F132: Yes | G132: Yes | H132: Orka Voe - East of Shetland | I132: GBP | J132: 94067 | K132: Not applicable | L132: Not applicable | M132: Not applicable
C133: Harbour Energy Plc | D133: Crown Estate Scotland (CES) | E133: Payments to Crown Estate Scotland M&Q | F133: Yes | G133: Yes | H133: Britannia Field to St Fergus | I133: GBP | J133: 156565 | K133: Not applicable | L133: Not applicable | M133: Not applicable
C134: INEOS Industries | D134: Crown Estate Scotland (CES) | E134: Payments to Crown Estate Scotland M&Q | F134: Yes | G134: Yes | H134: Forties Field | I134: GBP | J134: 12 | K134: Not applicable | L134: Not applicable | M134: Not applicable
C135: INEOS Industries | D135: Crown Estate Scotland (CES) | E135: Payments to Crown Estate Scotland M&Q | F135: Yes | G135: Yes | H135: Forties Field to Cruden Bay | I135: GBP | J135: 222691 | K135: Not applicable | L135: Not applicable | M135: Not applicable
C136: Ithaca Energy UK | D136: Crown Estate Scotland (CES) | E136: Payments to Crown Estate Scotland M&Q | F136: Yes | G136: Yes | H136: Jacky B Project | I136: GBP | J136: 130218 | K136: Not applicable | L136: Not applicable | M136: Not applicable
C137: NSMP Operations Ltd | D137: Crown Estate Scotland (CES) | E137: Payments to Crown Estate Scotland M&Q | F137: Yes | G137: Yes | H137: Frigg Field to Rattray Bay | I137: GBP | J137: 12 | K137: Not applicable | L137: Not applicable | M137: Not applicable
C138: NSMP Operations Ltd | D138: Crown Estate Scotland (CES) | E138: Payments to Crown Estate Scotland M&Q | F138: Yes | G138: Yes | H138: Laggan Tormore Export Pipe | I138: GBP | J138: 207000 | K138: Not applicable | L138: Not applicable | M138: Not applicable
C139: SAGE North Sea Ltd | D139: Crown Estate Scotland (CES) | E139: Payments to Crown Estate Scotland M&Q | F139: Yes | G139: Yes | H139: Beryl Field | I139: GBP | J139: 207000 | K139: Not applicable | L139: Not applicable | M139: Not applicable
C140: Royal Dutch Shell Plc | D140: Crown Estate Scotland (CES) | E140: Payments to Crown Estate Scotland M&Q | F140: Yes | G140: Yes | H140: Atlantic Cromarty | I140: GBP | J140: 45269 | K140: Not applicable | L140: Not applicable | M140: Not applicable
C141: Royal Dutch Shell Plc | D141: Crown Estate Scotland (CES) | E141: Payments to Crown Estate Scotland M&Q | F141: Yes | G141: Yes | H141: Brent St Fergus | I141: GBP | J141: 10 | K141: Not applicable | L141: Not applicable | M141: Not applicable
C142: Royal Dutch Shell Plc | D142: Crown Estate Scotland (CES) | E142: Payments to Crown Estate Scotland M&Q | F142: Yes | G142: Yes | H142: Goldeneye | I142: GBP | J142: 44055 | K142: Not applicable | L142: Not applicable | M142: Not applicable
C143: TotalEnergies Holdings UK Ltd | D143: Crown Estate Scotland (CES) | E143: Payments to Crown Estate Scotland M&Q | F143: Yes | G143: Yes | H143: Laggan Tormore Import Pipes | I143: GBP | J143: 206000 | K143: Not applicable | L143: Not applicable | M143: Not applicable
C144: Aggregate Industries UK Ltd | D144: His Majesty’s Revenue and Customs (HMRC) | E144: Corporation Tax | F144: Not applicable | G144: Not applicable | H144: N/A | I144: GBP | J144: 2907460 | K144: Not applicable | L144: Not applicable | M144: Not applicable
C145: Boskalis Westminster Holdings Ltd | D145: His Majesty’s Revenue and Customs (HMRC) | E145: Corporation Tax | F145: Not applicable | G145: Not applicable | H145: N/A | I145: GBP | J145: 1201945.33 | K145: Not applicable | L145: Not applicable | M145: Not applicable
C146: Breedon Group PLC | D146: His Majesty’s Revenue and Customs (HMRC) | E146: Corporation Tax | F146: Not applicable | G146: Not applicable | H146: N/A | I146: GBP | J146: 20046519.93 | K146: Not applicable | L146: Not applicable | M146: Not applicable
C147: Cemex UK Materials Ltd | D147: His Majesty’s Revenue and Customs (HMRC) | E147: Corporation Tax | F147: Not applicable | G147: Not applicable | H147: N/A | I147: GBP | J147: 1619328 | K147: Not applicable | L147: Not applicable | M147: Not applicable
C148: DEME Building Materials Ltd | D148: His Majesty’s Revenue and Customs (HMRC) | E148: Corporation Tax | F148: Not applicable | G148: Not applicable | H148: N/A | I148: GBP | J148: 581958.55 | K148: Not applicable | L148: Not applicable | M148: Not applicable
C149: Irish Salt Mining & Exploration Co. Ltd | D149: His Majesty’s Revenue and Customs (HMRC) | E149: Corporation Tax | F149: Not applicable | G149: Not applicable | H149: N/A | I149: GBP | J149: 1429863.91 | K149: Not applicable | L149: Not applicable | M149: Not applicable
C150: Saint-Gobain Ltd | D150: His Majesty’s Revenue and Customs (HMRC) | E150: Corporation Tax | F150: Not applicable | G150: Not applicable | H150: N/A | I150: GBP | J150: -4589938.51 | K150: Not applicable | L150: Not applicable | M150: Not applicable
C151: Van Oord UK Ltd | D151: His Majesty’s Revenue and Customs (HMRC) | E151: Corporation Tax | F151: Not applicable | G151: Not applicable | H151: N/A | I151: GBP | J151: 2987698.49 | K151: Not applicable | L151: Not applicable | M151: Not applicable
C152: Volker Dredging Ltd | D152: His Majesty’s Revenue and Customs (HMRC) | E152: Corporation Tax | F152: Not applicable | G152: Not applicable | H152: N/A | I152: GBP | J152: 108067 | K152: Not applicable | L152: Not applicable | M152: Not applicable
C153: Albion Stone | D153: The Crown Estate (TCE) | E153: Payments to the Crown Estate M&Q | F153: Yes | G153: Yes | H153: na | I153: GBP | J153: 75428 | K153: Not applicable | L153: Not applicable | M153: Not applicable
C154: Albion Stone | D154: The Crown Estate (TCE) | E154: Payments to the Crown Estate M&Q | F154: Yes | G154: Yes | H154: na | I154: GBP | J154: 193817 | K154: Not applicable | L154: Not applicable | M154: Not applicable
C155: Albion Stone | D155: The Crown Estate (TCE) | E155: Payments to the Crown Estate M&Q | F155: Yes | G155: Yes | H155: na | I155: GBP | J155: 20229 | K155: Not applicable | L155: Not applicable | M155: Not applicable
C156: Albion Stone | D156: The Crown Estate (TCE) | E156: Payments to the Crown Estate M&Q | F156: Yes | G156: Yes | H156: na | I156: GBP | J156: -4496 | K156: Not applicable | L156: Not applicable | M156: Not applicable
C157: Boskalis Westminster Holdings Ltd | D157: The Crown Estate (TCE) | E157: Payments to the Crown Estate M&Q | F157: Yes | G157: Yes | H157: Licence Area 451 | I157: GBP | J157: 57600 | K157: Not applicable | L157: Not applicable | M157: Not applicable
C158: Boskalis Westminster Holdings Ltd | D158: The Crown Estate (TCE) | E158: Payments to the Crown Estate M&Q | F158: Yes | G158: Yes | H158: Licence Area 451 | I158: GBP | J158: 70140 | K158: Not applicable | L158: Not applicable | M158: Not applicable
C159: Boskalis Westminster Holdings Ltd | D159: The Crown Estate (TCE) | E159: Payments to the Crown Estate M&Q | F159: Yes | G159: Yes | H159: Licence Area 457 | I159: GBP | J159: 8888 | K159: Not applicable | L159: Not applicable | M159: Not applicable
C160: Boskalis Westminster Holdings Ltd | D160: The Crown Estate (TCE) | E160: Payments to the Crown Estate M&Q | F160: Yes | G160: Yes | H160: Licence Area 457 | I160: GBP | J160: 57270 | K160: Not applicable | L160: Not applicable | M160: Not applicable
C161: Boskalis Westminster Holdings Ltd | D161: The Crown Estate (TCE) | E161: Payments to the Crown Estate M&Q | F161: Yes | G161: Yes | H161: Licence Area 457 | I161: GBP | J161: 1142364 | K161: Not applicable | L161: Not applicable | M161: Not applicable
C162: Boskalis Westminster Holdings Ltd | D162: The Crown Estate (TCE) | E162: Payments to the Crown Estate M&Q | F162: Yes | G162: Yes | H162: Licence Area 457 | I162: GBP | J162: 57270 | K162: Not applicable | L162: Not applicable | M162: Not applicable
C163: Boskalis Westminster Holdings Ltd | D163: The Crown Estate (TCE) | E163: Payments to the Crown Estate M&Q | F163: Yes | G163: Yes | H163: Licence Area 457 | I163: GBP | J163: 69620 | K163: Not applicable | L163: Not applicable | M163: Not applicable
C164: Boskalis Westminster Holdings Ltd | D164: The Crown Estate (TCE) | E164: Payments to the Crown Estate M&Q | F164: Yes | G164: Yes | H164: Licence Area 501 | I164: GBP | J164: 99860 | K164: Not applicable | L164: Not applicable | M164: Not applicable
C165: Boskalis Westminster Holdings Ltd | D165: The Crown Estate (TCE) | E165: Payments to the Crown Estate M&Q | F165: Yes | G165: Yes | H165: Licence Area 501 | I165: GBP | J165: 121600 | K165: Not applicable | L165: Not applicable | M165: Not applicable
C166: Boskalis Westminster Holdings Ltd | D166: The Crown Estate (TCE) | E166: Payments to the Crown Estate M&Q | F166: Yes | G166: Yes | H166: Licence Area 515 | I166: GBP | J166: 79680 | K166: Not applicable | L166: Not applicable | M166: Not applicable
C167: Boskalis Westminster Holdings Ltd | D167: The Crown Estate (TCE) | E167: Payments to the Crown Estate M&Q | F167: Yes | G167: Yes | H167: Licence Area 515 | I167: GBP | J167: 370807 | K167: Not applicable | L167: Not applicable | M167: Not applicable
C168: Boskalis Westminster Holdings Ltd | D168: The Crown Estate (TCE) | E168: Payments to the Crown Estate M&Q | F168: Yes | G168: Yes | H168: Licence Area 515 | I168: GBP | J168: 555771 | K168: Not applicable | L168: Not applicable | M168: Not applicable
C169: Boskalis Westminster Holdings Ltd | D169: The Crown Estate (TCE) | E169: Payments to the Crown Estate M&Q | F169: Yes | G169: Yes | H169: Licence Area 515 | I169: GBP | J169: 97110 | K169: Not applicable | L169: Not applicable | M169: Not applicable
C170: Boskalis Westminster Holdings Ltd | D170: The Crown Estate (TCE) | E170: Payments to the Crown Estate M&Q | F170: Yes | G170: Yes | H170: Licence Area 476 | I170: GBP | J170: 56544 | K170: Not applicable | L170: Not applicable | M170: Not applicable
C171: Boskalis Westminster Holdings Ltd | D171: The Crown Estate (TCE) | E171: Payments to the Crown Estate M&Q | F171: Yes | G171: Yes | H171: Licence Area 476 | I171: GBP | J171: 180699 | K171: Not applicable | L171: Not applicable | M171: Not applicable
C172: Boskalis Westminster Holdings Ltd | D172: The Crown Estate (TCE) | E172: Payments to the Crown Estate M&Q | F172: Yes | G172: Yes | H172: Licence Area 476 | I172: GBP | J172: 46404 | K172: Not applicable | L172: Not applicable | M172: Not applicable
C173: Boskalis Westminster Holdings Ltd | D173: The Crown Estate (TCE) | E173: Payments to the Crown Estate M&Q | F173: Yes | G173: Yes | H173: Licence Area 476 | I173: GBP | J173: 74594 | K173: Not applicable | L173: Not applicable | M173: Not applicable
C174: Breedon Group PLC | D174: The Crown Estate (TCE) | E174: Payments to the Crown Estate M&Q | F174: Yes | G174: Yes | H174: 4032180 | I174: GBP | J174: 8640 | K174: Not applicable | L174: Not applicable | M174: Not applicable
C175: Breedon Group PLC | D175: The Crown Estate (TCE) | E175: Payments to the Crown Estate M&Q | F175: Yes | G175: Yes | H175: 2025257 | I175: GBP | J175: 78864 | K175: Not applicable | L175: Not applicable | M175: Not applicable
C176: Breedon Group PLC | D176: The Crown Estate (TCE) | E176: Payments to the Crown Estate M&Q | F176: Yes | G176: Yes | H176: 2025257 | I176: GBP | J176: 342 | K176: Not applicable | L176: Not applicable | M176: Not applicable
C177: Breedon Group PLC | D177: The Crown Estate (TCE) | E177: Payments to the Crown Estate M&Q | F177: Yes | G177: Yes | H177: 4032180 | I177: GBP | J177: 8640 | K177: Not applicable | L177: Not applicable | M177: Not applicable
C178: Breedon Group PLC | D178: The Crown Estate (TCE) | E178: Payments to the Crown Estate M&Q | F178: Yes | G178: Yes | H178: 2025257 | I178: GBP | J178: 298 | K178: Not applicable | L178: Not applicable | M178: Not applicable
C179: Breedon Group PLC | D179: The Crown Estate (TCE) | E179: Payments to the Crown Estate M&Q | F179: Yes | G179: Yes | H179: 3031958 | I179: GBP | J179: 8364 | K179: Not applicable | L179: Not applicable | M179: Not applicable
C180: Breedon Group PLC | D180: The Crown Estate (TCE) | E180: Payments to the Crown Estate M&Q | F180: Yes | G180: Yes | H180: 2031957 | I180: GBP | J180: 1286 | K180: Not applicable | L180: Not applicable | M180: Not applicable
C181: Breedon Group PLC | D181: The Crown Estate (TCE) | E181: Payments to the Crown Estate M&Q | F181: Yes | G181: Yes | H181: 3031963 | I181: GBP | J181: 840 | K181: Not applicable | L181: Not applicable | M181: Not applicable
C182: Breedon Group PLC | D182: The Crown Estate (TCE) | E182: Payments to the Crown Estate M&Q | F182: Yes | G182: Yes | H182: 4032180 | I182: GBP | J182: 8640 | K182: Not applicable | L182: Not applicable | M182: Not applicable
C183: Breedon Group PLC | D183: The Crown Estate (TCE) | E183: Payments to the Crown Estate M&Q | F183: Yes | G183: Yes | H183: 2025257 | I183: GBP | J183: 16000 | K183: Not applicable | L183: Not applicable | M183: Not applicable
C184: Breedon Group PLC | D184: The Crown Estate (TCE) | E184: Payments to the Crown Estate M&Q | F184: Yes | G184: Yes | H184: 3031958 | I184: GBP | J184: 8364 | K184: Not applicable | L184: Not applicable | M184: Not applicable
C185: Breedon Group PLC | D185: The Crown Estate (TCE) | E185: Payments to the Crown Estate M&Q | F185: Yes | G185: Yes | H185: 3031963 | I185: GBP | J185: 840 | K185: Not applicable | L185: Not applicable | M185: Not applicable
C186: Breedon Group PLC | D186: The Crown Estate (TCE) | E186: Payments to the Crown Estate M&Q | F186: Yes | G186: Yes | H186: 2031957 | I186: GBP | J186: 1286 | K186: Not applicable | L186: Not applicable | M186: Not applicable
C187: Breedon Group PLC | D187: The Crown Estate (TCE) | E187: Payments to the Crown Estate M&Q | F187: Yes | G187: Yes | H187: 1082 | I187: GBP | J187: -38499 | K187: Not applicable | L187: Not applicable | M187: Not applicable
C188: Breedon Group PLC | D188: The Crown Estate (TCE) | E188: Payments to the Crown Estate M&Q | F188: Yes | G188: Yes | H188: 1081 | I188: GBP | J188: 2602 | K188: Not applicable | L188: Not applicable | M188: Not applicable
C189: Britannia Aggregates Ltd | D189: The Crown Estate (TCE) | E189: Payments to the Crown Estate M&Q | F189: Yes | G189: Yes | H189: 8775 | I189: GBP | J189: 16990 | K189: Not applicable | L189: Not applicable | M189: Not applicable
C190: Britannia Aggregates Ltd | D190: The Crown Estate (TCE) | E190: Payments to the Crown Estate M&Q | F190: Yes | G190: Yes | H190: 8795 | I190: GBP | J190: 40740 | K190: Not applicable | L190: Not applicable | M190: Not applicable
C191: Britannia Aggregates Ltd | D191: The Crown Estate (TCE) | E191: Payments to the Crown Estate M&Q | F191: Yes | G191: Yes | H191: 8775 | I191: GBP | J191: -7381 | K191: Not applicable | L191: Not applicable | M191: Not applicable
C192: Britannia Aggregates Ltd | D192: The Crown Estate (TCE) | E192: Payments to the Crown Estate M&Q | F192: Yes | G192: Yes | H192: 8795 | I192: GBP | J192: 334993 | K192: Not applicable | L192: Not applicable | M192: Not applicable
C193: Britannia Aggregates Ltd | D193: The Crown Estate (TCE) | E193: Payments to the Crown Estate M&Q | F193: Yes | G193: Yes | H193: 8775 | I193: GBP | J193: 16990 | K193: Not applicable | L193: Not applicable | M193: Not applicable
C194: Britannia Aggregates Ltd | D194: The Crown Estate (TCE) | E194: Payments to the Crown Estate M&Q | F194: Yes | G194: Yes | H194: 8795 | I194: GBP | J194: 40740 | K194: Not applicable | L194: Not applicable | M194: Not applicable
C195: Britannia Aggregates Ltd | D195: The Crown Estate (TCE) | E195: Payments to the Crown Estate M&Q | F195: Yes | G195: Yes | H195: 8775 | I195: GBP | J195: 38875 | K195: Not applicable | L195: Not applicable | M195: Not applicable
C196: Britannia Aggregates Ltd | D196: The Crown Estate (TCE) | E196: Payments to the Crown Estate M&Q | F196: Yes | G196: Yes | H196: 8795 | I196: GBP | J196: 380376 | K196: Not applicable | L196: Not applicable | M196: Not applicable
C197: Cemex UK Materials Ltd | D197: The Crown Estate (TCE) | E197: Payments to the Crown Estate M&Q | F197: Yes | G197: Yes | H197: Area 507/1- Shipwash 0016273 | I197: GBP | J197: 67320 | K197: Not applicable | L197: Not applicable | M197: Not applicable
C198: Cemex UK Materials Ltd | D198: The Crown Estate (TCE) | E198: Payments to the Crown Estate M&Q | F198: Yes | G198: Yes | H198: Area 510/1-2 Longsand 0016276 | I198: GBP | J198: 67320 | K198: Not applicable | L198: Not applicable | M198: Not applicable
C199: Cemex UK Materials Ltd | D199: The Crown Estate (TCE) | E199: Payments to the Crown Estate M&Q | F199: Yes | G199: Yes | H199: Area 453 Owers Extension 0016243 | I199: GBP | J199: 27036 | K199: Not applicable | L199: Not applicable | M199: Not applicable
C200: Cemex UK Materials Ltd | D200: The Crown Estate (TCE) | E200: Payments to the Crown Estate M&Q | F200: Yes | G200: Yes | H200: Area 407 St Catherine's 0010105 | I200: GBP | J200: 105504 | K200: Not applicable | L200: Not applicable | M200: Not applicable
C201: Cemex UK Materials Ltd | D201: The Crown Estate (TCE) | E201: Payments to the Crown Estate M&Q | F201: Yes | G201: Yes | H201: Area 340 Nab 0010093 | I201: GBP | J201: 50928 | K201: Not applicable | L201: Not applicable | M201: Not applicable
C202: Cemex UK Materials Ltd | D202: The Crown Estate (TCE) | E202: Payments to the Crown Estate M&Q | F202: Yes | G202: Yes | H202: Area 522 West Wight 0019141 | I202: GBP | J202: 29856 | K202: Not applicable | L202: Not applicable | M202: Not applicable
C203: Cemex UK Materials Ltd | D203: The Crown Estate (TCE) | E203: Payments to the Crown Estate M&Q | F203: Yes | G203: Yes | H203: Area 514/1-4 Humber 0016242 | I203: GBP | J203: 455722 | K203: Not applicable | L203: Not applicable | M203: Not applicable
... 157 more rows

Sheet 2.1 Sources (hidden)
A1: 2.1 Legal framework and fiscal regime
A2: Business Income Manual (HMRC) | B2: https://www.gov.uk/government/collections/business-income-manual-bim | C2: =CONCATENATE(A2,": ", B2,";") -> Business Income Manual (HMRC) : https://www.gov.uk/government/collections/business-income-manual-bim; | D2: Business Income Manual (HMRC) : https://www.gov.uk/government/collections/business-income-manual-bim;
A3: Company Taxation Manual (HMRC) | B3: https://www.gov.uk/government/collections/company-taxation-manual | C3: =CONCATENATE(A3,": ", B3,";") -> Company Taxation Manual (HMRC) : https://www.gov.uk/government/collections/company-taxation-manual; | D3: Company Taxation Manual (HMRC) : https://www.gov.uk/government/collections/company-taxation-manual;
A4: Exploration & Production Taxation Overview (Oil & Gas Authority) | B4: https://www.ogauthority.co.uk/exploration-production/taxation/overview | C4: Exploration & Production Taxation Overview (Oil & Gas Authority): https://www.ogauthority.co.uk/exploration-production/taxation/overview; | D4: Exploration & Production Taxation Overview (Oil & Gas Authority): https://www.ogauthority.co.uk/exploration-production/taxation/overview;
A5: Guidance: Minerals (MHCLG) | B5: https://www.gov.uk/guidance/minerals | C5: Guidance: Minerals (MHCLG) : https://www.gov.uk/guidance/minerals; | D5: Guidance: Minerals (MHCLG) : https://www.gov.uk/guidance/minerals;
A6: Investing on the UKCS: Fiscal (Oil & Gas Authority) | B6: https://www.ogauthority.co.uk/about-us/investing-on-the-ukcs/fiscal | C6: Investing on the UKCS: Fiscal (Oil & Gas Authority): https://www.ogauthority.co.uk/about-us/investing-on-the-ukcs/fiscal; | D6: Investing on the UKCS: Fiscal (Oil & Gas Authority): https://www.ogauthority.co.uk/about-us/investing-on-the-ukcs/fiscal;
A7: Minerals Planning Policy (Welsh Government) | B7: https://gov.wales/topics/planning/policy/minerals/?lang=en | C7: Minerals Planning Policy (Welsh Government) : https://gov.wales/topics/planning/policy/minerals/?lang=en; | D7: Minerals Planning Policy (Welsh Government) : https://gov.wales/topics/planning/policy/minerals/?lang=en;
A8: Minerals UK: Planning | B8: http://www.bgs.ac.uk/mineralsuk/planning/home.html | C8: Minerals UK: Planning : http://www.bgs.ac.uk/mineralsuk/planning/home.html; | D8: Minerals UK: Planning : http://www.bgs.ac.uk/mineralsuk/planning/home.html;
A9: National Planning Framework 3 (Scottish Government) | B9: https://beta.gov.scot/publications/national-planning-framework-3/ | C9: National Planning Framework 3 (Scottish Government) : https://beta.gov.scot/publications/national-planning-framework-3/; | D9: National Planning Framework 3 (Scottish Government) : https://beta.gov.scot/publications/national-planning-framework-3/;
A10: National Planning Policy Framework (MHCLG) | B10: https://www.gov.uk/government/uploads/system/uploads/attachment_data/file/6077/2116950.pdf | C10: National Planning Policy Framework (MHCLG) : https://www.gov.uk/government/uploads/system/uploads/attachment_data/file/6077/2116950.pdf; | D10: National Planning Policy Framework (MHCLG) : https://www.gov.uk/government/uploads/system/uploads/attachment_data/file/6077/2116950.pdf;
A11: Oil Taxation Manual (HMRC) | B11: https://www.gov.uk/hmrc-internal-manuals/oil-taxation-manual | C11: Oil Taxation Manual (HMRC): https://www.gov.uk/hmrc-internal-manuals/oil-taxation-manual; | D11: Oil Taxation Manual (HMRC): https://www.gov.uk/hmrc-internal-manuals/oil-taxation-manual;
A12: Onshore oil and gas exploration and Northern Ireland: Regulation and Best Practice (NI Government) | B12: https://www.economy-ni.gov.uk/publications/onshore-oil-and-gas-exploration-northern-ireland-regulation-and-best-practice | C12: Onshore oil and gas exploration and Northern Ireland: Regulation and Best Practice (NI Government): https://www.economy-ni.gov.uk/publications/onshore-oil-and-gas-exploration-northern-ireland-regulation-and-best-practice; | D12: Onshore oil and gas exploration and Northern Ireland: Regulation and Best Practice (NI Government): https://www.economy-ni.gov.uk/publications/onshore-oil-and-gas-exploration-northern-ireland-regulation-and-best-practice;
A13: Petroleum (Production) Act (Northern Ireland) 1964 | B13: http://www.legislation.gov.uk/apni/1964/28/contents | C13: Petroleum (Production) Act (Northern Ireland) 1964: http://www.legislation.gov.uk/apni/1964/28/contents; | D13: Petroleum (Production) Act (Northern Ireland) 1964: http://www.legislation.gov.uk/apni/1964/28/contents;
A14: Petroleum Act 1998 | B14: https://beisgov.sharepoint.com/sites/beis/335/Analysis/Work%20Streams/EITI%20Mainstreaming%20Feasibility%20Study/Drafting/www.legislation.gov.uk/ukpga/1998/17/contents | C14: Petroleum Act 1998: https://beisgov.sharepoint.com/sites/beis/335/Analysis/Work%20Streams/EITI%20Mainstreaming%20Feasibility%20Study/Drafting/www.legislation.gov.uk/ukpga/1998/17/contents; | D14: Petroleum Act 1998: https://beisgov.sharepoint.com/sites/beis/335/Analysis/Work%20Streams/EITI%20Mainstreaming%20Feasibility%20Study/Drafting/www.legislation.gov.uk/ukpga/1998/17/contents;
A15: Strategic Planning Policy Statement (NI Government) | B15: https://www.planningni.gov.uk/index/policy/spps.htm | C15: Strategic Planning Policy Statement (NI Government) : https://www.planningni.gov.uk/index/policy/spps.htm; | D15: Strategic Planning Policy Statement (NI Government) : https://www.planningni.gov.uk/index/policy/spps.htm;

Sheet 2.2 Sources (hidden)
A1: 2.2 License allocations
A2: Coal mining licence applications (Coal Authority) | B2: https://www.gov.uk/government/collections/coal-mining-licence-applications | C2: =CONCATENATE(A2,": ", B2,";") -> Coal mining licence applications (Coal Authority): https://www.gov.uk/government/collections/coal-mining-licence-applications; | D2: Coal mining licence applications (Coal Authority): https://www.gov.uk/government/collections/coal-mining-licence-applications;
A3: Crown Estate, The | B3: http://www.thecrownestate.co.uk/ | C3: =CONCATENATE(A3,": ", B3,";") -> Crown Estate, The: http://www.thecrownestate.co.uk/; | D3: Crown Estate, The: http://www.thecrownestate.co.uk/;
A4: Get a permit to deal with coal or coal mines (Coal Authority) | B4: https://www.gov.uk/get-a-permit-to-deal-with-a-coal-mine-on-your-property | C4: Get a permit to deal with coal or coal mines (Coal Authority): https://www.gov.uk/get-a-permit-to-deal-with-a-coal-mine-on-your-property; | D4: Get a permit to deal with coal or coal mines (Coal Authority): https://www.gov.uk/get-a-permit-to-deal-with-a-coal-mine-on-your-property;
A5: Licensing & Consents (Oil & Gas Authority) | B5: http://www.ogauthority.co.uk/licensing-consents/ | C5: Licensing & Consents (Oil & Gas Authority) : http://www.ogauthority.co.uk/licensing-consents/; | D5: Licensing & Consents (Oil & Gas Authority) : http://www.ogauthority.co.uk/licensing-consents/;
A6: Licensing and regulation (British Marine Aggregate Producers Association) | B6: http://www.bmapa.org/regulation_and_management/licensing_and_regulation.php | C6: Licensing and regulation (British Marine Aggregate Producers Association): http://www.bmapa.org/regulation_and_management/licensing_and_regulation.php; | D6: Licensing and regulation (British Marine Aggregate Producers Association): http://www.bmapa.org/regulation_and_management/licensing_and_regulation.php;
A7: Minerals Licensing (NI government) | B7: http://www.economy-ni.gov.uk/articles/minerals-licensing | C7: Minerals Licensing (NI government): http://www.economy-ni.gov.uk/articles/minerals-licensing; | D7: Minerals Licensing (NI government): http://www.economy-ni.gov.uk/articles/minerals-licensing;
A8: Petroleum Licensing (NI government) | B8: http://www.economy-ni.gov.uk/articles/petroleum-licensing | C8: Petroleum Licensing (NI government): http://www.economy-ni.gov.uk/articles/petroleum-licensing; | D8: Petroleum Licensing (NI government): http://www.economy-ni.gov.uk/articles/petroleum-licensing;

Sheet 2.3 Sources (hidden)
A1: 2.3 Register of licenses
A2: Coal Authority | B2: https://www.gov.uk/government/organisations/the-coal-authority | C2: =CONCATENATE(A2,": ", B2,";") -> Coal Authority: https://www.gov.uk/government/organisations/the-coal-authority; | D2: Coal Authority: https://www.gov.uk/government/organisations/the-coal-authority;
A3: Coal Authority metadata | B3: https://www.gov.uk/government/collections/coal-mining-data | C3: =CONCATENATE(A3,": ", B3,";") -> Coal Authority metadata: https://www.gov.uk/government/collections/coal-mining-data; | D3: Coal Authority metadata: https://www.gov.uk/government/collections/coal-mining-data;
A4: Interactive maps and tools (Oil & Gas Authority) | B4: https://www.ogauthority.co.uk/data-centre/interactive-maps-and-tools/ | C4: Interactive maps and tools (Oil & Gas Authority): https://www.ogauthority.co.uk/data-centre/interactive-maps-and-tools/; | D4: Interactive maps and tools (Oil & Gas Authority): https://www.ogauthority.co.uk/data-centre/interactive-maps-and-tools/;
A5: Licence Data (Oil & Gas Authority) | B5: http://www.ogauthority.co.uk/data-centre/data-downloads-and-publications/licence-data | C5: Licence Data (Oil & Gas Authority): http://www.ogauthority.co.uk/data-centre/data-downloads-and-publications/licence-data; | D5: Licence Data (Oil & Gas Authority): http://www.ogauthority.co.uk/data-centre/data-downloads-and-publications/licence-data;
A6: Marine Licensing Applications received and determined (Welsh Government) | B6: https://naturalresources.wales/permits-and-permissions/marine-licensing/applications-received-and-determined/?lang=en | C6: Marine Licensing Applications received and determined (Welsh Government): https://naturalresources.wales/permits-and-permissions/marine-licensing/applications-received-and-determined/?lang=en; | D6: Marine Licensing Applications received and determined (Welsh Government): https://naturalresources.wales/permits-and-permissions/marine-licensing/applications-received-and-determined/?lang=en;
A7: Marine Licensing Information (Scottish Government) | B7: http://www.gov.scot/Topics/marine/Licensing/marine/register | C7: Marine Licensing Information (Scottish Government): http://www.gov.scot/Topics/marine/Licensing/marine/register; | D7: Marine Licensing Information (Scottish Government): http://www.gov.scot/Topics/marine/Licensing/marine/register;
A8: Northern Ireland Environment Agency | B8: https://www.daera-ni.gov.uk/northern-ireland-environment-agency | C8: Northern Ireland Environment Agency: https://www.daera-ni.gov.uk/northern-ireland-environment-agency; | D8: Northern Ireland Environment Agency: https://www.daera-ni.gov.uk/northern-ireland-environment-agency;
A9: Petroleum licence map (NI Government) | B9: https://www.daera-ni.gov.uk/northern-ireland-environment-agency | C9: Petroleum licence map (NI Government): https://www.daera-ni.gov.uk/northern-ireland-environment-agency; | D9: Petroleum licence map (NI Government): https://www.daera-ni.gov.uk/northern-ireland-environment-agency;
A10: Petroleum licensing (NI Government) | B10: http://www.economy-ni.gov.uk/articles/petroleum-licensing | C10: Petroleum licensing (NI Government): http://www.economy-ni.gov.uk/articles/petroleum-licensing; | D10: Petroleum licensing (NI Government): http://www.economy-ni.gov.uk/articles/petroleum-licensing;
A11: Production Licences (British Marine Aggregate Producers Association) | B11: https://www.bmapa.org/resources_and_operations/production_licences.php | C11: Production Licences (British Marine Aggregate Producers Association): https://www.bmapa.org/resources_and_operations/production_licences.php; | D11: Production Licences (British Marine Aggregate Producers Association): https://www.bmapa.org/resources_and_operations/production_licences.php;
A12: Public register (Marine Management Organisation) | B12: https://marinelicensing.marinemanagement.org.uk/mmo/fox/live/MMO_PUBLIC_REGISTER | C12: Public register (Marine Management Organisation): https://marinelicensing.marinemanagement.org.uk/mmo/fox/live/MMO_PUBLIC_REGISTER; | D12: Public register (Marine Management Organisation): https://marinelicensing.marinemanagement.org.uk/mmo/fox/live/MMO_PUBLIC_REGISTER;

Sheet 3.1 Sources (hidden)
A1: 3.1 Exploration
A2: Business Outlook 2018 (Oil & Gas UK) | B2: =GetURL(A2) -> http://oilandgasuk.co.uk/businessoutlook | C2: =CONCATENATE(A2,": ", B2,";") -> Business Outlook 2018 (Oil & Gas UK): http://oilandgasuk.co.uk/businessoutlook; | D2: Business Outlook 2018 (Oil & Gas UK): http://oilandgasuk.co.uk/businessoutlook;
A3: Economic Report 2017 (Oil & Gas UK) | B3: =GetURL(A3) -> http://oilandgasuk.co.uk/wp-content/uploads/2017/09/Economic-Report-2017-Oil-Gas-UK.pdf | C3: =CONCATENATE(A3,": ", B3,";") -> Economic Report 2017 (Oil & Gas UK): http://oilandgasuk.co.uk/wp-content/uploads/2017/09/Economic-Report-2017-Oil-Gas-UK.pdf; | D3: Economic Report 2017 (Oil & Gas UK): http://oilandgasuk.co.uk/wp-content/uploads/2017/09/Economic-Report-2017-Oil-Gas-UK.pdf;
A4: Economic Report 2018 (Oil & Gas UK) | B4: https://oilandgasuk.co.uk/economicreport/ | C4: Economic Report 2018 (Oil & Gas UK): https://oilandgasuk.co.uk/economicreport/; | D4: Economic Report 2018 (Oil & Gas UK): https://oilandgasuk.co.uk/economicreport/;
A5: Exploration (Oil & Gas Authority) | B5: https://www.ogauthority.co.uk/exploration-production/exploration/ | C5: Exploration (Oil & Gas Authority): https://www.ogauthority.co.uk/exploration-production/exploration/; | D5: Exploration (Oil & Gas Authority): https://www.ogauthority.co.uk/exploration-production/exploration/;
A6: Exploration: Current Activities (Minerals UK) | B6: http://www.bgs.ac.uk/mineralsuk/exploration/current.html | C6: Exploration: Current Activities (Minerals UK): http://www.bgs.ac.uk/mineralsuk/exploration/current.html; | D6: Exploration: Current Activities (Minerals UK): http://www.bgs.ac.uk/mineralsuk/exploration/current.html;
A7: Landward Exploration Licences (Oil & Gas Authority) | B7: https://www.ogauthority.co.uk/media/4614/copy-of-expl-licences-land.xls | C7: Landward Exploration Licences (Oil & Gas Authority): https://www.ogauthority.co.uk/media/4614/copy-of-expl-licences-land.xls; | D7: Landward Exploration Licences (Oil & Gas Authority): https://www.ogauthority.co.uk/media/4614/copy-of-expl-licences-land.xls;
A8: Mineral Products Association | B8: https://mineralproducts.org/ | C8: Mineral Products Association: https://mineralproducts.org/; | D8: Mineral Products Association: https://mineralproducts.org/;
A9: Oil & Gas Authority Annual Report and Accounts 2016-17 | B9: https://www.ogauthority.co.uk/news-publications/publications/2017/oga-annual-report-and-accounts-2016-17/ | C9: Oil & Gas Authority Annual Report and Accounts 2016-17: https://www.ogauthority.co.uk/news-publications/publications/2017/oga-annual-report-and-accounts-2016-17/; | D9: Oil & Gas Authority Annual Report and Accounts 2016-17: https://www.ogauthority.co.uk/news-publications/publications/2017/oga-annual-report-and-accounts-2016-17/;
A10: Seaward Exploration Licences (Oil& Gas Authority) | B10: https://www.ogauthority.co.uk/media/5021/copy-of-expl-licences-sea.xls | C10: Seaward Exploration Licences (Oil& Gas Authority): https://www.ogauthority.co.uk/media/5021/copy-of-expl-licences-sea.xls; | D10: Seaward Exploration Licences (Oil& Gas Authority): https://www.ogauthority.co.uk/media/5021/copy-of-expl-licences-sea.xls;
A11: United Kingdom Minerals Yearbook 2015 (British Geological Survey) | B11: http://www.bgs.ac.uk/downloads/start.cfm?id=3094 | C11: United Kingdom Minerals Yearbook 2015 (British Geological Survey): http://www.bgs.ac.uk/downloads/start.cfm?id=3094; | D11: United Kingdom Minerals Yearbook 2015 (British Geological Survey): http://www.bgs.ac.uk/downloads/start.cfm?id=3094;

Sheet 3.2 Sources (hidden)
A1: 3.2 Production
A2: Business Outlook 2018 (Oil & Gas UK) | B2: =GetURL(A2) -> https://oilandgasuk.co.uk/businessoutlook | C2: =CONCATENATE(A2,": ", B2,";") -> Business Outlook 2018 (Oil & Gas UK): https://oilandgasuk.co.uk/businessoutlook; | D2: Business Outlook 2018 (Oil & Gas UK): https://oilandgasuk.co.uk/businessoutlook;
A3: Digest of UK Energy Statistics (BEIS) | B3: =GetURL(A3) -> https://www.gov.uk/government/collections/digest-of-uk-energy-statistics-dukes | C3: =CONCATENATE(A3,": ", B3,";") -> Digest of UK Energy Statistics (BEIS): https://www.gov.uk/government/collections/digest-of-uk-energy-statistics-dukes; | D3: Digest of UK Energy Statistics (BEIS): https://www.gov.uk/government/collections/digest-of-uk-energy-statistics-dukes;
A4: Economic Report 2018 (Oil & Gas UK) | B4: https://oilandgasuk.co.uk/economicreport/ | C4: Economic Report 2018 (Oil & Gas UK): https://oilandgasuk.co.uk/economicreport/; | D4: Economic Report 2018 (Oil & Gas UK): https://oilandgasuk.co.uk/economicreport/;
A5: Energy Trends: gas | B5: https://www.gov.uk/government/statistics/gas-section-4-energy-trends | C5: Energy Trends: gas: https://www.gov.uk/government/statistics/gas-section-4-energy-trends; | D5: Energy Trends: gas: https://www.gov.uk/government/statistics/gas-section-4-energy-trends;
A6: Energy Trends: oil and oil products | B6: https://www.gov.uk/government/statistics/oil-and-oil-products-section-3-energy-trends | C6: Energy Trends: oil and oil products: https://www.gov.uk/government/statistics/oil-and-oil-products-section-3-energy-trends; | D6: Energy Trends: oil and oil products: https://www.gov.uk/government/statistics/oil-and-oil-products-section-3-energy-trends;
A7: Energy Trends: solid fuels and derived gases (BEIS) | B7: https://www.gov.uk/government/statistics/solid-fuels-and-derived-gases-section-2-energy-trends | C7: Energy Trends: solid fuels and derived gases (BEIS): https://www.gov.uk/government/statistics/solid-fuels-and-derived-gases-section-2-energy-trends; | D7: Energy Trends: solid fuels and derived gases (BEIS): https://www.gov.uk/government/statistics/solid-fuels-and-derived-gases-section-2-energy-trends;
A8: Minerals Statements (NI Government) | B8: https://www.economy-ni.gov.uk/articles/minerals-statements | C8: Minerals Statements (NI Government): https://www.economy-ni.gov.uk/articles/minerals-statements; | D8: Minerals Statements (NI Government): https://www.economy-ni.gov.uk/articles/minerals-statements;
A9: Oil and Gas Production Statistics 2017-18 (Scottish Government) | B9: https://www.gov.scot/Topics/Statistics/Browse/Economy/oilgas1718 | C9: Oil and Gas Production Statistics 2017-18 (Scottish Government): https://www.gov.scot/Topics/Statistics/Browse/Economy/oilgas1718; | D9: Oil and Gas Production Statistics 2017-18 (Scottish Government): https://www.gov.scot/Topics/Statistics/Browse/Economy/oilgas1718;
A10: Production and expenditure projections (Oil & Gas Authority) | B10: https://www.ogauthority.co.uk/data-centre/data-downloads-and-publications/production-projections/ | C10: Production and expenditure projections (Oil & Gas Authority): https://www.ogauthority.co.uk/data-centre/data-downloads-and-publications/production-projections/; | D10: Production and expenditure projections (Oil & Gas Authority): https://www.ogauthority.co.uk/data-centre/data-downloads-and-publications/production-projections/;
A11: Seismic data | B11: https://www.ogauthority.co.uk/data-centre/data-downloads-and-publications/ | C11: Seismic data: https://www.ogauthority.co.uk/data-centre/data-downloads-and-publications/; | D11: Seismic data: https://www.ogauthority.co.uk/data-centre/data-downloads-and-publications/;
A12: The Mineral Products Industry Facts at a Glance (Mineral Products Association) | B12: https://mineralproducts.org/documents/Facts-at-a-Glance-2018.pdf | C12: The Mineral Products Industry Facts at a Glance (Mineral Products Association): https://mineralproducts.org/documents/Facts-at-a-Glance-2018.pdf; | D12: The Mineral Products Industry Facts at a Glance (Mineral Products Association): https://mineralproducts.org/documents/Facts-at-a-Glance-2018.pdf;
A13: The Mineral Products Profile of the Industry | B13: https://mineralproducts.org/documents/Profile-of-the-UK-Mineral-Products-Industry-2018-Statistical-Background.xlsx | C13: The Mineral Products Profile of the Industry: https://mineralproducts.org/documents/Profile-of-the-UK-Mineral-Products-Industry-2018-Statistical-Background.xlsx; | D13: The Mineral Products Profile of the Industry: https://mineralproducts.org/documents/Profile-of-the-UK-Mineral-Products-Industry-2018-Statistical-Background.xlsx;
A14: UKCS Production (Oil & Gas Authority) | B14: https://data-ogauthority.opendata.arcgis.com/pages/production | C14: UKCS Production (Oil & Gas Authority): https://data-ogauthority.opendata.arcgis.com/pages/production; | D14: UKCS Production (Oil & Gas Authority): https://data-ogauthority.opendata.arcgis.com/pages/production;

Sheet 5.1 Sources (hidden)
A1: 5.1 Distribution of extractive industry revenues
A2: Budget (HM Treasury) | B2: =GetURL(A2) -> https://www.gov.uk/search?q=Budget+&show_organisations_filter=true | C2: =CONCATENATE(A2,": ", B2,";") -> Budget (HM Treasury): https://www.gov.uk/search?q=Budget+&show_organisations_filter=true; | D2: Budget (HM Treasury): https://www.gov.uk/search?q=Budget+&show_organisations_filter=true;
A3: Economic and Fiscal Outlook October 2018 (OBR) | B3: =GetURL(A3) -> https://obr.uk/efo/ | C3: =CONCATENATE(A3,": ", B3,";") -> Economic and Fiscal Outlook October 2018 (OBR): https://obr.uk/efo/; | D3: Economic and Fiscal Outlook October 2018 (OBR): https://obr.uk/efo/;

Sheet 5.2 Sources (hidden)
A1: 5.2 Subnational transfers
A2: Oil & Gas Authority Annual Report and Accounts | B2: =GetURL(A2) -> https://www.ogauthority.co.uk/about-us/leadership-governance/annual-report-and-accounts/ | C2: =CONCATENATE(A2,": ", B2,";") -> Oil & Gas Authority Annual Report and Accounts: https://www.ogauthority.co.uk/about-us/leadership-governance/annual-report-and-accounts/; | D2: Oil & Gas Authority Annual Report and Accounts: https://www.ogauthority.co.uk/about-us/leadership-governance/annual-report-and-accounts/;
A3: Public Income and Expenditure Accounts (NI Government) | B3: =GetURL(A3) -> https://www.finance-ni.gov.uk/publications/public-income-and-expenditure-accounts | C3: =CONCATENATE(A3,": ", B3,";") -> Public Income and Expenditure Accounts (NI Government): https://www.finance-ni.gov.uk/publications/public-income-and-expenditure-accounts; | D3: Public Income and Expenditure Accounts (NI Government): https://www.finance-ni.gov.uk/publications/public-income-and-expenditure-accounts;

Sheet 5.3 Sources (hidden)
A1: 5.3 Revenue management and expenditures
A2: Data on payments of the Oil and Gas Authority (OGA) levy in 2016 (BEIS) | B2: =GetURL(A2) -> https://www.gov.uk/government/uploads/system/uploads/attachment_data/file/703218/eiti-2016-oga-levy.csv/preview | C2: =CONCATENATE(A2,": ", B2,";") -> Data on payments of the Oil and Gas Authority (OGA) levy in 2016 (BEIS): https://www.gov.uk/government/uploads/system/uploads/attachment_data/file/703218/eiti-2016-oga-levy.csv/preview; | D2: Data on payments of the Oil and Gas Authority (OGA) levy in 2016 (BEIS): https://www.gov.uk/government/uploads/system/uploads/attachment_data/file/703218/eiti-2016-oga-levy.csv/preview;
A3: Oil & Gas Authority Annual Report and Accounts | B3: =GetURL(A3) -> https://www.ogauthority.co.uk/about-us/leadership-governance/annual-report-and-accounts/ | C3: =CONCATENATE(A3,": ", B3,";") -> Oil & Gas Authority Annual Report and Accounts: https://www.ogauthority.co.uk/about-us/leadership-governance/annual-report-and-accounts/; | D3: Oil & Gas Authority Annual Report and Accounts: https://www.ogauthority.co.uk/about-us/leadership-governance/annual-report-and-accounts/;
A4: Public Income and Expenditure Accounts (NI Government) | B4: =GetURL(A4) -> https://www.finance-ni.gov.uk/publications/public-income-and-expenditure-accounts | C4: =CONCATENATE(A4,": ", B4,";") -> Public Income and Expenditure Accounts (NI Government): https://www.finance-ni.gov.uk/publications/public-income-and-expenditure-accounts; | D4: Public Income and Expenditure Accounts (NI Government): https://www.finance-ni.gov.uk/publications/public-income-and-expenditure-accounts;

Sheet 6.3 Sources (hidden)
A1: 6.3 The contribution of the extractive sector to the economy
A2: About the Industry (Oil & Gas UK) | B2: =GetURL(A2) -> https://oilandgasuk.co.uk/knowledge_centre/ | C2: =CONCATENATE(A2,": ", B2,";") -> About the Industry (Oil & Gas UK): https://oilandgasuk.co.uk/knowledge_centre/; | D2: About the Industry (Oil & Gas UK): https://oilandgasuk.co.uk/knowledge_centre/;
A3: Business services (ONS) | B3: =GetURL(A3) -> https://www.ons.gov.uk/businessindustryandtrade/business/businessservices | C3: =CONCATENATE(A3,": ", B3,";") -> Business services (ONS): https://www.ons.gov.uk/businessindustryandtrade/business/businessservices; | D3: Business services (ONS): https://www.ons.gov.uk/businessindustryandtrade/business/businessservices;
A4: Digest of UK Energy Statistics (BEIS) | B4: https://www.gov.uk/government/collections/digest-of-uk-energy-statistics-dukes | C4: Digest of UK Energy Statistics (BEIS): https://www.gov.uk/government/collections/digest-of-uk-energy-statistics-dukes; | D4: Digest of UK Energy Statistics (BEIS): https://www.gov.uk/government/collections/digest-of-uk-energy-statistics-dukes;
A5: Economic and fiscal outlook – October 2018 (OBR) | B5: http://www.obr.uk/efo/ | C5: Economic and fiscal outlook – October 2018 (OBR): http://www.obr.uk/efo/; | D5: Economic and fiscal outlook – October 2018 (OBR): http://www.obr.uk/efo/;
A6: GDP output approach – low-level aggregates (ONS) | B6: https://www.ons.gov.uk/economy/grossdomesticproductgdp/datasets/ukgdpolowlevelaggregates | C6: GDP output approach – low-level aggregates (ONS): https://www.ons.gov.uk/economy/grossdomesticproductgdp/datasets/ukgdpolowlevelaggregates; | D6: GDP output approach – low-level aggregates (ONS): https://www.ons.gov.uk/economy/grossdomesticproductgdp/datasets/ukgdpolowlevelaggregates;
A7: Regional gross value added (income approach) (ONS) | B7: https://www.ons.gov.uk/economy/grossvalueaddedgva/datasets/regionalgrossvalueaddedincomeapproach | C7: Regional gross value added (income approach) (ONS): https://www.ons.gov.uk/economy/grossvalueaddedgva/datasets/regionalgrossvalueaddedincomeapproach; | D7: Regional gross value added (income approach) (ONS): https://www.ons.gov.uk/economy/grossvalueaddedgva/datasets/regionalgrossvalueaddedincomeapproach;
A8: UK labour market statistics: March 2018 (ONS) | B8: https://www.ons.gov.uk/releases/uklabourmarketstatisticsmar2018 | C8: UK labour market statistics: March 2018 (ONS): https://www.ons.gov.uk/releases/uklabourmarketstatisticsmar2018; | D8: UK labour market statistics: March 2018 (ONS): https://www.ons.gov.uk/releases/uklabourmarketstatisticsmar2018;
A9: UKCS companies gross operating surplus (ONS) | B9: https://www.ons.gov.uk/economy/nationalaccounts/uksectoraccounts/timeseries/lrwx/prof | C9: UKCS companies gross operating surplus (ONS): https://www.ons.gov.uk/economy/nationalaccounts/uksectoraccounts/timeseries/lrwx/prof; | D9: UKCS companies gross operating surplus (ONS): https://www.ons.gov.uk/economy/nationalaccounts/uksectoraccounts/timeseries/lrwx/prof;
A10: United Kingdom mineral statistics (Minerals UK) | B10: http://www.bgs.ac.uk/mineralsUK/statistics/ukStatistics.html | C10: United Kingdom mineral statistics (Minerals UK): http://www.bgs.ac.uk/mineralsUK/statistics/ukStatistics.html; | D10: United Kingdom mineral statistics (Minerals UK): http://www.bgs.ac.uk/mineralsUK/statistics/ukStatistics.html;

Sheet Lists (hidden)
A1: Table 1 - Country codes | I1: Table 2 - Simple options | K1: Table 3 - Reporting options | N1: Table 5 - Commodities list | S1: Table 6 - GFS Codes / Classification | AA1: Table 7 - Sectors | AC1: Table 8 - Project phases | AE1: Table 9 - Government entity types
A2: Country or Area name | B2: ISO Alpha-2 Code | C2: ISO Alpha-3 Code | D2: ISO Numeric Code (UN M49) | E2: Currency code (ISO-4217) | F2: Currency code num (ISO-4217) | G2: Currency | I2: List | K2: List | N2: HS ProductCode | O2: HS Product Description | P2: HS Product Description w volume | S2: Combined | T2: GFS description | U2: GFS Code | V2: GFS Level 1 | W2: GFS Level 2 | X2: GFS Level 3 | Y2: GFS Level 4 | AA2: Sector(s) | AC2: Project phases | AE2: < Agency type >
A3: United States of America | B3: US | C3: USA | D3: 840 | E3: USD | F3: 840 | G3: United States dollar | I3: < Choose option > | K3: < EITI Reporting or systematically disclosed? > | N3: 2606 | O3: Aluminium (2606) | P3: Aluminium (2606), volume | S3: Ordinary taxes on income, profits and capital gains (1112E1) | T3: Ordinary taxes on income, profits and capital gains | U3: 1112E1 | V3: Taxes (11E) | W3: Taxes on income, profits and capital gains (111E) | X3: Ordinary taxes on income, profits and capital gains (1112E1) | Y3: Ordinary taxes on income, profits and capital gains (1112E1) | AA3: <Choose sector> | AC3: < Choose phase > | AE3: Central goverment
A4: Afghanistan | B4: AF | C4: AFG | D4: 4 | E4: AFN | F4: 971 | G4: Afghan afghani | I4: Yes | K4: Yes, systematically disclosed | N4: 2524 | O4: Asbestos (2524) | P4: Asbestos (2524), volume | S4: Extraordinary taxes on income, profits and capital gains (1112E2) | T4: Extraordinary taxes on income, profits and capital gains | U4: 1112E2 | V4: Taxes (11E) | W4: Taxes on income, profits and capital gains (111E) | X4: Extraordinary taxes on income, profits and capital gains (1112E2) | Y4: Extraordinary taxes on income, profits and capital gains (1112E2) | AA4: Oil | AC4: Exploration | AE4: State government
A5: Aland Islands | B5: AX | C5: ALA | D5: 248 | E5: EUR | F5: 978 | G5: Euro | I5: Partially | K5: Yes, through EITI reporting | N5: 2620 | O5: Ash and residues (2620) | P5: Ash and residues (2620), volume | S5: Taxes on payroll and workforce (112E) | T5: Taxes on payroll and workforce | U5: 112E | V5: Taxes (11E) | W5: Taxes on payroll and workforce (112E) | X5: Taxes on payroll and workforce (112E) | Y5: Taxes on payroll and workforce (112E) | AA5: Gas | AC5: Production | AE5: Local government
A6: Albania | B6: AL | C6: ALB | D6: 8 | E6: ALL | F6: 8 | G6: Albanian lek | I6: No | K6: Not applicable | N6: 2714 | O6: Bitumen and asphalt (2714) | P6: Bitumen and asphalt (2714), volume | S6: Taxes on property (113E) | T6: Taxes on property | U6: 113E | V6: Taxes (11E) | W6: Taxes on property (113E) | X6: Taxes on property (113E) | Y6: Taxes on property (113E) | AA6: Mining | AC6: Development | AE6: State-owned enterprises & public corporations
A7: Algeria | B7: DZ | C7: DZA | D7: 12 | E7: DZD | F7: 12 | G7: Algerian dinar | I7: Not applicable | K7: Not available | N7: 2715 | O7: Bituminous mixtures (2715) | P7: Bituminous mixtures (2715), volume | S7: General taxes on goods and services (VAT, sales tax, turnover tax) (1141E) | T7: General taxes on goods and services (VAT, sales tax, turnover tax) | U7: 1141E | V7: Taxes (11E) | W7: Taxes on goods and services (114E) | X7: General taxes on goods and services (VAT, sales tax, turnover tax) (1141E) | Y7: General taxes on goods and services (VAT, sales tax, turnover tax) (1141E) | AA7: Not applicable | AC7: Other | AE7: Other
A8: American Samoa | B8: AS | C8: ASM | D8: 16 | E8: USD | F8: 840 | G8: United States dollar | N8: 2509 | O8: Chalk (2509) | P8: Chalk (2509), volume | S8: Excise taxes (1142E) | T8: Excise taxes | U8: 1142E | V8: Taxes (11E) | W8: Taxes on goods and services (114E) | X8: Excise taxes (1142E) | Y8: Excise taxes (1142E) | AA8: Oil & Gas | AC8: Not applicable
A9: Andorra | B9: AD | C9: AND | D9: 20 | E9: EUR | F9: 978 | G9: Euro | I9: Table 4 - Currency code list | N9: 2610 | O9: Chromium (2610) | P9: Chromium (2610), volume | S9: Licence fees (114521E) | T9: Licence fees | U9: 114521E | V9: Taxes (11E) | W9: Taxes on goods and services (114E) | X9: Taxes on use of goods/permission to use goods or perform activities (1145E) | Y9: Licence fees (114521E) | AA9: Other
A10: Angola | B10: AO | C10: AGO | D10: 24 | E10: AOA | F10: 973 | G10: Angolan kwanza | I10: Currency code (ISO-4217) | J10: Currency code num (ISO-4217) | K10: Currency | N10: 2701 | O10: Coal (2701) | P10: Coal (2701), volume | S10: Emission and pollution taxes (114522E) | T10: Emission and pollution taxes | U10: 114522E | V10: Taxes (11E) | W10: Taxes on goods and services (114E) | X10: Taxes on use of goods/permission to use goods or perform activities (1145E) | Y10: Emission and pollution taxes (114522E)
A11: Anguilla | B11: AI | C11: AIA | D11: 660 | E11: XCD | F11: 951 | G11: East Caribbean dollar | I11: AED | J11: 784 | K11: United Arab Emirates dirham | N11: 2705 | O11: Coal gas (2705) | P11: Coal gas (2705), volume | S11: Motor vehicle taxes (11451E) | T11: Motor vehicle taxes | U11: 11451E | V11: Taxes (11E) | W11: Taxes on goods and services (114E) | X11: Taxes on use of goods/permission to use goods or perform activities (1145E) | Y11: Motor vehicle taxes (11451E)
A12: Antigua and Barbuda | B12: AG | C12: ATG | D12: 28 | E12: XCD | F12: 951 | G12: East Caribbean dollar | I12: AFN | J12: 971 | K12: Afghan afghani | N12: 2605 | O12: Cobalt (2605) | P12: Cobalt (2605), volume | S12: Customs and other import duties (1151E) | T12: Customs and other import duties | U12: 1151E | V12: Taxes (11E) | W12: Taxes on international trade and transactions (115E) | X12: Customs and other import duties (1151E) | Y12: Customs and other import duties (1151E)
A13: Argentina | B13: AR | C13: ARG | D13: 32 | E13: ARS | F13: 32 | G13: Argentine peso | I13: ALL | J13: 8 | K13: Albanian lek | N13: 2704 | O13: Coke and semi-coke (2704) | P13: Coke and semi-coke (2704), volume | S13: Taxes on exports (1152E) | T13: Taxes on exports | U13: 1152E | V13: Taxes (11E) | W13: Taxes on international trade and transactions (115E) | X13: Taxes on exports (1152E) | Y13: Taxes on exports (1152E)
A14: Armenia | B14: AM | C14: ARM | D14: 51 | E14: AMD | F14: 51 | G14: Armenian dram | I14: AMD | J14: 51 | K14: Armenian dram | N14: 2603 | O14: Copper (2603) | P14: Copper (2603), volume | S14: Profits of natural resource export monopolies (1153E1) | T14: Profits of natural resource export monopolies | U14: 1153E1 | V14: Taxes (11E) | W14: Taxes on international trade and transactions (115E) | X14: Profits of natural resource export monopolies (1153E1) | Y14: Profits of natural resource export monopolies (1153E1)
A15: Aruba | B15: AW | C15: ABW | D15: 533 | E15: AWG | F15: 533 | G15: Aruban florin | I15: ANG | J15: 532 | K15: Netherlands Antillean guilder | N15: 2709 | O15: Crude oil (2709) | P15: Crude oil (2709), volume | S15: Other taxes payable by natural resource companies (116E) | T15: Other taxes payable by natural resource companies | U15: 116E | V15: Taxes (11E) | W15: Other taxes payable by natural resource companies (116E) | X15: Other taxes payable by natural resource companies (116E) | Y15: Other taxes payable by natural resource companies (116E)
A16: Australia | B16: AU | C16: AUS | D16: 36 | E16: AUD | F16: 36 | G16: Australian dollar | I16: AOA | J16: 973 | K16: Angolan kwanza | N16: 7102 | O16: Diamonds (7102) | P16: Diamonds (7102), volume | S16: Social security employer contributions (1212E) | T16: Social security employer contributions | U16: 1212E | V16: Social contributions (12E) | W16: Social security employer contributions (1212E) | X16: Social security employer contributions (1212E) | Y16: Social security employer contributions (1212E)
A17: Austria | B17: AT | C17: AUT | D17: 40 | E17: EUR | F17: 978 | G17: Euro | I17: ARS | J17: 32 | K17: Argentine peso | N17: 2518 | O17: Dolomite (2518) | P17: Dolomite (2518), volume | S17: From state-owned enterprises (1412E1) | T17: From state-owned enterprises | U17: 1412E1 | V17: Other revenue (14E) | W17: Property income (141E) | X17: Dividends (1412E) | Y17: From state-owned enterprises (1412E1)
A18: Azerbaijan | B18: AZ | C18: AZE | D18: 31 | E18: AZN | F18: 944 | G18: Azerbaijani manat | I18: AUD | J18: 36 | K18: Australian dollar | N18: 2716 | O18: Electrical energy (2716) | P18: Electrical energy (2716), volume | S18: From government participation (equity) (1412E2) | T18: From government participation (equity) | U18: 1412E2 | V18: Other revenue (14E) | W18: Property income (141E) | X18: Dividends (1412E) | Y18: From government participation (equity) (1412E2)
A19: Bahamas | B19: BS | C19: BHS | D19: 44 | E19: BSD | F19: 44 | G19: Bahamian dollar | I19: AWG | J19: 533 | K19: Aruban florin | N19: 2529 | O19: Felspar (2529) | P19: Felspar (2529), volume | S19: Withdrawals from income of quasi-corporations (1413E) | T19: Withdrawals from income of quasi-corporations | U19: 1413E | V19: Other revenue (14E) | W19: Property income (141E) | X19: Withdrawals from income of quasi-corporations (1413E) | Y19: Withdrawals from income of quasi-corporations (1413E)
A20: Bahrain | B20: BH | C20: BHR | D20: 48 | E20: BHD | F20: 48 | G20: Bahraini dinar | I20: AZN | J20: 944 | K20: Azerbaijani manat | N20: 7108 | O20: Gold (7108) | P20: Gold (7108), volume | S20: Royalties (1415E1) | T20: Royalties | U20: 1415E1 | V20: Other revenue (14E) | W20: Property income (141E) | X20: Rent (1415E) | Y20: Royalties (1415E1)
A21: Bangladesh | B21: BD | C21: BGD | D21: 50 | E21: BDT | F21: 50 | G21: Bangladeshi taka | I21: BAM | J21: 977 | K21: Bosnia and Herzegovina convertible mark | N21: 2516 | O21: Granite (2516) | P21: Granite (2516), volume | S21: Bonuses (1415E2) | T21: Bonuses | U21: 1415E2 | V21: Other revenue (14E) | W21: Property income (141E) | X21: Rent (1415E) | Y21: Bonuses (1415E2)
A22: Barbados | B22: BB | C22: BRB | D22: 52 | E22: BBD | F22: 52 | G22: Barbadian dollar | I22: BBD | J22: 52 | K22: Barbadian dollar | N22: 2618 | O22: Granulated slag (2618) | P22: Granulated slag (2618), volume | S22: Delivered/paid directly to government (1415E31) | T22: Delivered/paid directly to government | U22: 1415E31 | V22: Other revenue (14E) | W22: Property income (141E) | X22: Rent (1415E) | Y22: Production entitlements (in-kind or cash) (1415E3)
A23: Belarus | B23: BY | C23: BLR | D23: 112 | E23: BYR | F23: 974 | G23: Belarussian ruble | I23: BDT | J23: 50 | K23: Bangladeshi taka | N23: 2520 | O23: Gypsum (2520) | P23: Gypsum (2520), volume | S23: Delivered/paid to state-owned enterprise(s) (1415E32) | T23: Delivered/paid to state-owned enterprise(s) | U23: 1415E32 | V23: Other revenue (14E) | W23: Property income (141E) | X23: Rent (1415E) | Y23: Production entitlements (in-kind or cash) (1415E3)
A24: Belgium | B24: BE | C24: BEL | D24: 56 | E24: EUR | F24: 978 | G24: Euro | I24: BGN | J24: 975 | K24: Bulgarian lev (old) | N24: 2601 | O24: Iron (2601) | P24: Iron (2601), volume | S24: Compulsory transfers to government (infrastructure and other) (1415E4) | T24: Compulsory transfers to government (infrastructure and other) | U24: 1415E4 | V24: Other revenue (14E) | W24: Property income (141E) | X24: Rent (1415E) | Y24: Compulsory transfers to government (infrastructure and other) (1415E4)
A25: Belize | B25: BZ | C25: BLZ | D25: 84 | E25: BZD | F25: 84 | G25: Belize dollar | I25: BHD | J25: 48 | K25: Bahraini dinar | N25: 2502 | O25: Iron pyrites (2502) | P25: Iron pyrites (2502), volume | S25: Other rent payments (1415E5) | T25: Other rent payments | U25: 1415E5 | V25: Other revenue (14E) | W25: Property income (141E) | X25: Rent (1415E) | Y25: Other rent payments (1415E5)
A26: Benin | B26: BJ | C26: BEN | D26: 204 | E26: XOF | F26: 952 | G26: West African CFA franc | I26: BIF | J26: 108 | K26: Burundian franc | N26: 2507 | O26: Kaolin (2507) | P26: Kaolin (2507), volume | S26: Sales of goods and services by government units (1421E) | T26: Sales of goods and services by government units | U26: 1421E | V26: Other revenue (14E) | W26: Sales of goods and services (142E) | X26: Sales of goods and services by government units (1421E) | Y26: Sales of goods and services by government units (1421E)
A27: Bermuda | B27: BM | C27: BMU | D27: 60 | E27: BMD | F27: 60 | G27: Bermudian dollar | I27: BMD | J27: 60 | K27: Bermudian dollar | N27: 2607 | O27: Lead (2607) | P27: Lead (2607), volume | S27: Administrative fees for government services (1422E) | T27: Administrative fees for government services | U27: 1422E | V27: Other revenue (14E) | W27: Sales of goods and services (142E) | X27: Administrative fees for government services (1422E) | Y27: Administrative fees for government services (1422E)
A28: Bhutan | B28: BT | C28: BTN | D28: 64 | E28: BTN | F28: 64 | G28: Bhutanese ngultrum | I28: BND | J28: 96 | K28: Brunei dollar | N28: 2702 | O28: Lignite (2702) | P28: Lignite (2702), volume | S28: Fines, penalties, and forfeits (143E) | T28: Fines, penalties, and forfeits | U28: 143E | V28: Other revenue (14E) | W28: Fines, penalties, and forfeits (143E) | X28: Fines, penalties, and forfeits (143E) | Y28: Fines, penalties, and forfeits (143E)
A29: Bolivia | B29: BO | C29: BOL | D29: 68 | E29: BOB | F29: 68 | G29: Bolivian boliviano | I29: BOB | J29: 68 | K29: Bolivian boliviano | N29: 2521 | O29: Limestone (2521) | P29: Limestone (2521), volume | S29: Voluntary transfers to government (donations) (144E1) | T29: Voluntary transfers to government (donations) | U29: 144E1 | V29: Other revenue (14E) | W29: Voluntary transfers to government (donations) (144E1) | X29: Voluntary transfers to government (donations) (144E1) | Y29: Voluntary transfers to government (donations) (144E1)
A30: Bosnia and Herzegovina | B30: BA | C30: BIH | D30: 70 | E30: BAM | F30: 977 | G30: Bosnia and Herzegovina convertible mark | I30: BRL | J30: 986 | K30: Brazilian real | N30: 2602 | O30: Manganese (2602) | P30: Manganese (2602), volume | S30: <Choose from menu> | T30: <Choose from menu> | U30: <Choose from menu> | V30: <Choose from menu> | W30: <Choose from menu> | X30: <Choose from menu> | Y30: <Choose from menu>
A31: Botswana | B31: BW | C31: BWA | D31: 72 | E31: BWP | F31: 72 | G31: Botswana pula | I31: BSD | J31: 44 | K31: Bahamian dollar | N31: 2515 | O31: Marble (2515) | P31: Marble (2515), volume
A32: Brazil | B32: BR | C32: BRA | D32: 76 | E32: BRL | F32: 986 | G32: Brazilian real | I32: BTN | J32: 64 | K32: Bhutanese ngultrum | N32: 2525 | O32: Mica (2525) | P32: Mica (2525), volume
A33: British Indian Ocean Territory | B33: IO | C33: IOT | D33: 86 | E33: USD | F33: 840 | G33: United States dollar | I33: BWP | J33: 72 | K33: Botswana pula | N33: 2530 | O33: Mineral substances not elsewhere specified (2530) | P33: Mineral substances not elsewhere specified (2530), volume
A34: British Virgin Islands | B34: VG | C34: VGB | D34: 92 | E34: USD | F34: 840 | G34: United States dollar | I34: BYR | J34: 974 | K34: Belarussian ruble | N34: 2613 | O34: Molybdenum (2613) | P34: Molybdenum (2613), volume
A35: Brunei Darussalam | B35: BN | C35: BRN | D35: 96 | E35: BND | F35: 96 | G35: Brunei dollar | I35: BZD | J35: 84 | K35: Belize dollar | N35: 2511 | O35: Natural barium sulphate (2511) | P35: Natural barium sulphate (2511), volume
A36: Bulgaria | B36: BG | C36: BGR | D36: 100 | E36: BGN | F36: 975 | G36: Bulgarian lev (old) | I36: CAD | J36: 124 | K36: Canadian dollar | N36: 2528 | O36: Natural borates and concentrates (2528) | P36: Natural borates and concentrates (2528), volume
A37: Burkina Faso | B37: BF | C37: BFA | D37: 854 | E37: XOF | F37: 952 | G37: West African CFA franc | I37: CDF | J37: 976 | K37: Congolese franc | N37: 2510 | O37: Natural calcium phosphates (2510) | P37: Natural calcium phosphates (2510), volume
A38: Burundi | B38: BI | C38: BDI | D38: 108 | E38: BIF | F38: 108 | G38: Burundian franc | I38: CHF | J38: 756 | K38: Swiss franc | N38: 2527 | O38: Natural cryolite (2527) | P38: Natural cryolite (2527), volume
A39: Cambodia | B39: KH | C39: KHM | D39: 116 | E39: KHR | F39: 116 | G39: Cambodian Riel | I39: CLF | J39: 990 | K39: Chilean Unidad de Fomento | N39: 2711 | O39: Natural gas (2711) | P39: Natural gas (2711), volume
A40: Cameroon | B40: CM | C40: CMR | D40: 120 | E40: XAF | F40: 950 | G40: Central African CFA franc | I40: CNH | J40: 0 | K40: Chinese yuan renminbi (offshore) | N40: 2504 | O40: Natural graphite (2504) | P40: Natural graphite (2504), volume
A41: Canada | B41: CA | C41: CAN | D41: 124 | E41: CAD | F41: 124 | G41: Canadian dollar | I41: COP | J41: 170 | K41: Colombian peso | N41: 2519 | O41: Natural magnesium carbonate (2519) | P41: Natural magnesium carbonate (2519), volume
A42: Cape Verde | B42: CV | C42: CPV | D42: 132 | E42: CVE | F42: 132 | G42: Cape Verdean escudo | I42: CRC | J42: 188 | K42: Costa Rican colon | N42: 2505 | O42: Natural sands (2505) | P42: Natural sands (2505), volume
A43: Cayman Islands | B43: KY | C43: CYM | D43: 136 | E43: KYD | F43: 136 | G43: Cayman Islands Dollar | I43: CUC | J43: 931 | K43: Cuban peso convertible | N43: 2526 | O43: Natural steatite (2526) | P43: Natural steatite (2526), volume
A44: Central African Republic | B44: CF | C44: CAF | D44: 140 | E44: XAF | F44: 950 | G44: Central African CFA franc | I44: CVE | J44: 132 | K44: Cape Verdean escudo | N44: 2604 | O44: Nickel (2604) | P44: Nickel (2604), volume
A45: Chad | B45: TD | C45: TCD | D45: 148 | E45: XAF | F45: 950 | G45: Central African CFA franc | I45: CZK | J45: 203 | K45: Czech koruna | N45: 2615 | O45: Niobium (2615) | P45: Niobium (2615), volume
A46: Chile | B46: CL | C46: CHL | D46: 152 | E46: CLF | F46: 990 | G46: Chilean Unidad de Fomento | I46: DJF | J46: 262 | K46: Djiboutian franc | N46: 2617 | O46: Other (2617) | P46: Other (2617), volume
A47: China | B47: CN | C47: CHN | D47: 156 | E47: CNH | F47: 0 | G47: Chinese yuan renminbi (offshore) | I47: DKK | J47: 208 | K47: Danish krone | N47: 2508 | O47: Other clays (2508) | P47: Other clays (2508), volume
A48: Christmas Island | B48: CX | C48: CXR | D48: 162 | E48: AUD | F48: 36 | G48: Australian dollar | I48: DOP | J48: 214 | K48: Dominican peso | N48: 2621 | O48: Other slag and ash (2621) | P48: Other slag and ash (2621), volume
A49: Cocos (Keeling) Islands | B49: CC | C49: CCK | D49: 166 | E49: AUD | F49: 36 | G49: Australian dollar | I49: DZD | J49: 12 | K49: Algerian dinar | N49: 2703 | O49: Peat (2703) | P49: Peat (2703), volume
A50: Colombia | B50: CO | C50: COL | D50: 170 | E50: COP | F50: 170 | G50: Colombian peso | I50: EGP | J50: 818 | K50: Egyptian pound | N50: 2517 | O50: Pebbles (2517) | P50: Pebbles (2517), volume
A51: Comoros | B51: KM | C51: COM | D51: 174 | E51: KMF | F51: 174 | G51: Comorian Franc | I51: ERN | J51: 232 | K51: Eritrean nakfa | N51: 2713 | O51: Petroleum coke (2713) | P51: Petroleum coke (2713), volume
A52: Costa Rica | B52: CR | C52: CRI | D52: 188 | E52: CRC | F52: 188 | G52: Costa Rican colon | I52: ETB | J52: 230 | K52: Ethiopian birr | N52: 2712 | O52: Petroleum jelly (2712) | P52: Petroleum jelly (2712), volume
A53: Cote d'Ivoire | B53: CI | C53: CIV | D53: 384 | E53: XOF | F53: 952 | G53: West African CFA franc | I53: EUR | J53: 978 | K53: Euro | N53: 2710 | O53: Petroleum oils excluding crude (2710) | P53: Petroleum oils excluding crude (2710), volume
A54: Croatia | B54: HR | C54: HRV | D54: 191 | E54: HRK | F54: 191 | G54: Croatian Kuna | I54: FJD | J54: 242 | K54: Fijian dollar | N54: 2708 | O54: Pitch and pitch coke (2708) | P54: Pitch and pitch coke (2708), volume
A55: Cuba | B55: CU | C55: CUB | D55: 192 | E55: CUC | F55: 931 | G55: Cuban peso convertible | I55: FKP | J55: 238 | K55: Falkland Islands pound | N55: 2523 | O55: Portland cement (2523) | P55: Portland cement (2523), volume
A56: Cyprus | B56: CY | C56: CYP | D56: 196 | E56: EUR | F56: 978 | G56: Euro | I56: GBP | J56: 826 | K56: Pound sterling | N56: 2616 | O56: Precious metals (2616) | P56: Precious metals (2616), volume
A57: Czech Republic | B57: CZ | C57: CZE | D57: 203 | E57: CZK | F57: 203 | G57: Czech koruna | I57: GEL | J57: 981 | K57: Georgian lari | N57: 2707 | O57: Products of the distillation of coal tar (2707) | P57: Products of the distillation of coal tar (2707), volume
A58: Democratic Republic of Congo | B58: CD | C58: COD | D58: 180 | E58: CDF | F58: 976 | G58: Congolese franc | I58: GGP | J58: 0 | K58: Pound | N58: 2513 | O58: Pumice stone (2513) | P58: Pumice stone (2513), volume
A59: Denmark | B59: DK | C59: DNK | D59: 208 | E59: DKK | F59: 208 | G59: Danish krone | I59: GHS | J59: 936 | K59: Ghanaian cedi | N59: 2506 | O59: Quartz (2506) | P59: Quartz (2506), volume
A60: Djibouti | B60: DJ | C60: DJI | D60: 262 | E60: DJF | F60: 262 | G60: Djiboutian franc | I60: GIP | J60: 292 | K60: Gibraltar pound | N60: 2522 | O60: Quicklime (2522) | P60: Quicklime (2522), volume
A61: Dominica | B61: DM | C61: DMA | D61: 212 | E61: XCD | F61: 951 | G61: East Caribbean dollar | I61: GMD | J61: 270 | K61: Gambian dalasi | N61: 2501 | O61: Salt and pure sodium chloride (2501) | P61: Salt and pure sodium chloride (2501), volume
A62: Dominican Republic | B62: DO | C62: DOM | D62: 214 | E62: DOP | F62: 214 | G62: Dominican peso | I62: GNF | J62: 324 | K62: Guinean franc | N62: 2512 | O62: Siliceous fossil meals (2512) | P62: Siliceous fossil meals (2512), volume
A63: Ecuador | B63: EC | C63: ECU | D63: 218 | E63: USD | F63: 840 | G63: United States dollar | I63: GTQ | J63: 320 | K63: Guatemalan quetzal | N63: 7106 | O63: Silver (7106) | P63: Silver (7106), volume
A64: Egypt | B64: EG | C64: EGY | D64: 818 | E64: EGP | F64: 818 | G64: Egyptian pound | I64: GYD | J64: 328 | K64: Guyanese Dollar | N64: 2619 | O64: Slag (2619) | P64: Slag (2619), volume
A65: El Salvador | B65: SV | C65: SLV | D65: 222 | E65: USD | F65: 840 | G65: United States dollar | I65: HKD | J65: 344 | K65: Hong Kong Dollar | N65: 2514 | O65: Slate (2514) | P65: Slate (2514), volume
A66: Equatorial Guinea | B66: GQ | C66: GNQ | D66: 226 | E66: XAF | F66: 950 | G66: Central African CFA franc | I66: HNL | J66: 340 | K66: Honduran Lempira | N66: 2503 | O66: Sulphur of all kinds (2503) | P66: Sulphur of all kinds (2503), volume
A67: Eritrea | B67: ER | C67: ERI | D67: 232 | E67: ERN | F67: 232 | G67: Eritrean nakfa | I67: HRK | J67: 191 | K67: Croatian Kuna | N67: 2706 | O67: Tar distilled from coal (2706) | P67: Tar distilled from coal (2706), volume
A68: Estonia | B68: EE | C68: EST | D68: 233 | E68: EUR | F68: 978 | G68: Euro | I68: HTG | J68: 332 | K68: Haitian Gourde | N68: 2609 | O68: Tin (2609) | P68: Tin (2609), volume
A69: Eswatini | B69: SZ | C69: SWZ | D69: 748 | E69: SZL | F69: 748 | G69: Swazi Lilangeni | I69: HUF | J69: 348 | K69: Hungarian Forint | N69: 2614 | O69: Titanium (2614) | P69: Titanium (2614), volume
A70: Ethiopia | B70: ET | C70: ETH | D70: 231 | E70: ETB | F70: 230 | G70: Ethiopian birr | I70: IDR | J70: 360 | K70: Indonesian Rupiah | N70: 2611 | O70: Tungsten (2611) | P70: Tungsten (2611), volume
A71: Falkland Islands | B71: FK | C71: FLK | D71: 238 | E71: FKP | F71: 238 | G71: Falkland Islands pound | I71: ILS | J71: 376 | K71: Israeli New Shekel | N71: 2612 | O71: Uranium or thorium (2612) | P71: Uranium or thorium (2612), volume
A72: Faroe Islands | B72: FO | C72: FRO | D72: 234 | E72: DKK | F72: 208 | G72: Danish krone | I72: IMP | J72: 0 | K72: Isle of Man Pound | N72: 2608 | O72: Zinc (2608) | P72: Zinc (2608), volume
A73: Fiji | B73: FJ | C73: FJI | D73: 242 | E73: FJD | F73: 242 | G73: Fijian dollar | I73: INR | J73: 356 | K73: Indian Rupee
A74: Finland | B74: FI | C74: FIN | D74: 246 | E74: EUR | F74: 978 | G74: Euro | I74: IQD | J74: 368 | K74: Iraqi dinar
A75: France | B75: FR | C75: FRA | D75: 250 | E75: EUR | F75: 978 | G75: Euro | I75: IRR | J75: 364 | K75: Iranian Rial
A76: French Guiana | B76: GF | C76: GUF | D76: 254 | E76: EUR | F76: 978 | G76: Euro | I76: ISK | J76: 352 | K76: Icelandic króna
A77: French Polynesia | B77: PF | C77: PYF | D77: 258 | E77: EUR | F77: 978 | G77: Euro | I77: JEP | J77: 0 | K77: Jersey Pound
A78: French Southern Territories | B78: TF | C78: ATF | D78: 260 | E78: EUR | F78: 978 | G78: Euro | I78: JMD | J78: 388 | K78: Jamaican Dollar
A79: Gabon | B79: GA | C79: GAB | D79: 266 | E79: XAF | F79: 950 | G79: Central African CFA franc | I79: JOD | J79: 400 | K79: Jordanian Dinar
A80: Gambia | B80: GM | C80: GMB | D80: 270 | E80: GMD | F80: 270 | G80: Gambian dalasi | I80: JPY | J80: 392 | K80: Japanese Yen
A81: Georgia | B81: GE | C81: GEO | D81: 268 | E81: GEL | F81: 981 | G81: Georgian lari | I81: KES | J81: 404 | K81: Kenyan Shilling
A82: Germany | B82: DE | C82: DEU | D82: 276 | E82: EUR | F82: 978 | G82: Euro | I82: KGS | J82: 417 | K82: Kyrgyzstani Som
A83: Ghana | B83: GH | C83: GHA | D83: 288 | E83: GHS | F83: 936 | G83: Ghanaian cedi | I83: KHR | J83: 116 | K83: Cambodian Riel
A84: Gibraltar | B84: GI | C84: GIB | D84: 292 | E84: GIP | F84: 292 | G84: Gibraltar pound | I84: KMF | J84: 174 | K84: Comorian Franc
A85: Greece | B85: GR | C85: GRC | D85: 300 | E85: EUR | F85: 978 | G85: Euro | I85: KPW | J85: 408 | K85: North Korean Won
A86: Greenland | B86: GL | C86: GRL | D86: 304 | E86: DKK | F86: 208 | G86: Danish krone | I86: KRW | J86: 410 | K86: South Korean Won
A87: Grenada | B87: GD | C87: GRD | D87: 308 | E87: XCD | F87: 951 | G87: East Caribbean dollar | I87: KWD | J87: 414 | K87: Kuwaiti Dinar
A88: Guadeloupe | B88: GP | C88: GLP | D88: 312 | E88: EUR | F88: 978 | G88: Euro | I88: KYD | J88: 136 | K88: Cayman Islands Dollar
A89: Guam | B89: GU | C89: GUM | D89: 316 | E89: USD | F89: 840 | G89: United States dollar | I89: KZT | J89: 398 | K89: Kazakhstani Tenge
A90: Guatemala | B90: GT | C90: GTM | D90: 320 | E90: GTQ | F90: 320 | G90: Guatemalan quetzal | I90: LAK | J90: 418 | K90: Lao Kip
A91: Guernsey | B91: GG | C91: GGY | D91: 831 | E91: GGP | F91: 0 | G91: Pound | I91: LBP | J91: 422 | K91: Lebanese Pound
A92: Guinea | B92: GN | C92: GIN | D92: 324 | E92: GNF | F92: 324 | G92: Guinean franc | I92: LKR | J92: 144 | K92: Sri Lankan Rupee
A93: Guinea-Bissau | B93: GW | C93: GNB | D93: 624 | E93: XOF | F93: 952 | G93: West African CFA franc | I93: LRD | J93: 430 | K93: Liberian Dollar
A94: Guyana | B94: GY | C94: GUY | D94: 328 | E94: GYD | F94: 328 | G94: Guyanese Dollar | I94: LSL | J94: 426 | K94: Lesotho loti
A95: Haiti | B95: HT | C95: HTI | D95: 332 | E95: HTG | F95: 332 | G95: Haitian Gourde | I95: LYD | J95: 434 | K95: Libyan Dinar
A96: Heard and Mcdonald Islands | B96: HM | C96: HMD | D96: 334 | I96: MAD | J96: 504 | K96: Moroccan Dirham
A97: Honduras | B97: HN | C97: HND | D97: 340 | E97: HNL | F97: 340 | G97: Honduran Lempira | I97: MDL | J97: 498 | K97: Moldovan Leu
A98: Hong Kong | B98: HK | C98: HKG | D98: 344 | E98: HKD | F98: 344 | G98: Hong Kong Dollar | I98: MGA | J98: 969 | K98: Malagasy Ariary
A99: Hungary | B99: HU | C99: HUN | D99: 348 | E99: HUF | F99: 348 | G99: Hungarian Forint | I99: MKD | J99: 807 | K99: Macedonian denar
A100: Iceland | B100: IS | C100: ISL | D100: 352 | E100: ISK | F100: 352 | G100: Icelandic króna | I100: MMK | J100: 104 | K100: Burmese Kyat
A101: India | B101: IN | C101: IND | D101: 356 | E101: INR | F101: 356 | G101: Indian Rupee | I101: MNT | J101: 496 | K101: Mongolian Tugrik
A102: Indonesia | B102: ID | C102: IDN | D102: 360 | E102: IDR | F102: 360 | G102: Indonesian Rupiah | I102: MOP | J102: 446 | K102: Macanese patca
A103: Iran | B103: IR | C103: IRN | D103: 364 | E103: IRR | F103: 364 | G103: Iranian Rial | I103: MRO | J103: 478 | K103: Mauritanian Ouguiya
A104: Iraq | B104: IQ | C104: IRQ | D104: 368 | E104: IQD | F104: 368 | G104: Iraqi dinar | I104: MUR | J104: 480 | K104: Mauritian Rupee
A105: Ireland | B105: IE | C105: IRL | D105: 372 | E105: EUR | F105: 978 | G105: Euro | I105: MVR | J105: 462 | K105: Maldivian Rufiyaa
A106: Isle of Man | B106: IM | C106: IMN | D106: 833 | E106: IMP | F106: 0 | G106: Isle of Man Pound | I106: MWK | J106: 454 | K106: Malawian kwacha
A107: Israel | B107: IL | C107: ISR | D107: 376 | E107: ILS | F107: 376 | G107: Israeli New Shekel | I107: MXN | J107: 484 | K107: Mexican Peso
A108: Italy | B108: IT | C108: ITA | D108: 380 | E108: EUR | F108: 978 | G108: Euro | I108: MYR | J108: 458 | K108: Malaysian Ringgit
A109: Jamaica | B109: JM | C109: JAM | D109: 388 | E109: JMD | F109: 388 | G109: Jamaican Dollar | I109: MZN | J109: 943 | K109: Mozambique Metical
A110: Japan | B110: JP | C110: JPN | D110: 392 | E110: JPY | F110: 392 | G110: Japanese Yen | I110: NAD | J110: 516 | K110: Namibian Dollar
A111: Jersey | B111: JE | C111: JEY | D111: 832 | E111: JEP | F111: 0 | G111: Jersey Pound | I111: NGN | J111: 566 | K111: Nigerian Naira
A112: Jordan | B112: JO | C112: JOR | D112: 400 | E112: JOD | F112: 400 | G112: Jordanian Dinar | I112: NIO | J112: 558 | K112: Nicaraguan córdoba oro
A113: Kazakhstan | B113: KZ | C113: KAZ | D113: 398 | E113: KZT | F113: 398 | G113: Kazakhstani Tenge | I113: NOK | J113: 578 | K113: Norwegian Krone
A114: Kenya | B114: KE | C114: KEN | D114: 404 | E114: KES | F114: 404 | G114: Kenyan Shilling | I114: NPR | J114: 524 | K114: Nepalese Rupee
A115: Kiribati | B115: KI | C115: KIR | D115: 296 | I115: NZD | J115: 554 | K115: New Zealand Dollar
A116: Korea (North) | B116: KP | C116: PRK | D116: 408 | E116: KPW | F116: 408 | G116: North Korean Won | I116: OMR | J116: 512 | K116: Omani Rial
A117: Korea (South) | B117: KR | C117: KOR | D117: 410 | E117: KRW | F117: 410 | G117: South Korean Won | I117: PAB | J117: 590 | K117: Panamanian balboa
A118: Kosovo | B118: XK | C118: XKX | D118: - | E118: EUR | F118: 978 | G118: Euro | I118: PEN | J118: 604 | K118: Peruvian Sol
A119: Kuwait | B119: KW | C119: KWT | D119: 414 | E119: KWD | F119: 414 | G119: Kuwaiti Dinar | I119: PGK | J119: 598 | K119: Papua New Guinean Kina
A120: Kyrgyz Republic | B120: KG | C120: KGZ | D120: 417 | E120: KGS | F120: 417 | G120: Kyrgyzstani Som | I120: PHP | J120: 608 | K120: Philippine Peso
A121: Lao PDR | B121: LA | C121: LAO | D121: 418 | E121: LAK | F121: 418 | G121: Lao Kip | I121: PKR | J121: 586 | K121: Pakistani Rupee
A122: Latvia | B122: LV | C122: LVA | D122: 428 | E122: EUR | F122: 978 | G122: Euro | I122: PLN | J122: 985 | K122: Polish Zloty
A123: Lebanon | B123: LB | C123: LBN | D123: 422 | E123: LBP | F123: 422 | G123: Lebanese Pound | I123: PYG | J123: 600 | K123: Paraguayan guaraní
A124: Lesotho | B124: LS | C124: LSO | D124: 426 | E124: LSL | F124: 426 | G124: Lesotho loti | I124: QAR | J124: 634 | K124: Qatari Riyal
A125: Liberia | B125: LR | C125: LBR | D125: 430 | E125: LRD | F125: 430 | G125: Liberian Dollar | I125: RON | J125: 946 | K125: Romanian Leu
A126: Libya | B126: LY | C126: LBY | D126: 434 | E126: LYD | F126: 434 | G126: Libyan Dinar | I126: RSD | J126: 941 | K126: Serbian Dinar
A127: Liechtenstein | B127: LI | C127: LIE | D127: 438 | E127: CHF | F127: 756 | G127: Swiss franc | I127: RUB | J127: 643 | K127: Russian Ruble
A128: Lithuania | B128: LT | C128: LTU | D128: 440 | E128: EUR | F128: 978 | G128: Euro | I128: RWF | J128: 646 | K128: Rwandan Franc
A129: Luxembourg | B129: LU | C129: LUX | D129: 442 | E129: EUR | F129: 978 | G129: Euro | I129: SAR | J129: 682 | K129: Saudi Riyal
A130: Macao | B130: MO | C130: MAC | D130: 446 | E130: MOP | F130: 446 | G130: Macanese patca | I130: SBD | J130: 90 | K130: Solomon Islands Dollar
A131: Macedonia | B131: MK | C131: MKD | D131: 807 | E131: MKD | F131: 807 | G131: Macedonian denar | I131: SCR | J131: 690 | K131: Seychellois rupee
A132: Madagascar | B132: MG | C132: MDG | D132: 450 | E132: MGA | F132: 969 | G132: Malagasy Ariary | I132: SDG | J132: 938 | K132: Sudanese Pound
A133: Malawi | B133: MW | C133: MWI | D133: 454 | E133: MWK | F133: 454 | G133: Malawian kwacha | I133: SEK | J133: 752 | K133: Swedish Krona
A134: Malaysia | B134: MY | C134: MYS | D134: 458 | E134: MYR | F134: 458 | G134: Malaysian Ringgit | I134: SGD | J134: 702 | K134: Singapore Dollar
A135: Maldives | B135: MV | C135: MDV | D135: 462 | E135: MVR | F135: 462 | G135: Maldivian Rufiyaa | I135: SHP | J135: 654 | K135: Saint Helena Pound
A136: Mali | B136: ML | C136: MLI | D136: 466 | E136: XOF | F136: 952 | G136: West African CFA franc | I136: SLL | J136: 694 | K136: Sierra Leonean leone
A137: Malta | B137: MT | C137: MLT | D137: 470 | E137: EUR | F137: 978 | G137: Euro | I137: SOS | J137: 706 | K137: Somali Shilling
A138: Marshall Islands | B138: MH | C138: MHL | D138: 584 | E138: USD | F138: 840 | G138: United States dollar | I138: SRD | J138: 968 | K138: Surinamese dollar
A139: Martinique | B139: MQ | C139: MTQ | D139: 474 | E139: EUR | F139: 978 | G139: Euro | I139: SSP | J139: 728 | K139: South Sudanese Pound
A140: Mauritania | B140: MR | C140: MRT | D140: 478 | E140: MRO | F140: 478 | G140: Mauritanian Ouguiya | I140: STD | J140: 678 | K140: São Tomé and Príncipe Dobra
A141: Mauritius | B141: MU | C141: MUS | D141: 480 | E141: MUR | F141: 480 | G141: Mauritian Rupee | I141: SYP | J141: 760 | K141: Syrian Pound
A142: Mayotte | B142: YT | C142: MYT | D142: 175 | E142: EUR | F142: 978 | G142: Euro | I142: SZL | J142: 748 | K142: Swazi Lilangeni
A143: Mexico | B143: MX | C143: MEX | D143: 484 | E143: MXN | F143: 484 | G143: Mexican Peso | I143: THB | J143: 764 | K143: Thai Baht
A144: Micronesia | B144: FM | C144: FSM | D144: 583 | E144: USD | F144: 840 | G144: United States dollar | I144: TJS | J144: 972 | K144: Tajikistani Somoni
A145: Moldova | B145: MD | C145: MDA | D145: 498 | E145: MDL | F145: 498 | G145: Moldovan Leu | I145: TMT | J145: 934 | K145: Turkmenistan New Manat
A146: Monaco | B146: MC | C146: MCO | D146: 492 | E146: EUR | F146: 978 | G146: Euro | I146: TND | J146: 788 | K146: Tunisian dinar
A147: Mongolia | B147: MN | C147: MNG | D147: 496 | E147: MNT | F147: 496 | G147: Mongolian Tugrik | I147: TOP | J147: 776 | K147: Tongan pa'anga
A148: Montenegro | B148: ME | C148: MNE | D148: 499 | E148: EUR | F148: 978 | G148: Euro | I148: TRY | J148: 949 | K148: Turkish lira
A149: Montserrat | B149: MS | C149: MSR | D149: 500 | E149: XCD | F149: 951 | G149: East Caribbean dollar | I149: TTD | J149: 780 | K149: Trinidad and Tobago Dollar
A150: Morocco | B150: MA | C150: MAR | D150: 504 | E150: MAD | F150: 504 | G150: Moroccan Dirham | I150: TVD | J150: 0 | K150: Tuvaluan dollar
A151: Mozambique | B151: MZ | C151: MOZ | D151: 508 | E151: MZN | F151: 943 | G151: Mozambique Metical | I151: TWD | J151: 901 | K151: New Taiwan dollar
A152: Myanmar | B152: MM | C152: MMR | D152: 104 | E152: MMK | F152: 104 | G152: Burmese Kyat | I152: TZS | J152: 834 | K152: Tanzanian shilling
A153: Namibia | B153: NA | C153: NAM | D153: 516 | E153: NAD | F153: 516 | G153: Namibian Dollar | I153: UAH | J153: 980 | K153: Ukrainian Hryvnia
A154: Nauru | B154: NR | C154: NRU | D154: 520 | I154: UGX | J154: 800 | K154: Ugandan shilling
A155: Nepal | B155: NP | C155: NPL | D155: 524 | E155: NPR | F155: 524 | G155: Nepalese Rupee | I155: USD | J155: 840 | K155: United States dollar
A156: Netherlands | B156: NL | C156: NLD | D156: 528 | E156: EUR | F156: 978 | G156: Euro | I156: USD
A157: Netherlands Antilles | B157: AN | C157: ANT | D157: 530 | E157: ANG | F157: 532 | G157: Netherlands Antillean guilder | I157: UYU | J157: 858 | K157: Uruguayan Peso
A158: New Caledonia | B158: NC | C158: NCL | D158: 540 | I158: UZS | J158: 860 | K158: Uzbekistani Som
A159: New Zealand | B159: NZ | C159: NZL | D159: 554 | E159: NZD | F159: 554 | G159: New Zealand Dollar | I159: VEF | J159: 937 | K159: Venezuelan Bolívar fuerte
A160: Nicaragua | B160: NI | C160: NIC | D160: 558 | E160: NIO | F160: 558 | G160: Nicaraguan córdoba oro | I160: VND | J160: 704 | K160: Vietnamese Dong
A161: Niger | B161: NE | C161: NER | D161: 562 | E161: XOF | F161: 952 | G161: West African CFA franc | I161: VUV | J161: 548 | K161: Vanuatu Vatu
A162: Nigeria | B162: NG | C162: NGA | D162: 566 | E162: NGN | F162: 566 | G162: Nigerian Naira | I162: WST | J162: 882 | K162: Samoan tala
A163: Niue | B163: NU | C163: NIU | D163: 570 | I163: XAF | J163: 950 | K163: Central African CFA franc
A164: Norfolk Island | B164: NF | C164: NFK | D164: 574 | I164: XCD | J164: 951 | K164: East Caribbean dollar
A165: Northern Mariana Islands | B165: MP | C165: MNP | D165: 580 | E165: USD | F165: 840 | G165: United States dollar | I165: XOF | J165: 952 | K165: West African CFA franc
A166: Norway | B166: NO | C166: NOR | D166: 578 | E166: NOK | F166: 578 | G166: Norwegian Krone | I166: YER | J166: 886 | K166: Yemeni Rial
A167: Oman | B167: OM | C167: OMN | D167: 512 | E167: OMR | F167: 512 | G167: Omani Rial | I167: ZAR | J167: 710 | K167: South African Rand
A168: Pakistan | B168: PK | C168: PAK | D168: 586 | E168: PKR | F168: 586 | G168: Pakistani Rupee | I168: ZMW | J168: 967 | K168: Zambian Kwacha
A169: Palau | B169: PW | C169: PLW | D169: 585 | E169: USD | F169: 840 | G169: United States dollar
A170: Palestinian Territory | B170: PS | C170: PSE | D170: 275
A171: Panama | B171: PA | C171: PAN | D171: 591 | E171: PAB | F171: 590 | G171: Panamanian balboa
A172: Papua New Guinea | B172: PG | C172: PNG | D172: 598 | E172: PGK | F172: 598 | G172: Papua New Guinean Kina
A173: Paraguay | B173: PY | C173: PRY | D173: 600 | E173: PYG | F173: 600 | G173: Paraguayan guaraní
A174: Peru | B174: PE | C174: PER | D174: 604 | E174: PEN | F174: 604 | G174: Peruvian Sol
A175: Philippines | B175: PH | C175: PHL | D175: 608 | E175: PHP | F175: 608 | G175: Philippine Peso
A176: Pitcairn | B176: PN | C176: PCN | D176: 612
A177: Poland | B177: PL | C177: POL | D177: 616 | E177: PLN | F177: 985 | G177: Polish Zloty
A178: Portugal | B178: PT | C178: PRT | D178: 620 | E178: EUR | F178: 978 | G178: Euro
A179: Puerto Rico | B179: PR | C179: PRI | D179: 630 | E179: USD | F179: 840 | G179: United States dollar
A180: Qatar | B180: QA | C180: QAT | D180: 634 | E180: QAR | F180: 634 | G180: Qatari Riyal
A181: Republic of the Congo | B181: CG | C181: COG | D181: 178 | E181: XAF | F181: 950 | G181: Central African CFA franc
A182: Reunion | B182: RE | C182: REU | D182: 638 | E182: EUR | F182: 978 | G182: Euro
A183: Romania | B183: RO | C183: ROU | D183: 642 | E183: RON | F183: 946 | G183: Romanian Leu
A184: Russian Federation | B184: RU | C184: RUS | D184: 643 | E184: RUB | F184: 643 | G184: Russian Ruble
A185: Rwanda | B185: RW | C185: RWA | D185: 646 | E185: RWF | F185: 646 | G185: Rwandan Franc
A186: Saint Helena | B186: SH | C186: SHN | D186: 654 | E186: SHP | F186: 654 | G186: Saint Helena Pound
A187: Saint Kitts and Nevis | B187: KN | C187: KNA | D187: 659 | E187: XCD | F187: 951 | G187: East Caribbean dollar
A188: Saint Lucia | B188: LC | C188: LCA | D188: 662 | E188: XCD | F188: 951 | G188: East Caribbean dollar
A189: Saint Pierre and Miquelon | B189: PM | C189: SPM | D189: 666 | E189: EUR | F189: 978 | G189: Euro
A190: Saint Vincent and Grenadines | B190: VC | C190: VCT | D190: 670 | E190: XCD | F190: 951 | G190: East Caribbean dollar
A191: Saint-Barthelemy | B191: BL | C191: BLM | D191: 652 | E191: EUR | F191: 978 | G191: Euro
A192: Saint-Martin | B192: MF | C192: MAF | D192: 663 | E192: EUR | F192: 978 | G192: Euro
A193: Samoa | B193: WS | C193: WSM | D193: 882 | E193: WST | F193: 882 | G193: Samoan tala
A194: San Marino | B194: SM | C194: SMR | D194: 674 | E194: EUR | F194: 978 | G194: Euro
A195: Sao Tome and Principe | B195: ST | C195: STP | D195: 678 | E195: STD | F195: 678 | G195: São Tomé and Príncipe Dobra
A196: Saudi Arabia | B196: SA | C196: SAU | D196: 682 | E196: SAR | F196: 682 | G196: Saudi Riyal
A197: Senegal | B197: SN | C197: SEN | D197: 686 | E197: XOF | F197: 952 | G197: West African CFA franc
A198: Serbia | B198: RS | C198: SRB | D198: 688 | E198: RSD | F198: 941 | G198: Serbian Dinar
A199: Seychelles | B199: SC | C199: SYC | D199: 690 | E199: SCR | F199: 690 | G199: Seychellois rupee
A200: Sierra Leone | B200: SL | C200: SLE | D200: 694 | E200: SLL | F200: 694 | G200: Sierra Leonean leone
... 46 more rows
